Workbook

Sheet Listado (hidden)
A1: ELEMENTOS SISTEMA
A2: LISTADO MATRIZ
A4: CÓDIGO ARTÍCULO | B4: DESCRIPCIÓN | C4: COD.ARTICULO | D4: T.M | E4: ALTO | F4: LARGO | G4: UNI.CAJA | H4: CAJAS/PALE | I4: PREC.VENTA
A5: 040113 | B5: PLACA ATT BASIC 13X600X1200 (78) | C5: 040113 | D5: 3 | E5: 0.6 | F5: 1.2 | G5: 1 | H5: 78 | I5: 6.36
A6: 040115 | B6: PLACA ATT BASIC 15X600X1200 (66) | C6: 040115 | D6: 3 | E6: 0.6 | F6: 1.2 | G6: 1 | H6: 66 | I6: 7.58
A7: 040120 | B7: PLACA ATT BASIC 20X600X1200 (48) | C7: 040120 | D7: 3 | E7: 0.6 | F7: 1.2 | G7: 1 | H7: 48 | I7: 10.76
A8: 040213 | B8: PLACA ATT HIDRO 13X600X1200 (78) | C8: 040213 | D8: 3 | E8: 0.6 | F8: 1.2 | G8: 1 | H8: 78 | I8: 11.19
A9: 040215 | B9: PLACA ATT HIDRO 15X600X1200 (66) | C9: 040215 | D9: 3 | E9: 0.6 | F9: 1.2 | G9: 1 | H9: 66 | I9: 12.78
A10: 040220 | B10: PLACA ATT HIDRO 20X600X1200 (48) | C10: 040220 | D10: 3 | E10: 0.6 | F10: 1.2 | G10: 1 | H10: 48 | I10: 18.22
A11: 040313 | B11: PLACA ATT FUEGO 13X600X1200 (78) | C11: 040313 | D11: 3 | E11: 0.6 | F11: 1.2 | G11: 1 | H11: 78 | I11: 9.21
A12: 040315 | B12: PLACA ATT FUEGO 15X600X1200 (66) | C12: 040315 | D12: 3 | E12: 0.6 | F12: 1.2 | G12: 1 | H12: 66 | I12: 11.57
A13: 040320 | B13: PLACA ATT FUEGO 20X600X1200 (48) | C13: 040320 | D13: 3 | E13: 0.6 | F13: 1.2 | G13: 1 | H13: 48 | I13: 18.38
A14: 040413 | B14: PLACA ATT RESIST 13X600X1200 (78) | C14: 040413 | D14: 3 | E14: 1.2 | F14: 0.6 | G14: 1 | H14: 78 | I14: 10.71
A15: 040415 | B15: PLACA ATT RESIST 15X600X1200 (66) | C15: 040415 | D15: 3 | E15: 0.6 | F15: 1.2 | G15: 1 | H15: 66 | I15: 12.66
A16: 040420 | B16: PLACA ATT RESIST 20X600X1200 (48) | C16: 040420 | D16: 3 | E16: 0.6 | F16: 1.2 | G16: 1 | H16: 48 | I16: 20.12
A17: 040513 | B17: PLACA ATT HIDROPLUS 13X600X1200 (78) | C17: 040513 | D17: 3 | E17: 1.2 | F17: 0.6 | G17: 1 | H17: 78 | I17: 14.45
A18: 040515 | B18: PLACA ATT HIDROPLUS 15X600X1200 (66) | C18: 040515 | D18: 3 | E18: 0.6 | F18: 1.2 | G18: 1 | H18: 66 | I18: 17.09
A19: 040520 | B19: PLACA ATT HIDROPLUS 20X600X1200 (48) | C19: 040520 | D19: 3 | E19: 0.6 | F19: 1.2 | G19: 1 | H19: 48 | I19: 26.52
A20: 040613 | B20: PLACA ATT SUPREM 13X600X1200 (78) | C20: 040613 | D20: 3 | E20: 1.2 | F20: 0.6 | G20: 1 | H20: 78 | I20: 12.28
A21: 040615 | B21: PLACA ATT SUPREM 15X600X1200 (66) | C21: 040615 | D21: 3 | E21: 0.6 | F21: 1.2 | G21: 1 | H21: 66 | I21: 15.46
A22: 040620 | B22: PLACA ATT SUPREM 20X600X1200 (48) | C22: 040620 | D22: 3 | E22: 0.6 | F22: 1.2 | G22: 1 | H22: 48 | I22: 22.53
A23: 0470010110 | B23: PASTA ATT JUNTAS 10KG 60 MIN (56) | C23: 0470010110 | D23: 1 | E23: 0 | F23: 0 | G23: 56 | H23: 1 | I23: 19.85
A24: 0470010210 | B24: PASTA ATT JUNTAS 10KG 30 MIN (56) | C24: 0470010210 | D24: 1 | E24: 0 | F24: 0 | G24: 84 | H24: 1 | I24: 19.37
A25: 0470010310 | B25: PASTA ATT JUNTAS 10KG 300 MIN (56) | C25: 0470010310 | D25: 1 | E25: 0 | F25: 0 | G25: 84 | H25: 1 | I25: 38.65
A26: 0470010111 | B26: PASTA ATT JUNTAS H 10 KG 60 MIN (56) | C26: 0470010111 | D26: 1 | E26: 0 | F26: 0 | G26: 56 | H26: 1 | I26: 30.34
A27: 0470010511 | B27: PASTA ATT JUNTAS H 10 KG 300 MIN (56) | C27: 0470010511 | D27: 1 | E27: 0 | F27: 0 | G27: 56 | H27: 1 | I27: 45.17
A28: 0470010318 | B28: PASTA ATT AGARRE 17KG (35) | C28: 0470010318 | D28: 1 | E28: 0 | F28: 0 | G28: 56 | H28: 1 | I28: 14.74
A29: 0470010410 | B29: PASTA ATT DE ACABADO 10 KG (56) | C29: 0470010410 | D29: 1 | E29: 0 | F29: 0 | G29: 1 | H29: 84 | I29: 12.03
A30: 4800205 | B30: VARILLA ROSCADA M6 1M (100) | C30: 4800205 | D30: 1 | E30: 0 | F30: 0 | G30: 1 | H30: 100 | I30: 97.7
A31: 4800308 | B31: TACO HEMBRA ALTERON M6 (100) | C31: 4800308 | D31: 1 | E31: 0 | F31: 0 | G31: 1 | H31: 100 | I31: 19.5
A32: 480922001 | B32: HORQUILLA TC47 (100) | C32: 480922001 | D32: 1 | E32: 0 | F32: 0 | G32: 1 | H32: 100 | I32: 34.66
A33: 480922004 | B33: HORQUILLA TC60 (50) | C33: 480922004 | D33: 1 | E33: 0 | F33: 0 | G33: 1 | H33: 50 | I33: 41
A34: 480922J00 | B34: ABRAZADERA TC60 (100) | C34: 480922J00 | D34: 1 | E34: 0 | F34: 0 | G34: 1 | H34: 100 | I34: 70.85
A35: 480922J01 | B35: ABRAZADERA TC47 (50) | C35: 480922J01 | D35: 1 | E35: 0 | F35: 0 | G35: 1 | H35: 50 | I35: 34.66
A36: 48010348 | B36: JUNTA ESTANCA ATT 50MM (30) | C36: 48010348 | D36: 1 | E36: 0 | F36: 0 | G36: 21 | H36: 12 | I36: 16.59
A37: 48010370 | B37: JUNTA ESTANCA ATT 75MM (30) | C37: 48010370 | D37: 1 | E37: 0 | F37: 0 | G37: 15 | H37: 12 | I37: 24.06
A38: 48010390 | B38: JUNTA ESTANCA ATT 100MM (30) | C38: 48010390 | D38: 1 | E38: 0 | F38: 0 | G38: 9 | H38: 2 | I38: 31.63
A39: 4802010125 | B39: TORNILLOS ATT PP 3,5X25 (1000) | C39: 4802010125 | D39: 1 | E39: 1000 | F39: 0 | G39: 12 | H39: 0 | I39: 29.06
A40: 4802010135 | B40: TORNILLOS ATT PP 3,5X35 (1000) | C40: 4802010135 | D40: 1 | E40: 1000 | F40: 0 | G40: 12 | H40: 0 | I40: 33.28
A41: 4802010145 | B41: TORNILLOS ATT PP 3,5X45 (500) | C41: 4802010145 | D41: 1 | E41: 500 | F41: 0 | G41: 1 | H41: 0 | I41: 38.64
A42: 4802010155 | B42: TORNILLOS ATT PP 3,5X55 (500) | C42: 4802010155 | D42: 1 | E42: 500 | F42: 0 | G42: 1 | H42: 0 | I42: 47.74
A43: 48127030 | B43: MAESTRA ATT 70X3000 | C43: 48127030 | D43: 2 | E43: 0 | F43: 3 | G43: 12 | H43: 63 | I43: 3.38
A44: 48128030 | B44: MAESTRA ATT 82X3000 | C44: 48128030 | D44: 2 | E44: 0 | F44: 3 | G44: 12 | H44: 42 | I44: 2.52
A45: 48134730 | B45: PERFIL TC 47X3000 (12UDS) | C45: 48134730 | D45: 2 | E45: 0 | F45: 3 | G45: 12 | H45: 63 | I45: 2.39
A46: 48136030 | B46: PERFIL TC 60X3000 (8UDS) | C46: 48136030 | D46: 2 | E46: 0 | F46: 3 | G46: 8 | H46: 42 | I46: 3.18
A47: 48136045 | B47: PERFIL TC 60X4500 (8UDS) | C47: 48136045 | D47: 2 | E47: 0 | F47: 4.5 | G47: 8 | H47: 42 | I47: 3.18
A48: 48173330 | B48: PERFIL PH 45 33,5X3000 | C48: 48173330 | D48: 2 | E48: 0 | F48: 3 | G48: 10 | H48: 42 | I48: 4.25
A49: 48173340 | B49: PERFIL PH 45 33,5X4000 | C49: 48173340 | D49: 2 | E49: 0 | F49: 4 | G49: 12 | H49: 35 | I49: 4.25
A50: 48040101 | B50: MASILLA PARA ENCUENTROS ATT | C50: 48040101 | D50: 2 | E50: 0 | F50: 0 | G50: 300 | H50: 12 | I50: =J50/300 -> 0.0242 | J50: 7.26 | K50: Precio tarifa

Sheet Datos
C1: RENDIMIENTO DE MATERIALES POR M2 DE OBRA
C2: DATOS PROGRAMABLES POR USUARIO
A5: CÓDIGO | C5: DESCRIPCIÓN
A6: 30 | C6: DESCUENTO EN PLACA (%)
A7: 30 | C7: DESCUENTO EN PERFILERÍA (%)
A8: 30 | C8: DESCUENTO EN PASTAS (%)
A9: 30 | C9: DESCUENTO EN TORNILLOS Y FIJACIONES (%)
A10: 30 | C10: DESCUENTO EN CINTAS Y JUNTAS (%)
A11: 20 | C11: BENEFICIO PARA PRESUPUESTO (%)
A12: pedidos@elalteron.com | C12: Dirección para envío de pedidos
A13: repuesto@elalteron.com | C13: Dirección para envío de rendimientos
A14: compras@elalteron.com | C14: Dirección para envío de lista de materiales
A15: clientes@elalteron.com | C15: Dirección para envío de presupuestos
A16: 19 | C16: Precio por hora de la mano de obra (€/h)

Sheet Rendimientos (hidden)
A1: RENDIMIENTO DE MATERIALES POR M2 DE OBRA
A2: CUBICACIONES PARA TRASDOSADO
A4: CODIGO | C4: MATERIALES | D4: UD | E4: CANTIDAD por m2 | F4: PIEZA
C5: PLACA | D5: m2 | E5: 1.02
C6: HORQUILLA | D6: ud | E6: 3 | F6: 100
C7: TC (modulación 400) | D7: m | E7: 3
C8: TC (modulación 600) | D8: m | E8: 2.1
C9: TORNILLO PP (modulación 400) TRASDOSADO SIMPLE | D9: ud | E9: 18 | F9: 1000
C10: TORNILLO PP (modulación 400) TRASDOSADO DOBLE 1ª CAPA | D10: ud | E10: 18 | F10: 1000
C11: TORNILLO PP (modulación 400) TRASDOSADO DOBLE 2ª CAPA | D11: ud | E11: 18 | F11: 1000
C12: TORNILLO PP (modulación 400) TRASDOSADO TRIPLE 1ª CAPA | D12: ud | E12: 18 | F12: 1000
C13: TORNILLO PP (modulación 400) TRASDOSADO TRIPLE 2ª CAPA | D13: ud | E13: 18 | F13: 1000
C14: TORNILLO PP (modulación 400) TRASDOSADO TRIPLE 3ª CAPA | D14: ud | E14: =E9 -> 18 | F14: 1000
C15: TORNILLO PP (modulación 600) TRASDOSADO SIMPLE | D15: ud | E15: 14 | F15: 1000
C16: TORNILLO PP (modulación 600) TRASDOSADO DOBLE 1ª CAPA | D16: ud | E16: 14 | F16: 1000
C17: TORNILLO PP (modulación 600) TRASDOSADO DOBLE 2ª CAPA | D17: ud | E17: =E15 -> 14 | F17: 1000
C18: TORNILLO PP (modulación 600) TRASDOSADO TRIPLE 1ª CAPA | D18: ud | E18: 14 | F18: 1000
C19: TORNILLO PP (modulación 600) TRASDOSADO TRIPLE 2ª CAPA | D19: ud | E19: 14 | F19: 1000
C20: TORNILLO PP (modulación 600) TRASDOSADO TRIPLE 3ª CAPA | D20: ud | E20: =E15 -> 14 | F20: 1000
A21: 4800308 | C21: =VLOOKUP(A21,Listado!A:B,2,FALSE) -> TACO HEMBRA ALTERON M6 (100) | D21: ud | E21: =E6 -> 3 | F21: 100
A22: 48040101 | C22: =Listado!B50 -> MASILLA PARA ENCUENTROS ATT | D22: mil | E22: 10 | F22: 300
A23: 4800205 | C23: =VLOOKUP(A23,Listado!A:B,2,FALSE) -> VARILLA ROSCADA M6 1M (100) | D23: ud | E23: =E6 -> 3 | F23: 100 | G23: 50
B24: Q2 | C24: Totalmente finalizado con nivel de acabado Q2 | D24: kg | E24: 0.11 | F24: 10
A25: 0470010410 | B25: Q3 | C25: Totalmente finalizado con nivel de acabado Q3 | D25: kg | E25: 0.07 | F25: 10
A26: 0470010410 | B26: Q4 | C26: Totalmente finalizado con nivel de acabado Q4 | D26: kg | E26: 0.225 | F26: 10
A27: MODULACIÓN | C27: 600
A28: MODULACIÓN | C28: 400
B29: 42 | C29: Mano de obra techo e simple sencillo (modulación 400, Q2) | D29: €/m2 | E29: =F29*Datos!$A$16 -> 5.89 | F29: 0.31
B30: 43 | C30: Mano de obra techo e simple sencillo (modulación 400, Q3) | D30: €/m2 | E30: =F30*Datos!$A$16 -> 6.65 | F30: 0.35
B31: 44 | C31: Mano de obra techo e simple sencillo (modulación 400, Q4) | D31: €/m2 | E31: =F31*Datos!$A$16 -> 9.31 | F31: 0.49
B32: 62 | C32: Mano de obra techo e simple sencillo (modulación 600, Q2) | D32: €/m2 | E32: =F32*Datos!$A$16 -> 4.94 | F32: 0.26
B33: 63 | C33: Mano de obra techo e simple sencillo (modulación 600, Q3) | D33: €/m2 | E33: =F33*Datos!$A$16 -> 5.7 | F33: 0.3
B34: 64 | C34: Mano de obra techo e simple sencillo (modulación 600, Q4) | D34: €/m2 | E34: =F34*Datos!$A$16 -> 8.36 | F34: 0.44
B35: 42 | C35: TC TECHO DOBLE ESTRUC 1P (modulación 400) | D35: €/m2 | E35: 3.77
B36: 43 | C36: TC TECHO DOBLE ESTRUC 1P (modulación 600) | D36: €/m2 | E36: 2.63
B37: 44 | C37: Estructura simple 1P 600 | D37: €/m2 | E37: =F37*Datos!$A$16 -> 4.503 | F37: 0.237
B38: 62 | C38: Estructura simple 1P 400 | D38: €/m2 | E38: =F38*Datos!$A$16 -> 5.415 | F38: 0.285
B39: 63 | C39: Estructura simple 2P 600 | D39: €/m2 | E39: =F39*Datos!$A$16 -> 6.004 | F39: 0.316
B40: 64 | C40: Estructura simple 2P 400 | D40: €/m2 | E40: =F40*Datos!$A$16 -> 7.011 | F40: 0.369
B41: 42 | C41: Estructura doble 1P 600 | D41: €/m2 | E41: =F41*Datos!$A$16 -> 4.503 | F41: 0.237
B42: 43 | C42: Estructura doble 1P 400 | D42: €/m2 | E42: =F42*Datos!$A$16 -> 5.415 | F42: 0.285
B43: 44 | C43: Estructura doble 2P 600 | D43: €/m2 | E43: =F43*Datos!$A$16 -> 6.004 | F43: 0.316
B44: 62 | C44: Estructura doble 2P 400 | D44: €/m2 | E44: =F44*Datos!$A$16 -> 7.011 | F44: 0.369
B45: 63 | C45: Techo fuego | D45: €/m2 | E45: =F45*Datos!$A$16 -> 7.695 | F45: 0.405
B46: 64 | D46: €/m2 | E46: =F46*Datos!$A$16 -> 0
C47: TC SECUNDARIO (modulación 400) | D47: ml | E47: 2.8
C48: TC SECUNDARIO (modulación 600) | D48: ml | E48: 1.96
C49: TC PRIMARIO (1100 mm) | D49: ml | E49: 1.1
C50: Anclajes simple 400 (1100mm) | D50: ud | E50: 2.9
C51: Anclajes simple 600 (1100mm) | D51: ud | E51: 2.1
C52: Anclajes doble (primarios 1100mm) | D52: ud | E52: 1.21
C53: Abrazaderas doble 600 | D53: ud | E53: 1.95
C54: Abrazaderas doble 400 | D54: ud | E54: 2.81
C55: Perfil GL (1000 mm) | D55: ml | E55: 1.21
C56: Anclajes GL (3000mm) | D56: ud | E56: 0.65
C57: Abrazaderas GL (modulacion 600) | D57: ud | E57: 2.18
C58: Abrazaderas GL (modulacion 400) | D58: ud | E58: 3.13
C59: Anclajes semidirecto (modulación 600) | D59: ud | E59: 6.8
C60: Anclajes semidirecto (modulación 400) | D60: ud | E60: 9.74
D61: €/m2
D62: €/m2
C63: RENDIMIENTO ACABADO Q3 | D63: €/m2 | E63: =F63*Datos!$A$16 -> 2.014 | F63: 0.106
C64: RENDIMIENTO ACABADO Q4 | D64: €/m2 | E64: =F64*Datos!$A$16 -> 5.0065 | F64: 0.2635
C65: RENDIMIENTO ACABADO Q3 - DOBLE PLACA | D65: €/m2 | E65: =F65*Datos!$A$16 -> 4.085 | F65: 0.215
C66: RENDIMIENTO ACABADO Q4 | D66: €/m2 | E66: =F66*Datos!$A$16 -> 7.011 | F66: 0.369
D67: €/m2
A68: 480922001 | C68: HORQUILLA TC47 (100) | D68: ud | E68: 6 | F68: 100
D69: €/m2
D70: €/m2
D71: €/m2
D72: €/m2
D73: €/m2
D74: €/m2
D75: €/m2
D76: €/m2
D77: €/m2
D78: €/m2
D79: €/m2
D80: €/m2
D81: €/m2
D82: €/m2
D83: €/m2
D84: €/m2
D85: €/m2
D86: €/m2
D87: €/m2
D88: €/m2
D89: €/m2
D90: €/m2
D91: €/m2
D92: €/m2
D93: €/m2
D94: €/m2
D95: €/m2
D96: €/m2
D97: €/m2
D98: €/m2
D99: €/m2
D100: €/m2
D101: €/m2
B102: 42 | D102: €/m2
B103: 43 | D103: €/m2
B104: 44 | D104: €/m2
B105: 62 | D105: €/m2
B106: 63 | D106: €/m2
B107: 64 | D107: €/m2
B108: 42 | D108: €/m2
B109: 43 | D109: €/m2 | E109: =F36*Datos!$A$16 -> 0
B110: 44 | D110: €/m2 | E110: =F37*Datos!$A$16 -> 4.503
B111: 62 | D111: €/m2 | E111: =F38*Datos!$A$16 -> 5.415
B112: 63 | D112: €/m2 | E112: =F39*Datos!$A$16 -> 6.004
B113: 64 | D113: €/m2 | E113: =F40*Datos!$A$16 -> 7.011
B114: 42 | D114: €/m2 | E114: =F41*Datos!$A$16 -> 4.503
B115: 43 | D115: €/m2 | E115: =F42*Datos!$A$16 -> 5.415
B116: 44 | D116: €/m2 | E116: =F43*Datos!$A$16 -> 6.004
B117: 62 | D117: €/m2 | E117: =F44*Datos!$A$16 -> 7.011
B118: 63 | D118: €/m2 | E118: =F45*Datos!$A$16 -> 7.695
B119: 64 | D119: €/m2 | E119: =F46*Datos!$A$16 -> 0
D120: €/m2
D121: €/m2
D122: €/m2
D123: €/m2
D124: €/m2
D125: €/m2
D126: €/m2
D127: €/m2
D128: €/m2
D129: €/m2
D130: €/m2
D131: €/m2
D132: €/m2
D133: €/m2
D134: €/m2
D135: €/m2
D136: €/m2
D137: €/m2
D138: €/m2
D139: €/m2
D140: €/m2
C141: NOTA: Rendimientos calculados teniendo en cuenta un despedicio del 2% en las placas y del 5% en el resto del sistema.

Sheet Imágenes 2D (hidden)
B2: 1 | C2: 2 | D2: 3 | E2: 4 | F2: 5 | G2: 6 | H2: 2 | I2: 3 | J2: 4 | L2: 1 | M2: 2 | N2: 3 | O2: 4
A3: Techo simple placa simple
B5: 1 | C5: 2 | D5: 3 | E5: 4 | F5: 5 | G5: 6 | H5: 2 | I5: 3 | J5: 4 | L5: 1 | M5: 2 | N5: 3 | O5: 4
A6: Techo simple placa doble

Sheet Imágenes 3D (hidden)
B2: 1 | C2: 2 | D2: 3 | E2: 4 | F2: 5 | G2: 6 | I2: 1 | J2: 2 | K2: 3 | L2: 4 | N2: 1 | O2: 2 | P2: 3 | Q2: 4
A3: Techo doble placa simple
B5: 1 | C5: 2 | D5: 3 | E5: 4 | F5: 5 | G5: 6 | I5: 1 | J5: 2 | K5: 3 | L5: 4 | N5: 1 | O5: 2 | P5: 3 | Q5: 4
A6: Techo doble placa doble

Sheet Índice sistemas
B4: ESTRUCTURA SIMPLE | C4: CÓDIGO | D4: ID | E4: SISTEMAS | F4: M | G4: M | H4: P | I4: Descripción Basic | J4: Descripción Hidro | K4: Descripción Fuego | L4: Descripción Resist | M4: Descripción HidroPlus | N4: Descripción Suprem
A5: PLACA SIMPLE | C5: =F5*100+G5*100+H5 -> 44713 | D5: 1.1.1 | E5: TECHO SIMPLE / ESTRUCTURA SIMPLE ATT® 47 / 400 1x13 | F5: 400 | G5: 47 | H5: 13 | I5: Techo continuo formado por una placa BASIC de 13 mm de espesor compuesta por yeso natural, fibra de vidrio y aditivos inorgánicos que le aportan alta dureza y resistencia mecánica. Reacción al fuego: EUROCLASE A1. Sistema de galces desiguales: las placas encajan entre ellas dejando una entrecalle de 3 mm por donde se inserte la pasta de juntas. Este sistema no utiliza cinta de papel. La pasta de juntas se aplica en las cavidades de las placas y una masilla elástica en los encuentros. Suspendido mediante una estructura simple de perfiles TC47 en acero galvanizado de 0,6 mm de espesor con modulación de 400 mm entre ejes y unidos al forjado mediante varilla roscada galvanizada y horquilla TC47. Incluida la parte proporcional del resto de materiales: tornillería, pasta de juntas, masilla para encuentros perimetrales, fijaciones, junta estanca, etc. Montaje según norma de instalación UNE 102043 y exigencias del CTE. | J5: Techo continuo formado por una placa HIDRO de 13 mm de espesor compuesta por yeso natural, fibra de vidrio y aditivos inorgánicos que le aportan alta dureza y resistencia mecánica. Incorpora tratamiento hidrófugo, disminuyendo así, su capacidad de absorción de agua (menor al 5%). Idónea para proteger las estancias de los efectos adversos de la humedad. Reacción al fuego: EUROCLASE A1. Sistema de galces desiguales: las placas encajan entre ellas dejando una entrecalle de 3 mm por donde se inserte la pasta de juntas. Este sistema no utiliza cinta de papel. La pasta de juntas se aplica en las cavidades de las placas y una masilla elástica en los encuentros. Suspendido mediante una estructura simple de perfiles TC47 en acero galvanizado de 0,6 mm de espesor con modulación de 400 mm entre ejes y unidos al forjado mediante varilla roscada galvanizada y horquilla TC47. Incluida la parte proporcional del resto de materiales: tornillería, pasta de juntas, masilla para encuentros perimetrales, fijaciones, junta estanca, etc. Montaje según norma de instalación UNE 102043 y exigencias del CTE. | K5: Techo continuo formado por una placa FUEGO de 13 mm de espesor compuesta por yeso natural, fibra de vidrio y aditivos inorgánicos que le aportan alta dureza y resistencia mecánica. Incorpora perlita y un aumento en la densidad que la hace idónea para un excelente comportamiento y resistencia frente al fuego. Reacción al fuego: EUROCLASE A1. Sistema de galces desiguales: las placas encajan entre ellas dejando una entrecalle de 3 mm por donde se inserte la pasta de juntas. Este sistema no utiliza cinta de papel. La pasta de juntas se aplica en las cavidades de las placas y una masilla elástica en los encuentros. Suspendido mediante una estructura simple de perfiles TC47 en acero galvanizado de 0,6 mm de espesor con modulación de 400 mm entre ejes y unidos al forjado mediante varilla roscada galvanizada y horquilla TC47. Incluida la parte proporcional del resto de materiales: tornillería, pasta de juntas, masilla para encuentros perimetrales, fijaciones, junta estanca, etc. Montaje según norma de instalación UNE 102043 y exigencias del CTE. | L5: Techo continuo formado por una placa RESIST de 13 mm de espesor compuesta por yeso natural, fibra de vidrio y aditivos inorgánicos que le aportan alta dureza y resistencia mecánica. Con mayor cantidad de fibra de vidrio y dosificación modificada, aumenta su densidad, mejorando notablemente la resistencia mecánica. Idónea para lugares con altas exigencias en cuanto a deterioro y desgaste. Reacción al fuego: EUROCLASE A1. Sistema de galces desiguales: las placas encajan entre ellas dejando una entrecalle de 3 mm por donde se inserte la pasta de juntas. Este sistema no utiliza cinta de papel. La pasta de juntas se aplica en las cavidades de las placas y una masilla elástica en los encuentros. Suspendido mediante una estructura simple de perfiles TC47 en acero galvanizado de 0,6 mm de espesor con modulación de 400 mm entre ejes y unidos al forjado mediante varilla roscada galvanizada y horquilla TC47. Incluida la parte proporcional del resto de materiales: tornillería, pasta de juntas, masilla para encuentros perimetrales, fijaciones, junta estanca, etc. Montaje según norma de instalación UNE 102043 y exigencias del CTE. | M5: Techo continuo formado por una placa HIDROPLUS de 13 mm de espesor compuesta por yeso natural, fibra de vidrio y aditivos inorgánicos que le aportan alta dureza y resistencia mecánica. Incorpora tratamiento hidrófugo y un aumento en su densidad, características claves para una elevada resistencia a la humedad (absorción de agua menor al 3%) y una gran resistencia mecánica. Idónea para zonas de intemperie. Reacción al fuego: EUROCLASE A1. Sistema de galces desiguales: las placas encajan entre ellas dejando una entrecalle de 3 mm por donde se inserte la pasta de juntas. Este sistema no utiliza cinta de papel. La pasta de juntas se aplica en las cavidades de las placas y una masilla elástica en los encuentros. Suspendido mediante una estructura simple de perfiles TC47 en acero galvanizado de 0,6 mm de espesor con modulación de 400 mm entre ejes y unidos al forjado mediante varilla roscada galvanizada y horquilla TC47. Incluida la parte proporcional del resto de materiales: tornillería, pasta de juntas, masilla para encuentros perimetrales, fijaciones, junta estanca, etc. Montaje según norma de instalación UNE 102043 y exigencias del CTE. | N5: Techo continuo formado por una placa SUPREM de 13 mm de espesor compuesta por yeso natural, fibra de vidrio y aditivos inorgánicos que le aportan alta dureza y resistencia mecánica. Incorpora tratamiento hidrófugo, perlita y un aumento en la densidad para conseguir soluciones constructivas que cumplan, altos requisitos frente al fuego y una capacidad reducida de absorción de agua. Reacción al fuego: EUROCLASE A1. Sistema de galces desiguales: las placas encajan entre ellas dejando una entrecalle de 3 mm por donde se inserte la pasta de juntas. Este sistema no utiliza cinta de papel. La pasta de juntas se aplica en las cavidades de las placas y una masilla elástica en los encuentros. Suspendido mediante una estructura simple de perfiles TC47 en acero galvanizado de 0,6 mm de espesor con modulación de 400 mm entre ejes y unidos al forjado mediante varilla roscada galvanizada y horquilla TC47. Incluida la parte proporcional del resto de materiales: tornillería, pasta de juntas, masilla para encuentros perimetrales, fijaciones, junta estanca, etc. Montaje según norma de instalación UNE 102043 y exigencias del CTE.
C6: 44715 | D6: 1.1.2 | E6: TECHO SIMPLE / ESTRUCTURA SIMPLE ATT® 47 / 400 1x15 | F6: 400 | G6: 47 | H6: 15 | I6: Techo continuo formado por una placa BASIC de 15 mm de espesor compuesta por yeso natural, fibra de vidrio y aditivos inorgánicos que le aportan alta dureza y resistencia mecánica. Reacción al fuego: EUROCLASE A1. Sistema de galces desiguales: las placas encajan entre ellas dejando una entrecalle de 3 mm por donde se inserte la pasta de juntas. Este sistema no utiliza cinta de papel. La pasta de juntas se aplica en las cavidades de las placas y una masilla elástica en los encuentros. Suspendido mediante una estructura simple de perfiles TC47 en acero galvanizado de 0,6 mm de espesor con modulación de 400 mm entre ejes y unidos al forjado mediante varilla roscada galvanizada y horquilla TC47. Incluida la parte proporcional del resto de materiales: tornillería, pasta de juntas, masilla para encuentros perimetrales, fijaciones, junta estanca, etc. Montaje según norma de instalación UNE 102043 y exigencias del CTE. | J6: Techo continuo formado por una placa HIDRO de 15 mm de espesor compuesta por yeso natural, fibra de vidrio y aditivos inorgánicos que le aportan alta dureza y resistencia mecánica. Incorpora tratamiento hidrófugo, disminuyendo así, su capacidad de absorción de agua (menor al 5%). Idónea para proteger las estancias de los efectos adversos de la humedad. Reacción al fuego: EUROCLASE A1. Sistema de galces desiguales: las placas encajan entre ellas dejando una entrecalle de 3 mm por donde se inserte la pasta de juntas. Este sistema no utiliza cinta de papel. La pasta de juntas se aplica en las cavidades de las placas y una masilla elástica en los encuentros. Suspendido mediante una estructura simple de perfiles TC47 en acero galvanizado de 0,6 mm de espesor con modulación de 400 mm entre ejes y unidos al forjado mediante varilla roscada galvanizada y horquilla TC47. Incluida la parte proporcional del resto de materiales: tornillería, pasta de juntas, masilla para encuentros perimetrales, fijaciones, junta estanca, etc. Montaje según norma de instalación UNE 102043 y exigencias del CTE. | K6: Techo continuo formado por una placa FUEGO de 15 mm de espesor compuesta por yeso natural, fibra de vidrio y aditivos inorgánicos que le aportan alta dureza y resistencia mecánica. Incorpora perlita y un aumento en la densidad que la hace idónea para un excelente comportamiento y resistencia frente al fuego. Reacción al fuego: EUROCLASE A1. Sistema de galces desiguales: las placas encajan entre ellas dejando una entrecalle de 3 mm por donde se inserte la pasta de juntas. Este sistema no utiliza cinta de papel. La pasta de juntas se aplica en las cavidades de las placas y una masilla elástica en los encuentros. Suspendido mediante una estructura simple de perfiles TC47 en acero galvanizado de 0,6 mm de espesor con modulación de 400 mm entre ejes y unidos al forjado mediante varilla roscada galvanizada y horquilla TC47. Incluida la parte proporcional del resto de materiales: tornillería, pasta de juntas, masilla para encuentros perimetrales, fijaciones, junta estanca, etc. Montaje según norma de instalación UNE 102043 y exigencias del CTE. | L6: Techo continuo formado por una placa RESIST de 15 mm de espesor compuesta por yeso natural, fibra de vidrio y aditivos inorgánicos que le aportan alta dureza y resistencia mecánica. Con mayor cantidad de fibra de vidrio y dosificación modificada, aumenta su densidad, mejorando notablemente la resistencia mecánica. Idónea para lugares con altas exigencias en cuanto a deterioro y desgaste. Reacción al fuego: EUROCLASE A1. Sistema de galces desiguales: las placas encajan entre ellas dejando una entrecalle de 3 mm por donde se inserte la pasta de juntas. Este sistema no utiliza cinta de papel. La pasta de juntas se aplica en las cavidades de las placas y una masilla elástica en los encuentros. Suspendido mediante una estructura simple de perfiles TC47 en acero galvanizado de 0,6 mm de espesor con modulación de 400 mm entre ejes y unidos al forjado mediante varilla roscada galvanizada y horquilla TC47. Incluida la parte proporcional del resto de materiales: tornillería, pasta de juntas, masilla para encuentros perimetrales, fijaciones, junta estanca, etc. Montaje según norma de instalación UNE 102043 y exigencias del CTE. | M6: Techo continuo formado por una placa HIDROPLUS de 15 mm de espesor compuesta por yeso natural, fibra de vidrio y aditivos inorgánicos que le aportan alta dureza y resistencia mecánica. Incorpora tratamiento hidrófugo y un aumento en su densidad, características claves para una elevada resistencia a la humedad (absorción de agua menor al 3%) y una gran resistencia mecánica. Idónea para zonas de intemperie. Reacción al fuego: EUROCLASE A1. Sistema de galces desiguales: las placas encajan entre ellas dejando una entrecalle de 3 mm por donde se inserte la pasta de juntas. Este sistema no utiliza cinta de papel. La pasta de juntas se aplica en las cavidades de las placas y una masilla elástica en los encuentros. Suspendido mediante una estructura simple de perfiles TC47 en acero galvanizado de 0,6 mm de espesor con modulación de 400 mm entre ejes y unidos al forjado mediante varilla roscada galvanizada y horquilla TC47. Incluida la parte proporcional del resto de materiales: tornillería, pasta de juntas, masilla para encuentros perimetrales, fijaciones, junta estanca, etc. Montaje según norma de instalación UNE 102043 y exigencias del CTE. | N6: Techo continuo formado por una placa SUPREM de 15 mm de espesor compuesta por yeso natural, fibra de vidrio y aditivos inorgánicos que le aportan alta dureza y resistencia mecánica. Incorpora tratamiento hidrófugo, perlita y un aumento en la densidad para conseguir soluciones constructivas que cumplan, altos requisitos frente al fuego y una capacidad reducida de absorción de agua. Reacción al fuego: EUROCLASE A1. Sistema de galces desiguales: las placas encajan entre ellas dejando una entrecalle de 3 mm por donde se inserte la pasta de juntas. Este sistema no utiliza cinta de papel. La pasta de juntas se aplica en las cavidades de las placas y una masilla elástica en los encuentros. Suspendido mediante una estructura simple de perfiles TC47 en acero galvanizado de 0,6 mm de espesor con modulación de 400 mm entre ejes y unidos al forjado mediante varilla roscada galvanizada y horquilla TC47. Incluida la parte proporcional del resto de materiales: tornillería, pasta de juntas, masilla para encuentros perimetrales, fijaciones, junta estanca, etc. Montaje según norma de instalación UNE 102043 y exigencias del CTE.
C7: 44720 | D7: 1.1.3 | E7: TECHO SIMPLE / ESTRUCTURA SIMPLE ATT® 47 / 400 1x20 | F7: 400 | G7: 47 | H7: 20 | I7: Techo continuo formado por una placa BASIC de 20 mm de espesor compuesta por yeso natural, fibra de vidrio y aditivos inorgánicos que le aportan alta dureza y resistencia mecánica. Reacción al fuego: EUROCLASE A1. Sistema de galces desiguales: las placas encajan entre ellas dejando una entrecalle de 3 mm por donde se inserte la pasta de juntas. Este sistema no utiliza cinta de papel. La pasta de juntas se aplica en las cavidades de las placas y una masilla elástica en los encuentros. Suspendido mediante una estructura simple de perfiles TC47 en acero galvanizado de 0,6 mm de espesor con modulación de 400 mm entre ejes y unidos al forjado mediante varilla roscada galvanizada y horquilla TC47. Incluida la parte proporcional del resto de materiales: tornillería, pasta de juntas, masilla para encuentros perimetrales, fijaciones, junta estanca, etc. Montaje según norma de instalación UNE 102043 y exigencias del CTE. | J7: Techo continuo formado por una placa HIDRO de 20 mm de espesor compuesta por yeso natural, fibra de vidrio y aditivos inorgánicos que le aportan alta dureza y resistencia mecánica. Incorpora tratamiento hidrófugo, disminuyendo así, su capacidad de absorción de agua (menor al 5%). Idónea para proteger las estancias de los efectos adversos de la humedad. Reacción al fuego: EUROCLASE A1. Sistema de galces desiguales: las placas encajan entre ellas dejando una entrecalle de 3 mm por donde se inserte la pasta de juntas. Este sistema no utiliza cinta de papel. La pasta de juntas se aplica en las cavidades de las placas y una masilla elástica en los encuentros. Suspendido mediante una estructura simple de perfiles TC47 en acero galvanizado de 0,6 mm de espesor con modulación de 400 mm entre ejes y unidos al forjado mediante varilla roscada galvanizada y horquilla TC47. Incluida la parte proporcional del resto de materiales: tornillería, pasta de juntas, masilla para encuentros perimetrales, fijaciones, junta estanca, etc. Montaje según norma de instalación UNE 102043 y exigencias del CTE. | K7: Techo continuo formado por una placa FUEGO de 20 mm de espesor compuesta por yeso natural, fibra de vidrio y aditivos inorgánicos que le aportan alta dureza y resistencia mecánica. Incorpora perlita y un aumento en la densidad que la hace idónea para un excelente comportamiento y resistencia frente al fuego. Reacción al fuego: EUROCLASE A1. Sistema de galces desiguales: las placas encajan entre ellas dejando una entrecalle de 3 mm por donde se inserte la pasta de juntas. Este sistema no utiliza cinta de papel. La pasta de juntas se aplica en las cavidades de las placas y una masilla elástica en los encuentros. Suspendido mediante una estructura simple de perfiles TC47 en acero galvanizado de 0,6 mm de espesor con modulación de 400 mm entre ejes y unidos al forjado mediante varilla roscada galvanizada y horquilla TC47. Incluida la parte proporcional del resto de materiales: tornillería, pasta de juntas, masilla para encuentros perimetrales, fijaciones, junta estanca, etc. Montaje según norma de instalación UNE 102043 y exigencias del CTE. | L7: Techo continuo formado por una placa RESIST de 20 mm de espesor compuesta por yeso natural, fibra de vidrio y aditivos inorgánicos que le aportan alta dureza y resistencia mecánica. Con mayor cantidad de fibra de vidrio y dosificación modificada, aumenta su densidad, mejorando notablemente la resistencia mecánica. Idónea para lugares con altas exigencias en cuanto a deterioro y desgaste. Reacción al fuego: EUROCLASE A1. Sistema de galces desiguales: las placas encajan entre ellas dejando una entrecalle de 3 mm por donde se inserte la pasta de juntas. Este sistema no utiliza cinta de papel. La pasta de juntas se aplica en las cavidades de las placas y una masilla elástica en los encuentros. Suspendido mediante una estructura simple de perfiles TC47 en acero galvanizado de 0,6 mm de espesor con modulación de 400 mm entre ejes y unidos al forjado mediante varilla roscada galvanizada y horquilla TC47. Incluida la parte proporcional del resto de materiales: tornillería, pasta de juntas, masilla para encuentros perimetrales, fijaciones, junta estanca, etc. Montaje según norma de instalación UNE 102043 y exigencias del CTE. | M7: Techo continuo formado por una placa HIDROPLUS de 20 mm de espesor compuesta por yeso natural, fibra de vidrio y aditivos inorgánicos que le aportan alta dureza y resistencia mecánica. Incorpora tratamiento hidrófugo y un aumento en su densidad, características claves para una elevada resistencia a la humedad (absorción de agua menor al 3%) y una gran resistencia mecánica. Idónea para zonas de intemperie. Reacción al fuego: EUROCLASE A1. Sistema de galces desiguales: las placas encajan entre ellas dejando una entrecalle de 3 mm por donde se inserte la pasta de juntas. Este sistema no utiliza cinta de papel. La pasta de juntas se aplica en las cavidades de las placas y una masilla elástica en los encuentros. Suspendido mediante una estructura simple de perfiles TC47 en acero galvanizado de 0,6 mm de espesor con modulación de 400 mm entre ejes y unidos al forjado mediante varilla roscada galvanizada y horquilla TC47. Incluida la parte proporcional del resto de materiales: tornillería, pasta de juntas, masilla para encuentros perimetrales, fijaciones, junta estanca, etc. Montaje según norma de instalación UNE 102043 y exigencias del CTE. | N7: Techo continuo formado por una placa SUPREM de 20 mm de espesor compuesta por yeso natural, fibra de vidrio y aditivos inorgánicos que le aportan alta dureza y resistencia mecánica. Incorpora tratamiento hidrófugo, perlita y un aumento en la densidad para conseguir soluciones constructivas que cumplan, altos requisitos frente al fuego y una capacidad reducida de absorción de agua. Reacción al fuego: EUROCLASE A1. Sistema de galces desiguales: las placas encajan entre ellas dejando una entrecalle de 3 mm por donde se inserte la pasta de juntas. Este sistema no utiliza cinta de papel. La pasta de juntas se aplica en las cavidades de las placas y una masilla elástica en los encuentros. Suspendido mediante una estructura simple de perfiles TC47 en acero galvanizado de 0,6 mm de espesor con modulación de 400 mm entre ejes y unidos al forjado mediante varilla roscada galvanizada y horquilla TC47. Incluida la parte proporcional del resto de materiales: tornillería, pasta de juntas, masilla para encuentros perimetrales, fijaciones, junta estanca, etc. Montaje según norma de instalación UNE 102043 y exigencias del CTE.
C8: 64713 | D8: 1.1.4 | E8: TECHO SIMPLE / ESTRUCTURA SIMPLE ATT® 47 / 600 1x13 | F8: 600 | G8: 47 | H8: 13 | I8: Techo continuo formado por una placa BASIC de 13 mm de espesor compuesta por yeso natural, fibra de vidrio y aditivos inorgánicos que le aportan alta dureza y resistencia mecánica. Reacción al fuego: EUROCLASE A1. Sistema de galces desiguales: las placas encajan entre ellas dejando una entrecalle de 3 mm por donde se inserte la pasta de juntas. Este sistema no utiliza cinta de papel. La pasta de juntas se aplica en las cavidades de las placas y una masilla elástica en los encuentros. Suspendido mediante una estructura simple de perfiles TC47 en acero galvanizado de 0,6 mm de espesor con modulación de 600 mm entre ejes y unidos al forjado mediante varilla roscada galvanizada y horquilla TC47. Incluida la parte proporcional del resto de materiales: tornillería, pasta de juntas, masilla para encuentros perimetrales, fijaciones, junta estanca, etc. Montaje según norma de instalación UNE 102043 y exigencias del CTE. | J8: Techo continuo formado por una placa HIDRO de 13 mm de espesor compuesta por yeso natural, fibra de vidrio y aditivos inorgánicos que le aportan alta dureza y resistencia mecánica. Incorpora tratamiento hidrófugo, disminuyendo así, su capacidad de absorción de agua (menor al 5%). Idónea para proteger las estancias de los efectos adversos de la humedad. Reacción al fuego: EUROCLASE A1. Sistema de galces desiguales: las placas encajan entre ellas dejando una entrecalle de 3 mm por donde se inserte la pasta de juntas. Este sistema no utiliza cinta de papel. La pasta de juntas se aplica en las cavidades de las placas y una masilla elástica en los encuentros. Suspendido mediante una estructura simple de perfiles TC47 en acero galvanizado de 0,6 mm de espesor con modulación de 600 mm entre ejes y unidos al forjado mediante varilla roscada galvanizada y horquilla TC47. Incluida la parte proporcional del resto de materiales: tornillería, pasta de juntas, masilla para encuentros perimetrales, fijaciones, junta estanca, etc. Montaje según norma de instalación UNE 102043 y exigencias del CTE. | K8: Techo continuo formado por una placa FUEGO de 13 mm de espesor compuesta por yeso natural, fibra de vidrio y aditivos inorgánicos que le aportan alta dureza y resistencia mecánica. Incorpora perlita y un aumento en la densidad que la hace idónea para un excelente comportamiento y resistencia frente al fuego. Reacción al fuego: EUROCLASE A1. Sistema de galces desiguales: las placas encajan entre ellas dejando una entrecalle de 3 mm por donde se inserte la pasta de juntas. Este sistema no utiliza cinta de papel. La pasta de juntas se aplica en las cavidades de las placas y una masilla elástica en los encuentros. Suspendido mediante una estructura simple de perfiles TC47 en acero galvanizado de 0,6 mm de espesor con modulación de 600 mm entre ejes y unidos al forjado mediante varilla roscada galvanizada y horquilla TC47. Incluida la parte proporcional del resto de materiales: tornillería, pasta de juntas, masilla para encuentros perimetrales, fijaciones, junta estanca, etc. Montaje según norma de instalación UNE 102043 y exigencias del CTE. | L8: Techo continuo formado por una placa RESIST de 13 mm de espesor compuesta por yeso natural, fibra de vidrio y aditivos inorgánicos que le aportan alta dureza y resistencia mecánica. Con mayor cantidad de fibra de vidrio y dosificación modificada, aumenta su densidad, mejorando notablemente la resistencia mecánica. Idónea para lugares con altas exigencias en cuanto a deterioro y desgaste. Reacción al fuego: EUROCLASE A1. Sistema de galces desiguales: las placas encajan entre ellas dejando una entrecalle de 3 mm por donde se inserte la pasta de juntas. Este sistema no utiliza cinta de papel. La pasta de juntas se aplica en las cavidades de las placas y una masilla elástica en los encuentros. Suspendido mediante una estructura simple de perfiles TC47 en acero galvanizado de 0,6 mm de espesor con modulación de 600 mm entre ejes y unidos al forjado mediante varilla roscada galvanizada y horquilla TC47. Incluida la parte proporcional del resto de materiales: tornillería, pasta de juntas, masilla para encuentros perimetrales, fijaciones, junta estanca, etc. Montaje según norma de instalación UNE 102043 y exigencias del CTE. | M8: Techo continuo formado por una placa HIDROPLUS de 13 mm de espesor compuesta por yeso natural, fibra de vidrio y aditivos inorgánicos que le aportan alta dureza y resistencia mecánica. Incorpora tratamiento hidrófugo y un aumento en su densidad, características claves para una elevada resistencia a la humedad (absorción de agua menor al 3%) y una gran resistencia mecánica. Idónea para zonas de intemperie. Reacción al fuego: EUROCLASE A1. Sistema de galces desiguales: las placas encajan entre ellas dejando una entrecalle de 3 mm por donde se inserte la pasta de juntas. Este sistema no utiliza cinta de papel. La pasta de juntas se aplica en las cavidades de las placas y una masilla elástica en los encuentros. Suspendido mediante una estructura simple de perfiles TC47 en acero galvanizado de 0,6 mm de espesor con modulación de 600 mm entre ejes y unidos al forjado mediante varilla roscada galvanizada y horquilla TC47. Incluida la parte proporcional del resto de materiales: tornillería, pasta de juntas, masilla para encuentros perimetrales, fijaciones, junta estanca, etc. Montaje según norma de instalación UNE 102043 y exigencias del CTE. | N8: Techo continuo formado por una placa SUPREM de 13 mm de espesor compuesta por yeso natural, fibra de vidrio y aditivos inorgánicos que le aportan alta dureza y resistencia mecánica. Incorpora tratamiento hidrófugo, perlita y un aumento en la densidad para conseguir soluciones constructivas que cumplan, altos requisitos frente al fuego y una capacidad reducida de absorción de agua. Reacción al fuego: EUROCLASE A1. Sistema de galces desiguales: las placas encajan entre ellas dejando una entrecalle de 3 mm por donde se inserte la pasta de juntas. Este sistema no utiliza cinta de papel. La pasta de juntas se aplica en las cavidades de las placas y una masilla elástica en los encuentros. Suspendido mediante una estructura simple de perfiles TC47 en acero galvanizado de 0,6 mm de espesor con modulación de 600 mm entre ejes y unidos al forjado mediante varilla roscada galvanizada y horquilla TC47. Incluida la parte proporcional del resto de materiales: tornillería, pasta de juntas, masilla para encuentros perimetrales, fijaciones, junta estanca, etc. Montaje según norma de instalación UNE 102043 y exigencias del CTE.
C9: 64715 | D9: 1.1.5 | E9: TECHO SIMPLE / ESTRUCTURA SIMPLE ATT® 47 / 600 1x15 | F9: 600 | G9: 47 | H9: 15 | I9: Techo continuo formado por una placa BASIC de 15 mm de espesor compuesta por yeso natural, fibra de vidrio y aditivos inorgánicos que le aportan alta dureza y resistencia mecánica. Reacción al fuego: EUROCLASE A1. Sistema de galces desiguales: las placas encajan entre ellas dejando una entrecalle de 3 mm por donde se inserte la pasta de juntas. Este sistema no utiliza cinta de papel. La pasta de juntas se aplica en las cavidades de las placas y una masilla elástica en los encuentros. Suspendido mediante una estructura simple de perfiles TC47 en acero galvanizado de 0,6 mm de espesor con modulación de 600 mm entre ejes y unidos al forjado mediante varilla roscada galvanizada y horquilla TC47. Incluida la parte proporcional del resto de materiales: tornillería, pasta de juntas, masilla para encuentros perimetrales, fijaciones, junta estanca, etc. Montaje según norma de instalación UNE 102043 y exigencias del CTE. | J9: Techo continuo formado por una placa HIDRO de 15 mm de espesor compuesta por yeso natural, fibra de vidrio y aditivos inorgánicos que le aportan alta dureza y resistencia mecánica. Incorpora tratamiento hidrófugo, disminuyendo así, su capacidad de absorción de agua (menor al 5%). Idónea para proteger las estancias de los efectos adversos de la humedad. Reacción al fuego: EUROCLASE A1. Sistema de galces desiguales: las placas encajan entre ellas dejando una entrecalle de 3 mm por donde se inserte la pasta de juntas. Este sistema no utiliza cinta de papel. La pasta de juntas se aplica en las cavidades de las placas y una masilla elástica en los encuentros. Suspendido mediante una estructura simple de perfiles TC47 en acero galvanizado de 0,6 mm de espesor con modulación de 600 mm entre ejes y unidos al forjado mediante varilla roscada galvanizada y horquilla TC47. Incluida la parte proporcional del resto de materiales: tornillería, pasta de juntas, masilla para encuentros perimetrales, fijaciones, junta estanca, etc. Montaje según norma de instalación UNE 102043 y exigencias del CTE. | K9: Techo continuo formado por una placa FUEGO de 15 mm de espesor compuesta por yeso natural, fibra de vidrio y aditivos inorgánicos que le aportan alta dureza y resistencia mecánica. Incorpora perlita y un aumento en la densidad que la hace idónea para un excelente comportamiento y resistencia frente al fuego. Reacción al fuego: EUROCLASE A1. Sistema de galces desiguales: las placas encajan entre ellas dejando una entrecalle de 3 mm por donde se inserte la pasta de juntas. Este sistema no utiliza cinta de papel. La pasta de juntas se aplica en las cavidades de las placas y una masilla elástica en los encuentros. Suspendido mediante una estructura simple de perfiles TC47 en acero galvanizado de 0,6 mm de espesor con modulación de 600 mm entre ejes y unidos al forjado mediante varilla roscada galvanizada y horquilla TC47. Incluida la parte proporcional del resto de materiales: tornillería, pasta de juntas, masilla para encuentros perimetrales, fijaciones, junta estanca, etc. Montaje según norma de instalación UNE 102043 y exigencias del CTE. | L9: Techo continuo formado por una placa RESIST de 15 mm de espesor compuesta por yeso natural, fibra de vidrio y aditivos inorgánicos que le aportan alta dureza y resistencia mecánica. Con mayor cantidad de fibra de vidrio y dosificación modificada, aumenta su densidad, mejorando notablemente la resistencia mecánica. Idónea para lugares con altas exigencias en cuanto a deterioro y desgaste. Reacción al fuego: EUROCLASE A1. Sistema de galces desiguales: las placas encajan entre ellas dejando una entrecalle de 3 mm por donde se inserte la pasta de juntas. Este sistema no utiliza cinta de papel. La pasta de juntas se aplica en las cavidades de las placas y una masilla elástica en los encuentros. Suspendido mediante una estructura simple de perfiles TC47 en acero galvanizado de 0,6 mm de espesor con modulación de 600 mm entre ejes y unidos al forjado mediante varilla roscada galvanizada y horquilla TC47. Incluida la parte proporcional del resto de materiales: tornillería, pasta de juntas, masilla para encuentros perimetrales, fijaciones, junta estanca, etc. Montaje según norma de instalación UNE 102043 y exigencias del CTE. | M9: Techo continuo formado por una placa HIDROPLUS de 15 mm de espesor compuesta por yeso natural, fibra de vidrio y aditivos inorgánicos que le aportan alta dureza y resistencia mecánica. Incorpora tratamiento hidrófugo y un aumento en su densidad, características claves para una elevada resistencia a la humedad (absorción de agua menor al 3%) y una gran resistencia mecánica. Idónea para zonas de intemperie. Reacción al fuego: EUROCLASE A1. Sistema de galces desiguales: las placas encajan entre ellas dejando una entrecalle de 3 mm por donde se inserte la pasta de juntas. Este sistema no utiliza cinta de papel. La pasta de juntas se aplica en las cavidades de las placas y una masilla elástica en los encuentros. Suspendido mediante una estructura simple de perfiles TC47 en acero galvanizado de 0,6 mm de espesor con modulación de 600 mm entre ejes y unidos al forjado mediante varilla roscada galvanizada y horquilla TC47. Incluida la parte proporcional del resto de materiales: tornillería, pasta de juntas, masilla para encuentros perimetrales, fijaciones, junta estanca, etc. Montaje según norma de instalación UNE 102043 y exigencias del CTE. | N9: Techo continuo formado por una placa SUPREM de 15 mm de espesor compuesta por yeso natural, fibra de vidrio y aditivos inorgánicos que le aportan alta dureza y resistencia mecánica. Incorpora tratamiento hidrófugo, perlita y un aumento en la densidad para conseguir soluciones constructivas que cumplan, altos requisitos frente al fuego y una capacidad reducida de absorción de agua. Reacción al fuego: EUROCLASE A1. Sistema de galces desiguales: las placas encajan entre ellas dejando una entrecalle de 3 mm por donde se inserte la pasta de juntas. Este sistema no utiliza cinta de papel. La pasta de juntas se aplica en las cavidades de las placas y una masilla elástica en los encuentros. Suspendido mediante una estructura simple de perfiles TC47 en acero galvanizado de 0,6 mm de espesor con modulación de 600 mm entre ejes y unidos al forjado mediante varilla roscada galvanizada y horquilla TC47. Incluida la parte proporcional del resto de materiales: tornillería, pasta de juntas, masilla para encuentros perimetrales, fijaciones, junta estanca, etc. Montaje según norma de instalación UNE 102043 y exigencias del CTE.
C10: 64720 | D10: 1.1.6 | E10: TECHO SIMPLE / ESTRUCTURA SIMPLE ATT® 47 / 600 1x20 | F10: 600 | G10: 47 | H10: 20 | I10: Techo continuo formado por una placa BASIC de 20 mm de espesor compuesta por yeso natural, fibra de vidrio y aditivos inorgánicos que le aportan alta dureza y resistencia mecánica. Reacción al fuego: EUROCLASE A1. Sistema de galces desiguales: las placas encajan entre ellas dejando una entrecalle de 3 mm por donde se inserte la pasta de juntas. Este sistema no utiliza cinta de papel. La pasta de juntas se aplica en las cavidades de las placas y una masilla elástica en los encuentros. Suspendido mediante una estructura simple de perfiles TC47 en acero galvanizado de 0,6 mm de espesor con modulación de 600 mm entre ejes y unidos al forjado mediante varilla roscada galvanizada y horquilla TC47. Incluida la parte proporcional del resto de materiales: tornillería, pasta de juntas, masilla para encuentros perimetrales, fijaciones, junta estanca, etc. Montaje según norma de instalación UNE 102043 y exigencias del CTE. | J10: Techo continuo formado por una placa HIDRO de 20 mm de espesor compuesta por yeso natural, fibra de vidrio y aditivos inorgánicos que le aportan alta dureza y resistencia mecánica. Incorpora tratamiento hidrófugo, disminuyendo así, su capacidad de absorción de agua (menor al 5%). Idónea para proteger las estancias de los efectos adversos de la humedad. Reacción al fuego: EUROCLASE A1. Sistema de galces desiguales: las placas encajan entre ellas dejando una entrecalle de 3 mm por donde se inserte la pasta de juntas. Este sistema no utiliza cinta de papel. La pasta de juntas se aplica en las cavidades de las placas y una masilla elástica en los encuentros. Suspendido mediante una estructura simple de perfiles TC47 en acero galvanizado de 0,6 mm de espesor con modulación de 600 mm entre ejes y unidos al forjado mediante varilla roscada galvanizada y horquilla TC47. Incluida la parte proporcional del resto de materiales: tornillería, pasta de juntas, masilla para encuentros perimetrales, fijaciones, junta estanca, etc. Montaje según norma de instalación UNE 102043 y exigencias del CTE. | K10: Techo continuo formado por una placa FUEGO de 20 mm de espesor compuesta por yeso natural, fibra de vidrio y aditivos inorgánicos que le aportan alta dureza y resistencia mecánica. Incorpora perlita y un aumento en la densidad que la hace idónea para un excelente comportamiento y resistencia frente al fuego. Reacción al fuego: EUROCLASE A1. Sistema de galces desiguales: las placas encajan entre ellas dejando una entrecalle de 3 mm por donde se inserte la pasta de juntas. Este sistema no utiliza cinta de papel. La pasta de juntas se aplica en las cavidades de las placas y una masilla elástica en los encuentros. Suspendido mediante una estructura simple de perfiles TC47 en acero galvanizado de 0,6 mm de espesor con modulación de 600 mm entre ejes y unidos al forjado mediante varilla roscada galvanizada y horquilla TC47. Incluida la parte proporcional del resto de materiales: tornillería, pasta de juntas, masilla para encuentros perimetrales, fijaciones, junta estanca, etc. Montaje según norma de instalación UNE 102043 y exigencias del CTE. | L10: Techo continuo formado por una placa RESIST de 20 mm de espesor compuesta por yeso natural, fibra de vidrio y aditivos inorgánicos que le aportan alta dureza y resistencia mecánica. Con mayor cantidad de fibra de vidrio y dosificación modificada, aumenta su densidad, mejorando notablemente la resistencia mecánica. Idónea para lugares con altas exigencias en cuanto a deterioro y desgaste. Reacción al fuego: EUROCLASE A1. Sistema de galces desiguales: las placas encajan entre ellas dejando una entrecalle de 3 mm por donde se inserte la pasta de juntas. Este sistema no utiliza cinta de papel. La pasta de juntas se aplica en las cavidades de las placas y una masilla elástica en los encuentros. Suspendido mediante una estructura simple de perfiles TC47 en acero galvanizado de 0,6 mm de espesor con modulación de 600 mm entre ejes y unidos al forjado mediante varilla roscada galvanizada y horquilla TC47. Incluida la parte proporcional del resto de materiales: tornillería, pasta de juntas, masilla para encuentros perimetrales, fijaciones, junta estanca, etc. Montaje según norma de instalación UNE 102043 y exigencias del CTE. | M10: Techo continuo formado por una placa HIDROPLUS de 20 mm de espesor compuesta por yeso natural, fibra de vidrio y aditivos inorgánicos que le aportan alta dureza y resistencia mecánica. Incorpora tratamiento hidrófugo y un aumento en su densidad, características claves para una elevada resistencia a la humedad (absorción de agua menor al 3%) y una gran resistencia mecánica. Idónea para zonas de intemperie. Reacción al fuego: EUROCLASE A1. Sistema de galces desiguales: las placas encajan entre ellas dejando una entrecalle de 3 mm por donde se inserte la pasta de juntas. Este sistema no utiliza cinta de papel. La pasta de juntas se aplica en las cavidades de las placas y una masilla elástica en los encuentros. Suspendido mediante una estructura simple de perfiles TC47 en acero galvanizado de 0,6 mm de espesor con modulación de 600 mm entre ejes y unidos al forjado mediante varilla roscada galvanizada y horquilla TC47. Incluida la parte proporcional del resto de materiales: tornillería, pasta de juntas, masilla para encuentros perimetrales, fijaciones, junta estanca, etc. Montaje según norma de instalación UNE 102043 y exigencias del CTE. | N10: Techo continuo formado por una placa SUPREM de 20 mm de espesor compuesta por yeso natural, fibra de vidrio y aditivos inorgánicos que le aportan alta dureza y resistencia mecánica. Incorpora tratamiento hidrófugo, perlita y un aumento en la densidad para conseguir soluciones constructivas que cumplan, altos requisitos frente al fuego y una capacidad reducida de absorción de agua. Reacción al fuego: EUROCLASE A1. Sistema de galces desiguales: las placas encajan entre ellas dejando una entrecalle de 3 mm por donde se inserte la pasta de juntas. Este sistema no utiliza cinta de papel. La pasta de juntas se aplica en las cavidades de las placas y una masilla elástica en los encuentros. Suspendido mediante una estructura simple de perfiles TC47 en acero galvanizado de 0,6 mm de espesor con modulación de 600 mm entre ejes y unidos al forjado mediante varilla roscada galvanizada y horquilla TC47. Incluida la parte proporcional del resto de materiales: tornillería, pasta de juntas, masilla para encuentros perimetrales, fijaciones, junta estanca, etc. Montaje según norma de instalación UNE 102043 y exigencias del CTE.
C11: 46013 | D11: 1.1.7 | E11: TECHO SIMPLE / ESTRUCTURA SIMPLE ATT® 60 / 400 1x13 | F11: 400 | G11: 60 | H11: 13 | I11: Techo continuo formado por una placa BASIC de 13 mm de espesor compuesta por yeso natural, fibra de vidrio y aditivos inorgánicos que le aportan alta dureza y resistencia mecánica. Reacción al fuego: EUROCLASE A1. Sistema de galces desiguales: las placas encajan entre ellas dejando una entrecalle de 3 mm por donde se inserte la pasta de juntas. Este sistema no utiliza cinta de papel. La pasta de juntas se aplica en las cavidades de las placas y una masilla elástica en los encuentros. Suspendido mediante una estructura simple de perfiles TC60 en acero galvanizado de 0,6 mm de espesor con modulación de 400 mm entre ejes y unidos al forjado mediante varilla roscada galvanizada y horquilla TC60. Incluida la parte proporcional del resto de materiales: tornillería, pasta de juntas, masilla para encuentros perimetrales, fijaciones, junta estanca, etc. Montaje según norma de instalación UNE 102043 y exigencias del CTE. | J11: Techo continuo formado por una placa HIDRO de 13 mm de espesor compuesta por yeso natural, fibra de vidrio y aditivos inorgánicos que le aportan alta dureza y resistencia mecánica. Incorpora tratamiento hidrófugo, disminuyendo así, su capacidad de absorción de agua (menor al 5%). Idónea para proteger las estancias de los efectos adversos de la humedad. Reacción al fuego: EUROCLASE A1. Sistema de galces desiguales: las placas encajan entre ellas dejando una entrecalle de 3 mm por donde se inserte la pasta de juntas. Este sistema no utiliza cinta de papel. La pasta de juntas se aplica en las cavidades de las placas y una masilla elástica en los encuentros. Suspendido mediante una estructura simple de perfiles TC60 en acero galvanizado de 0,6 mm de espesor con modulación de 400 mm entre ejes y unidos al forjado mediante varilla roscada galvanizada y horquilla TC60. Incluida la parte proporcional del resto de materiales: tornillería, pasta de juntas, masilla para encuentros perimetrales, fijaciones, junta estanca, etc. Montaje según norma de instalación UNE 102043 y exigencias del CTE. | K11: Techo continuo formado por una placa FUEGO de 13 mm de espesor compuesta por yeso natural, fibra de vidrio y aditivos inorgánicos que le aportan alta dureza y resistencia mecánica. Incorpora perlita y un aumento en la densidad que la hace idónea para un excelente comportamiento y resistencia frente al fuego. Reacción al fuego: EUROCLASE A1. Sistema de galces desiguales: las placas encajan entre ellas dejando una entrecalle de 3 mm por donde se inserte la pasta de juntas. Este sistema no utiliza cinta de papel. La pasta de juntas se aplica en las cavidades de las placas y una masilla elástica en los encuentros. Suspendido mediante una estructura simple de perfiles TC60 en acero galvanizado de 0,6 mm de espesor con modulación de 400 mm entre ejes y unidos al forjado mediante varilla roscada galvanizada y horquilla TC60. Incluida la parte proporcional del resto de materiales: tornillería, pasta de juntas, masilla para encuentros perimetrales, fijaciones, junta estanca, etc. Montaje según norma de instalación UNE 102043 y exigencias del CTE. | L11: Techo continuo formado por una placa RESIST de 13 mm de espesor compuesta por yeso natural, fibra de vidrio y aditivos inorgánicos que le aportan alta dureza y resistencia mecánica. Con mayor cantidad de fibra de vidrio y dosificación modificada, aumenta su densidad, mejorando notablemente la resistencia mecánica. Idónea para lugares con altas exigencias en cuanto a deterioro y desgaste. Reacción al fuego: EUROCLASE A1. Sistema de galces desiguales: las placas encajan entre ellas dejando una entrecalle de 3 mm por donde se inserte la pasta de juntas. Este sistema no utiliza cinta de papel. La pasta de juntas se aplica en las cavidades de las placas y una masilla elástica en los encuentros. Suspendido mediante una estructura simple de perfiles TC60 en acero galvanizado de 0,6 mm de espesor con modulación de 400 mm entre ejes y unidos al forjado mediante varilla roscada galvanizada y horquilla TC60. Incluida la parte proporcional del resto de materiales: tornillería, pasta de juntas, masilla para encuentros perimetrales, fijaciones, junta estanca, etc. Montaje según norma de instalación UNE 102043 y exigencias del CTE. | M11: Techo continuo formado por una placa HIDROPLUS de 13 mm de espesor compuesta por yeso natural, fibra de vidrio y aditivos inorgánicos que le aportan alta dureza y resistencia mecánica. Incorpora tratamiento hidrófugo y un aumento en su densidad, características claves para una elevada resistencia a la humedad (absorción de agua menor al 3%) y una gran resistencia mecánica. Idónea para zonas de intemperie. Reacción al fuego: EUROCLASE A1. Sistema de galces desiguales: las placas encajan entre ellas dejando una entrecalle de 3 mm por donde se inserte la pasta de juntas. Este sistema no utiliza cinta de papel. La pasta de juntas se aplica en las cavidades de las placas y una masilla elástica en los encuentros. Suspendido mediante una estructura simple de perfiles TC60 en acero galvanizado de 0,6 mm de espesor con modulación de 400 mm entre ejes y unidos al forjado mediante varilla roscada galvanizada y horquilla TC60. Incluida la parte proporcional del resto de materiales: tornillería, pasta de juntas, masilla para encuentros perimetrales, fijaciones, junta estanca, etc. Montaje según norma de instalación UNE 102043 y exigencias del CTE. | N11: Techo continuo formado por una placa SUPREM de 13 mm de espesor compuesta por yeso natural, fibra de vidrio y aditivos inorgánicos que le aportan alta dureza y resistencia mecánica. Incorpora tratamiento hidrófugo, perlita y un aumento en la densidad para conseguir soluciones constructivas que cumplan, altos requisitos frente al fuego y una capacidad reducida de absorción de agua. Reacción al fuego: EUROCLASE A1. Sistema de galces desiguales: las placas encajan entre ellas dejando una entrecalle de 3 mm por donde se inserte la pasta de juntas. Este sistema no utiliza cinta de papel. La pasta de juntas se aplica en las cavidades de las placas y una masilla elástica en los encuentros. Suspendido mediante una estructura simple de perfiles TC60 en acero galvanizado de 0,6 mm de espesor con modulación de 400 mm entre ejes y unidos al forjado mediante varilla roscada galvanizada y horquilla TC60. Incluida la parte proporcional del resto de materiales: tornillería, pasta de juntas, masilla para encuentros perimetrales, fijaciones, junta estanca, etc. Montaje según norma de instalación UNE 102043 y exigencias del CTE.
A12: PLACA DOBLE | C12: 46015 | D12: 1.1.8 | E12: TECHO SIMPLE / ESTRUCTURA SIMPLE ATT® 60 / 400 1x15 | F12: 400 | G12: 60 | H12: 15 | I12: Techo continuo formado por una placa BASIC de 15 mm de espesor compuesta por yeso natural, fibra de vidrio y aditivos inorgánicos que le aportan alta dureza y resistencia mecánica. Reacción al fuego: EUROCLASE A1. Sistema de galces desiguales: las placas encajan entre ellas dejando una entrecalle de 3 mm por donde se inserte la pasta de juntas. Este sistema no utiliza cinta de papel. La pasta de juntas se aplica en las cavidades de las placas y una masilla elástica en los encuentros. Suspendido mediante una estructura simple de perfiles TC60 en acero galvanizado de 0,6 mm de espesor con modulación de 400 mm entre ejes y unidos al forjado mediante varilla roscada galvanizada y horquilla TC60. Incluida la parte proporcional del resto de materiales: tornillería, pasta de juntas, masilla para encuentros perimetrales, fijaciones, junta estanca, etc. Montaje según norma de instalación UNE 102043 y exigencias del CTE. | J12: Techo continuo formado por una placa HIDRO de 15 mm de espesor compuesta por yeso natural, fibra de vidrio y aditivos inorgánicos que le aportan alta dureza y resistencia mecánica. Incorpora tratamiento hidrófugo, disminuyendo así, su capacidad de absorción de agua (menor al 5%). Idónea para proteger las estancias de los efectos adversos de la humedad. Reacción al fuego: EUROCLASE A1. Sistema de galces desiguales: las placas encajan entre ellas dejando una entrecalle de 3 mm por donde se inserte la pasta de juntas. Este sistema no utiliza cinta de papel. La pasta de juntas se aplica en las cavidades de las placas y una masilla elástica en los encuentros. Suspendido mediante una estructura simple de perfiles TC60 en acero galvanizado de 0,6 mm de espesor con modulación de 400 mm entre ejes y unidos al forjado mediante varilla roscada galvanizada y horquilla TC60. Incluida la parte proporcional del resto de materiales: tornillería, pasta de juntas, masilla para encuentros perimetrales, fijaciones, junta estanca, etc. Montaje según norma de instalación UNE 102043 y exigencias del CTE. | K12: Techo continuo formado por una placa FUEGO de 15 mm de espesor compuesta por yeso natural, fibra de vidrio y aditivos inorgánicos que le aportan alta dureza y resistencia mecánica. Incorpora perlita y un aumento en la densidad que la hace idónea para un excelente comportamiento y resistencia frente al fuego. Reacción al fuego: EUROCLASE A1. Sistema de galces desiguales: las placas encajan entre ellas dejando una entrecalle de 3 mm por donde se inserte la pasta de juntas. Este sistema no utiliza cinta de papel. La pasta de juntas se aplica en las cavidades de las placas y una masilla elástica en los encuentros. Suspendido mediante una estructura simple de perfiles TC60 en acero galvanizado de 0,6 mm de espesor con modulación de 400 mm entre ejes y unidos al forjado mediante varilla roscada galvanizada y horquilla TC60. Incluida la parte proporcional del resto de materiales: tornillería, pasta de juntas, masilla para encuentros perimetrales, fijaciones, junta estanca, etc. Montaje según norma de instalación UNE 102043 y exigencias del CTE. | L12: Techo continuo formado por una placa RESIST de 15 mm de espesor compuesta por yeso natural, fibra de vidrio y aditivos inorgánicos que le aportan alta dureza y resistencia mecánica. Con mayor cantidad de fibra de vidrio y dosificación modificada, aumenta su densidad, mejorando notablemente la resistencia mecánica. Idónea para lugares con altas exigencias en cuanto a deterioro y desgaste. Reacción al fuego: EUROCLASE A1. Sistema de galces desiguales: las placas encajan entre ellas dejando una entrecalle de 3 mm por donde se inserte la pasta de juntas. Este sistema no utiliza cinta de papel. La pasta de juntas se aplica en las cavidades de las placas y una masilla elástica en los encuentros. Suspendido mediante una estructura simple de perfiles TC60 en acero galvanizado de 0,6 mm de espesor con modulación de 400 mm entre ejes y unidos al forjado mediante varilla roscada galvanizada y horquilla TC60. Incluida la parte proporcional del resto de materiales: tornillería, pasta de juntas, masilla para encuentros perimetrales, fijaciones, junta estanca, etc. Montaje según norma de instalación UNE 102043 y exigencias del CTE. | M12: Techo continuo formado por una placa HIDROPLUS de 15 mm de espesor compuesta por yeso natural, fibra de vidrio y aditivos inorgánicos que le aportan alta dureza y resistencia mecánica. Incorpora tratamiento hidrófugo y un aumento en su densidad, características claves para una elevada resistencia a la humedad (absorción de agua menor al 3%) y una gran resistencia mecánica. Idónea para zonas de intemperie. Reacción al fuego: EUROCLASE A1. Sistema de galces desiguales: las placas encajan entre ellas dejando una entrecalle de 3 mm por donde se inserte la pasta de juntas. Este sistema no utiliza cinta de papel. La pasta de juntas se aplica en las cavidades de las placas y una masilla elástica en los encuentros. Suspendido mediante una estructura simple de perfiles TC60 en acero galvanizado de 0,6 mm de espesor con modulación de 400 mm entre ejes y unidos al forjado mediante varilla roscada galvanizada y horquilla TC60. Incluida la parte proporcional del resto de materiales: tornillería, pasta de juntas, masilla para encuentros perimetrales, fijaciones, junta estanca, etc. Montaje según norma de instalación UNE 102043 y exigencias del CTE. | N12: Techo continuo formado por una placa SUPREM de 15 mm de espesor compuesta por yeso natural, fibra de vidrio y aditivos inorgánicos que le aportan alta dureza y resistencia mecánica. Incorpora tratamiento hidrófugo, perlita y un aumento en la densidad para conseguir soluciones constructivas que cumplan, altos requisitos frente al fuego y una capacidad reducida de absorción de agua. Reacción al fuego: EUROCLASE A1. Sistema de galces desiguales: las placas encajan entre ellas dejando una entrecalle de 3 mm por donde se inserte la pasta de juntas. Este sistema no utiliza cinta de papel. La pasta de juntas se aplica en las cavidades de las placas y una masilla elástica en los encuentros. Suspendido mediante una estructura simple de perfiles TC60 en acero galvanizado de 0,6 mm de espesor con modulación de 400 mm entre ejes y unidos al forjado mediante varilla roscada galvanizada y horquilla TC60. Incluida la parte proporcional del resto de materiales: tornillería, pasta de juntas, masilla para encuentros perimetrales, fijaciones, junta estanca, etc. Montaje según norma de instalación UNE 102043 y exigencias del CTE.
C13: 46020 | D13: 1.1.9 | E13: TECHO SIMPLE / ESTRUCTURA SIMPLE ATT® 60 / 400 1x20 | F13: 400 | G13: 60 | H13: 20 | I13: Techo continuo formado por una placa BASIC de 20 mm de espesor compuesta por yeso natural, fibra de vidrio y aditivos inorgánicos que le aportan alta dureza y resistencia mecánica. Reacción al fuego: EUROCLASE A1. Sistema de galces desiguales: las placas encajan entre ellas dejando una entrecalle de 3 mm por donde se inserte la pasta de juntas. Este sistema no utiliza cinta de papel. La pasta de juntas se aplica en las cavidades de las placas y una masilla elástica en los encuentros. Suspendido mediante una estructura simple de perfiles TC60 en acero galvanizado de 0,6 mm de espesor con modulación de 400 mm entre ejes y unidos al forjado mediante varilla roscada galvanizada y horquilla TC60. Incluida la parte proporcional del resto de materiales: tornillería, pasta de juntas, masilla para encuentros perimetrales, fijaciones, junta estanca, etc. Montaje según norma de instalación UNE 102043 y exigencias del CTE. | J13: Techo continuo formado por una placa HIDRO de 20 mm de espesor compuesta por yeso natural, fibra de vidrio y aditivos inorgánicos que le aportan alta dureza y resistencia mecánica. Incorpora tratamiento hidrófugo, disminuyendo así, su capacidad de absorción de agua (menor al 5%). Idónea para proteger las estancias de los efectos adversos de la humedad. Reacción al fuego: EUROCLASE A1. Sistema de galces desiguales: las placas encajan entre ellas dejando una entrecalle de 3 mm por donde se inserte la pasta de juntas. Este sistema no utiliza cinta de papel. La pasta de juntas se aplica en las cavidades de las placas y una masilla elástica en los encuentros. Suspendido mediante una estructura simple de perfiles TC60 en acero galvanizado de 0,6 mm de espesor con modulación de 400 mm entre ejes y unidos al forjado mediante varilla roscada galvanizada y horquilla TC60. Incluida la parte proporcional del resto de materiales: tornillería, pasta de juntas, masilla para encuentros perimetrales, fijaciones, junta estanca, etc. Montaje según norma de instalación UNE 102043 y exigencias del CTE. | K13: Techo continuo formado por una placa FUEGO de 20 mm de espesor compuesta por yeso natural, fibra de vidrio y aditivos inorgánicos que le aportan alta dureza y resistencia mecánica. Incorpora perlita y un aumento en la densidad que la hace idónea para un excelente comportamiento y resistencia frente al fuego. Reacción al fuego: EUROCLASE A1. Sistema de galces desiguales: las placas encajan entre ellas dejando una entrecalle de 3 mm por donde se inserte la pasta de juntas. Este sistema no utiliza cinta de papel. La pasta de juntas se aplica en las cavidades de las placas y una masilla elástica en los encuentros. Suspendido mediante una estructura simple de perfiles TC60 en acero galvanizado de 0,6 mm de espesor con modulación de 400 mm entre ejes y unidos al forjado mediante varilla roscada galvanizada y horquilla TC60. Incluida la parte proporcional del resto de materiales: tornillería, pasta de juntas, masilla para encuentros perimetrales, fijaciones, junta estanca, etc. Montaje según norma de instalación UNE 102043 y exigencias del CTE. | L13: Techo continuo formado por una placa RESIST de 20 mm de espesor compuesta por yeso natural, fibra de vidrio y aditivos inorgánicos que le aportan alta dureza y resistencia mecánica. Con mayor cantidad de fibra de vidrio y dosificación modificada, aumenta su densidad, mejorando notablemente la resistencia mecánica. Idónea para lugares con altas exigencias en cuanto a deterioro y desgaste. Reacción al fuego: EUROCLASE A1. Sistema de galces desiguales: las placas encajan entre ellas dejando una entrecalle de 3 mm por donde se inserte la pasta de juntas. Este sistema no utiliza cinta de papel. La pasta de juntas se aplica en las cavidades de las placas y una masilla elástica en los encuentros. Suspendido mediante una estructura simple de perfiles TC60 en acero galvanizado de 0,6 mm de espesor con modulación de 400 mm entre ejes y unidos al forjado mediante varilla roscada galvanizada y horquilla TC60. Incluida la parte proporcional del resto de materiales: tornillería, pasta de juntas, masilla para encuentros perimetrales, fijaciones, junta estanca, etc. Montaje según norma de instalación UNE 102043 y exigencias del CTE. | M13: Techo continuo formado por una placa HIDROPLUS de 20 mm de espesor compuesta por yeso natural, fibra de vidrio y aditivos inorgánicos que le aportan alta dureza y resistencia mecánica. Incorpora tratamiento hidrófugo y un aumento en su densidad, características claves para una elevada resistencia a la humedad (absorción de agua menor al 3%) y una gran resistencia mecánica. Idónea para zonas de intemperie. Reacción al fuego: EUROCLASE A1. Sistema de galces desiguales: las placas encajan entre ellas dejando una entrecalle de 3 mm por donde se inserte la pasta de juntas. Este sistema no utiliza cinta de papel. La pasta de juntas se aplica en las cavidades de las placas y una masilla elástica en los encuentros. Suspendido mediante una estructura simple de perfiles TC60 en acero galvanizado de 0,6 mm de espesor con modulación de 400 mm entre ejes y unidos al forjado mediante varilla roscada galvanizada y horquilla TC60. Incluida la parte proporcional del resto de materiales: tornillería, pasta de juntas, masilla para encuentros perimetrales, fijaciones, junta estanca, etc. Montaje según norma de instalación UNE 102043 y exigencias del CTE. | N13: Techo continuo formado por una placa SUPREM de 20 mm de espesor compuesta por yeso natural, fibra de vidrio y aditivos inorgánicos que le aportan alta dureza y resistencia mecánica. Incorpora tratamiento hidrófugo, perlita y un aumento en la densidad para conseguir soluciones constructivas que cumplan, altos requisitos frente al fuego y una capacidad reducida de absorción de agua. Reacción al fuego: EUROCLASE A1. Sistema de galces desiguales: las placas encajan entre ellas dejando una entrecalle de 3 mm por donde se inserte la pasta de juntas. Este sistema no utiliza cinta de papel. La pasta de juntas se aplica en las cavidades de las placas y una masilla elástica en los encuentros. Suspendido mediante una estructura simple de perfiles TC60 en acero galvanizado de 0,6 mm de espesor con modulación de 400 mm entre ejes y unidos al forjado mediante varilla roscada galvanizada y horquilla TC60. Incluida la parte proporcional del resto de materiales: tornillería, pasta de juntas, masilla para encuentros perimetrales, fijaciones, junta estanca, etc. Montaje según norma de instalación UNE 102043 y exigencias del CTE.
C14: 66013 | D14: 1.1.10 | E14: TECHO SIMPLE / ESTRUCTURA SIMPLE ATT® 60 / 600 1x13 | F14: 600 | G14: 60 | H14: 13 | I14: Techo continuo formado por una placa BASIC de 13 mm de espesor compuesta por yeso natural, fibra de vidrio y aditivos inorgánicos que le aportan alta dureza y resistencia mecánica. Reacción al fuego: EUROCLASE A1. Sistema de galces desiguales: las placas encajan entre ellas dejando una entrecalle de 3 mm por donde se inserte la pasta de juntas. Este sistema no utiliza cinta de papel. La pasta de juntas se aplica en las cavidades de las placas y una masilla elástica en los encuentros. Suspendido mediante una estructura simple de perfiles TC60 en acero galvanizado de 0,6 mm de espesor con modulación de 600 mm entre ejes y unidos al forjado mediante varilla roscada galvanizada y horquilla TC60. Incluida la parte proporcional del resto de materiales: tornillería, pasta de juntas, masilla para encuentros perimetrales, fijaciones, junta estanca, etc. Montaje según norma de instalación UNE 102043 y exigencias del CTE. | J14: Techo continuo formado por una placa HIDRO de 13 mm de espesor compuesta por yeso natural, fibra de vidrio y aditivos inorgánicos que le aportan alta dureza y resistencia mecánica. Incorpora tratamiento hidrófugo, disminuyendo así, su capacidad de absorción de agua (menor al 5%). Idónea para proteger las estancias de los efectos adversos de la humedad. Reacción al fuego: EUROCLASE A1. Sistema de galces desiguales: las placas encajan entre ellas dejando una entrecalle de 3 mm por donde se inserte la pasta de juntas. Este sistema no utiliza cinta de papel. La pasta de juntas se aplica en las cavidades de las placas y una masilla elástica en los encuentros. Suspendido mediante una estructura simple de perfiles TC60 en acero galvanizado de 0,6 mm de espesor con modulación de 600 mm entre ejes y unidos al forjado mediante varilla roscada galvanizada y horquilla TC60. Incluida la parte proporcional del resto de materiales: tornillería, pasta de juntas, masilla para encuentros perimetrales, fijaciones, junta estanca, etc. Montaje según norma de instalación UNE 102043 y exigencias del CTE. | K14: Techo continuo formado por una placa FUEGO de 13 mm de espesor compuesta por yeso natural, fibra de vidrio y aditivos inorgánicos que le aportan alta dureza y resistencia mecánica. Incorpora perlita y un aumento en la densidad que la hace idónea para un excelente comportamiento y resistencia frente al fuego. Reacción al fuego: EUROCLASE A1. Sistema de galces desiguales: las placas encajan entre ellas dejando una entrecalle de 3 mm por donde se inserte la pasta de juntas. Este sistema no utiliza cinta de papel. La pasta de juntas se aplica en las cavidades de las placas y una masilla elástica en los encuentros. Suspendido mediante una estructura simple de perfiles TC60 en acero galvanizado de 0,6 mm de espesor con modulación de 600 mm entre ejes y unidos al forjado mediante varilla roscada galvanizada y horquilla TC60. Incluida la parte proporcional del resto de materiales: tornillería, pasta de juntas, masilla para encuentros perimetrales, fijaciones, junta estanca, etc. Montaje según norma de instalación UNE 102043 y exigencias del CTE. | L14: Techo continuo formado por una placa RESIST de 13 mm de espesor compuesta por yeso natural, fibra de vidrio y aditivos inorgánicos que le aportan alta dureza y resistencia mecánica. Con mayor cantidad de fibra de vidrio y dosificación modificada, aumenta su densidad, mejorando notablemente la resistencia mecánica. Idónea para lugares con altas exigencias en cuanto a deterioro y desgaste. Reacción al fuego: EUROCLASE A1. Sistema de galces desiguales: las placas encajan entre ellas dejando una entrecalle de 3 mm por donde se inserte la pasta de juntas. Este sistema no utiliza cinta de papel. La pasta de juntas se aplica en las cavidades de las placas y una masilla elástica en los encuentros. Suspendido mediante una estructura simple de perfiles TC60 en acero galvanizado de 0,6 mm de espesor con modulación de 600 mm entre ejes y unidos al forjado mediante varilla roscada galvanizada y horquilla TC60. Incluida la parte proporcional del resto de materiales: tornillería, pasta de juntas, masilla para encuentros perimetrales, fijaciones, junta estanca, etc. Montaje según norma de instalación UNE 102043 y exigencias del CTE. | M14: Techo continuo formado por una placa HIDROPLUS de 13 mm de espesor compuesta por yeso natural, fibra de vidrio y aditivos inorgánicos que le aportan alta dureza y resistencia mecánica. Incorpora tratamiento hidrófugo y un aumento en su densidad, características claves para una elevada resistencia a la humedad (absorción de agua menor al 3%) y una gran resistencia mecánica. Idónea para zonas de intemperie. Reacción al fuego: EUROCLASE A1. Sistema de galces desiguales: las placas encajan entre ellas dejando una entrecalle de 3 mm por donde se inserte la pasta de juntas. Este sistema no utiliza cinta de papel. La pasta de juntas se aplica en las cavidades de las placas y una masilla elástica en los encuentros. Suspendido mediante una estructura simple de perfiles TC60 en acero galvanizado de 0,6 mm de espesor con modulación de 600 mm entre ejes y unidos al forjado mediante varilla roscada galvanizada y horquilla TC60. Incluida la parte proporcional del resto de materiales: tornillería, pasta de juntas, masilla para encuentros perimetrales, fijaciones, junta estanca, etc. Montaje según norma de instalación UNE 102043 y exigencias del CTE. | N14: Techo continuo formado por una placa SUPREM de 13 mm de espesor compuesta por yeso natural, fibra de vidrio y aditivos inorgánicos que le aportan alta dureza y resistencia mecánica. Incorpora tratamiento hidrófugo, perlita y un aumento en la densidad para conseguir soluciones constructivas que cumplan, altos requisitos frente al fuego y una capacidad reducida de absorción de agua. Reacción al fuego: EUROCLASE A1. Sistema de galces desiguales: las placas encajan entre ellas dejando una entrecalle de 3 mm por donde se inserte la pasta de juntas. Este sistema no utiliza cinta de papel. La pasta de juntas se aplica en las cavidades de las placas y una masilla elástica en los encuentros. Suspendido mediante una estructura simple de perfiles TC60 en acero galvanizado de 0,6 mm de espesor con modulación de 600 mm entre ejes y unidos al forjado mediante varilla roscada galvanizada y horquilla TC60. Incluida la parte proporcional del resto de materiales: tornillería, pasta de juntas, masilla para encuentros perimetrales, fijaciones, junta estanca, etc. Montaje según norma de instalación UNE 102043 y exigencias del CTE.
C15: 66015 | D15: 1.1.11 | E15: TECHO SIMPLE / ESTRUCTURA SIMPLE ATT® 60 / 600 1x15 | F15: 600 | G15: 60 | H15: 15 | I15: Techo continuo formado por una placa BASIC de 15 mm de espesor compuesta por yeso natural, fibra de vidrio y aditivos inorgánicos que le aportan alta dureza y resistencia mecánica. Reacción al fuego: EUROCLASE A1. Sistema de galces desiguales: las placas encajan entre ellas dejando una entrecalle de 3 mm por donde se inserte la pasta de juntas. Este sistema no utiliza cinta de papel. La pasta de juntas se aplica en las cavidades de las placas y una masilla elástica en los encuentros. Suspendido mediante una estructura simple de perfiles TC60 en acero galvanizado de 0,6 mm de espesor con modulación de 600 mm entre ejes y unidos al forjado mediante varilla roscada galvanizada y horquilla TC60. Incluida la parte proporcional del resto de materiales: tornillería, pasta de juntas, masilla para encuentros perimetrales, fijaciones, junta estanca, etc. Montaje según norma de instalación UNE 102043 y exigencias del CTE. | J15: Techo continuo formado por una placa HIDRO de 15 mm de espesor compuesta por yeso natural, fibra de vidrio y aditivos inorgánicos que le aportan alta dureza y resistencia mecánica. Incorpora tratamiento hidrófugo, disminuyendo así, su capacidad de absorción de agua (menor al 5%). Idónea para proteger las estancias de los efectos adversos de la humedad. Reacción al fuego: EUROCLASE A1. Sistema de galces desiguales: las placas encajan entre ellas dejando una entrecalle de 3 mm por donde se inserte la pasta de juntas. Este sistema no utiliza cinta de papel. La pasta de juntas se aplica en las cavidades de las placas y una masilla elástica en los encuentros. Suspendido mediante una estructura simple de perfiles TC60 en acero galvanizado de 0,6 mm de espesor con modulación de 600 mm entre ejes y unidos al forjado mediante varilla roscada galvanizada y horquilla TC60. Incluida la parte proporcional del resto de materiales: tornillería, pasta de juntas, masilla para encuentros perimetrales, fijaciones, junta estanca, etc. Montaje según norma de instalación UNE 102043 y exigencias del CTE. | K15: Techo continuo formado por una placa FUEGO de 15 mm de espesor compuesta por yeso natural, fibra de vidrio y aditivos inorgánicos que le aportan alta dureza y resistencia mecánica. Incorpora perlita y un aumento en la densidad que la hace idónea para un excelente comportamiento y resistencia frente al fuego. Reacción al fuego: EUROCLASE A1. Sistema de galces desiguales: las placas encajan entre ellas dejando una entrecalle de 3 mm por donde se inserte la pasta de juntas. Este sistema no utiliza cinta de papel. La pasta de juntas se aplica en las cavidades de las placas y una masilla elástica en los encuentros. Suspendido mediante una estructura simple de perfiles TC60 en acero galvanizado de 0,6 mm de espesor con modulación de 600 mm entre ejes y unidos al forjado mediante varilla roscada galvanizada y horquilla TC60. Incluida la parte proporcional del resto de materiales: tornillería, pasta de juntas, masilla para encuentros perimetrales, fijaciones, junta estanca, etc. Montaje según norma de instalación UNE 102043 y exigencias del CTE. | L15: Techo continuo formado por una placa RESIST de 15 mm de espesor compuesta por yeso natural, fibra de vidrio y aditivos inorgánicos que le aportan alta dureza y resistencia mecánica. Con mayor cantidad de fibra de vidrio y dosificación modificada, aumenta su densidad, mejorando notablemente la resistencia mecánica. Idónea para lugares con altas exigencias en cuanto a deterioro y desgaste. Reacción al fuego: EUROCLASE A1. Sistema de galces desiguales: las placas encajan entre ellas dejando una entrecalle de 3 mm por donde se inserte la pasta de juntas. Este sistema no utiliza cinta de papel. La pasta de juntas se aplica en las cavidades de las placas y una masilla elástica en los encuentros. Suspendido mediante una estructura simple de perfiles TC60 en acero galvanizado de 0,6 mm de espesor con modulación de 600 mm entre ejes y unidos al forjado mediante varilla roscada galvanizada y horquilla TC60. Incluida la parte proporcional del resto de materiales: tornillería, pasta de juntas, masilla para encuentros perimetrales, fijaciones, junta estanca, etc. Montaje según norma de instalación UNE 102043 y exigencias del CTE. | M15: Techo continuo formado por una placa HIDROPLUS de 15 mm de espesor compuesta por yeso natural, fibra de vidrio y aditivos inorgánicos que le aportan alta dureza y resistencia mecánica. Incorpora tratamiento hidrófugo y un aumento en su densidad, características claves para una elevada resistencia a la humedad (absorción de agua menor al 3%) y una gran resistencia mecánica. Idónea para zonas de intemperie. Reacción al fuego: EUROCLASE A1. Sistema de galces desiguales: las placas encajan entre ellas dejando una entrecalle de 3 mm por donde se inserte la pasta de juntas. Este sistema no utiliza cinta de papel. La pasta de juntas se aplica en las cavidades de las placas y una masilla elástica en los encuentros. Suspendido mediante una estructura simple de perfiles TC60 en acero galvanizado de 0,6 mm de espesor con modulación de 600 mm entre ejes y unidos al forjado mediante varilla roscada galvanizada y horquilla TC60. Incluida la parte proporcional del resto de materiales: tornillería, pasta de juntas, masilla para encuentros perimetrales, fijaciones, junta estanca, etc. Montaje según norma de instalación UNE 102043 y exigencias del CTE. | N15: Techo continuo formado por una placa SUPREM de 15 mm de espesor compuesta por yeso natural, fibra de vidrio y aditivos inorgánicos que le aportan alta dureza y resistencia mecánica. Incorpora tratamiento hidrófugo, perlita y un aumento en la densidad para conseguir soluciones constructivas que cumplan, altos requisitos frente al fuego y una capacidad reducida de absorción de agua. Reacción al fuego: EUROCLASE A1. Sistema de galces desiguales: las placas encajan entre ellas dejando una entrecalle de 3 mm por donde se inserte la pasta de juntas. Este sistema no utiliza cinta de papel. La pasta de juntas se aplica en las cavidades de las placas y una masilla elástica en los encuentros. Suspendido mediante una estructura simple de perfiles TC60 en acero galvanizado de 0,6 mm de espesor con modulación de 600 mm entre ejes y unidos al forjado mediante varilla roscada galvanizada y horquilla TC60. Incluida la parte proporcional del resto de materiales: tornillería, pasta de juntas, masilla para encuentros perimetrales, fijaciones, junta estanca, etc. Montaje según norma de instalación UNE 102043 y exigencias del CTE.
C16: 66020 | D16: 1.1.12 | E16: TECHO SIMPLE / ESTRUCTURA SIMPLE ATT® 60 / 600 1x20 | F16: 600 | G16: 60 | H16: 20 | I16: Techo continuo formado por una placa BASIC de 20 mm de espesor compuesta por yeso natural, fibra de vidrio y aditivos inorgánicos que le aportan alta dureza y resistencia mecánica. Reacción al fuego: EUROCLASE A1. Sistema de galces desiguales: las placas encajan entre ellas dejando una entrecalle de 3 mm por donde se inserte la pasta de juntas. Este sistema no utiliza cinta de papel. La pasta de juntas se aplica en las cavidades de las placas y una masilla elástica en los encuentros. Suspendido mediante una estructura simple de perfiles TC60 en acero galvanizado de 0,6 mm de espesor con modulación de 600 mm entre ejes y unidos al forjado mediante varilla roscada galvanizada y horquilla TC60. Incluida la parte proporcional del resto de materiales: tornillería, pasta de juntas, masilla para encuentros perimetrales, fijaciones, junta estanca, etc. Montaje según norma de instalación UNE 102043 y exigencias del CTE. | J16: Techo continuo formado por una placa HIDRO de 20 mm de espesor compuesta por yeso natural, fibra de vidrio y aditivos inorgánicos que le aportan alta dureza y resistencia mecánica. Incorpora tratamiento hidrófugo, disminuyendo así, su capacidad de absorción de agua (menor al 5%). Idónea para proteger las estancias de los efectos adversos de la humedad. Reacción al fuego: EUROCLASE A1. Sistema de galces desiguales: las placas encajan entre ellas dejando una entrecalle de 3 mm por donde se inserte la pasta de juntas. Este sistema no utiliza cinta de papel. La pasta de juntas se aplica en las cavidades de las placas y una masilla elástica en los encuentros. Suspendido mediante una estructura simple de perfiles TC60 en acero galvanizado de 0,6 mm de espesor con modulación de 600 mm entre ejes y unidos al forjado mediante varilla roscada galvanizada y horquilla TC60. Incluida la parte proporcional del resto de materiales: tornillería, pasta de juntas, masilla para encuentros perimetrales, fijaciones, junta estanca, etc. Montaje según norma de instalación UNE 102043 y exigencias del CTE. | K16: Techo continuo formado por una placa FUEGO de 20 mm de espesor compuesta por yeso natural, fibra de vidrio y aditivos inorgánicos que le aportan alta dureza y resistencia mecánica. Incorpora perlita y un aumento en la densidad que la hace idónea para un excelente comportamiento y resistencia frente al fuego. Reacción al fuego: EUROCLASE A1. Sistema de galces desiguales: las placas encajan entre ellas dejando una entrecalle de 3 mm por donde se inserte la pasta de juntas. Este sistema no utiliza cinta de papel. La pasta de juntas se aplica en las cavidades de las placas y una masilla elástica en los encuentros. Suspendido mediante una estructura simple de perfiles TC60 en acero galvanizado de 0,6 mm de espesor con modulación de 600 mm entre ejes y unidos al forjado mediante varilla roscada galvanizada y horquilla TC60. Incluida la parte proporcional del resto de materiales: tornillería, pasta de juntas, masilla para encuentros perimetrales, fijaciones, junta estanca, etc. Montaje según norma de instalación UNE 102043 y exigencias del CTE. | L16: Techo continuo formado por una placa RESIST de 20 mm de espesor compuesta por yeso natural, fibra de vidrio y aditivos inorgánicos que le aportan alta dureza y resistencia mecánica. Con mayor cantidad de fibra de vidrio y dosificación modificada, aumenta su densidad, mejorando notablemente la resistencia mecánica. Idónea para lugares con altas exigencias en cuanto a deterioro y desgaste. Reacción al fuego: EUROCLASE A1. Sistema de galces desiguales: las placas encajan entre ellas dejando una entrecalle de 3 mm por donde se inserte la pasta de juntas. Este sistema no utiliza cinta de papel. La pasta de juntas se aplica en las cavidades de las placas y una masilla elástica en los encuentros. Suspendido mediante una estructura simple de perfiles TC60 en acero galvanizado de 0,6 mm de espesor con modulación de 600 mm entre ejes y unidos al forjado mediante varilla roscada galvanizada y horquilla TC60. Incluida la parte proporcional del resto de materiales: tornillería, pasta de juntas, masilla para encuentros perimetrales, fijaciones, junta estanca, etc. Montaje según norma de instalación UNE 102043 y exigencias del CTE. | M16: Techo continuo formado por una placa HIDROPLUS de 20 mm de espesor compuesta por yeso natural, fibra de vidrio y aditivos inorgánicos que le aportan alta dureza y resistencia mecánica. Incorpora tratamiento hidrófugo y un aumento en su densidad, características claves para una elevada resistencia a la humedad (absorción de agua menor al 3%) y una gran resistencia mecánica. Idónea para zonas de intemperie. Reacción al fuego: EUROCLASE A1. Sistema de galces desiguales: las placas encajan entre ellas dejando una entrecalle de 3 mm por donde se inserte la pasta de juntas. Este sistema no utiliza cinta de papel. La pasta de juntas se aplica en las cavidades de las placas y una masilla elástica en los encuentros. Suspendido mediante una estructura simple de perfiles TC60 en acero galvanizado de 0,6 mm de espesor con modulación de 600 mm entre ejes y unidos al forjado mediante varilla roscada galvanizada y horquilla TC60. Incluida la parte proporcional del resto de materiales: tornillería, pasta de juntas, masilla para encuentros perimetrales, fijaciones, junta estanca, etc. Montaje según norma de instalación UNE 102043 y exigencias del CTE. | N16: Techo continuo formado por una placa SUPREM de 20 mm de espesor compuesta por yeso natural, fibra de vidrio y aditivos inorgánicos que le aportan alta dureza y resistencia mecánica. Incorpora tratamiento hidrófugo, perlita y un aumento en la densidad para conseguir soluciones constructivas que cumplan, altos requisitos frente al fuego y una capacidad reducida de absorción de agua. Reacción al fuego: EUROCLASE A1. Sistema de galces desiguales: las placas encajan entre ellas dejando una entrecalle de 3 mm por donde se inserte la pasta de juntas. Este sistema no utiliza cinta de papel. La pasta de juntas se aplica en las cavidades de las placas y una masilla elástica en los encuentros. Suspendido mediante una estructura simple de perfiles TC60 en acero galvanizado de 0,6 mm de espesor con modulación de 600 mm entre ejes y unidos al forjado mediante varilla roscada galvanizada y horquilla TC60. Incluida la parte proporcional del resto de materiales: tornillería, pasta de juntas, masilla para encuentros perimetrales, fijaciones, junta estanca, etc. Montaje según norma de instalación UNE 102043 y exigencias del CTE.
C17: 44726 | D17: 1.2.1 | E17: TECHO DOBLE / ESTRUCTURA SIMPLE ATT® 47 / 400 2x13 | F17: 400 | G17: 47 | H17: 26 | I17: Techo continuo formado por dos placas BASIC de 13 mm de espesor compuestas por yeso natural, fibra de vidrio y aditivos inorgánicos que le aportan alta dureza y resistencia mecánica. Reacción al fuego: EUROCLASE A1. Sistema de galces desiguales: las placas encajan entre ellas dejando una entrecalle de 3 mm por donde se inserte la pasta de juntas. Este sistema no utiliza cinta de papel. La pasta de juntas se aplica en las cavidades de las placas y una masilla elástica en los encuentros. Suspendido mediante una estructura simple de perfiles TC47 en acero galvanizado de 0,6 mm de espesor con modulación de 400 mm entre ejes y unidos al forjado mediante varilla roscada galvanizada y horquilla TC47. Incluida la parte proporcional del resto de materiales: tornillería, pasta de juntas, masilla para encuentros perimetrales, fijaciones, junta estanca, etc. Montaje según norma de instalación UNE 102043 y exigencias del CTE. | J17: Techo continuo formado por dos placas HIDRO de 13 mm de espesor compuestas por yeso natural, fibra de vidrio y aditivos inorgánicos que le aportan alta dureza y resistencia mecánica. Incorpora tratamiento hidrófugo, disminuyendo así, su capacidad de absorción de agua (menor al 5%). Idónea para proteger las estancias de los efectos adversos de la humedad. Reacción al fuego: EUROCLASE A1. Sistema de galces desiguales: las placas encajan entre ellas dejando una entrecalle de 3 mm por donde se inserte la pasta de juntas. Este sistema no utiliza cinta de papel. La pasta de juntas se aplica en las cavidades de las placas y una masilla elástica en los encuentros. Suspendido mediante una estructura simple de perfiles TC47 en acero galvanizado de 0,6 mm de espesor con modulación de 400 mm entre ejes y unidos al forjado mediante varilla roscada galvanizada y horquilla TC47. Incluida la parte proporcional del resto de materiales: tornillería, pasta de juntas, masilla para encuentros perimetrales, fijaciones, junta estanca, etc. Montaje según norma de instalación UNE 102043 y exigencias del CTE. | K17: Techo continuo formado por dos placas FUEGO de 13 mm de espesor compuestas por yeso natural, fibra de vidrio y aditivos inorgánicos que le aportan alta dureza y resistencia mecánica. Incorpora perlita y un aumento en la densidad que la hace idónea para un excelente comportamiento y resistencia frente al fuego. Reacción al fuego: EUROCLASE A1. Sistema de galces desiguales: las placas encajan entre ellas dejando una entrecalle de 3 mm por donde se inserte la pasta de juntas. Este sistema no utiliza cinta de papel. La pasta de juntas se aplica en las cavidades de las placas y una masilla elástica en los encuentros. Suspendido mediante una estructura simple de perfiles TC47 en acero galvanizado de 0,6 mm de espesor con modulación de 400 mm entre ejes y unidos al forjado mediante varilla roscada galvanizada y horquilla TC47. Incluida la parte proporcional del resto de materiales: tornillería, pasta de juntas, masilla para encuentros perimetrales, fijaciones, junta estanca, etc. Montaje según norma de instalación UNE 102043 y exigencias del CTE. | L17: Techo continuo formado por dos placas RESIST de 13 mm de espesor compuestas por yeso natural, fibra de vidrio y aditivos inorgánicos que le aportan alta dureza y resistencia mecánica. Con mayor cantidad de fibra de vidrio y dosificación modificada, aumenta su densidad, mejorando notablemente la resistencia mecánica. Idónea para lugares con altas exigencias en cuanto a deterioro y desgaste. Reacción al fuego: EUROCLASE A1. Sistema de galces desiguales: las placas encajan entre ellas dejando una entrecalle de 3 mm por donde se inserte la pasta de juntas. Este sistema no utiliza cinta de papel. La pasta de juntas se aplica en las cavidades de las placas y una masilla elástica en los encuentros. Suspendido mediante una estructura simple de perfiles TC47 en acero galvanizado de 0,6 mm de espesor con modulación de 400 mm entre ejes y unidos al forjado mediante varilla roscada galvanizada y horquilla TC47. Incluida la parte proporcional del resto de materiales: tornillería, pasta de juntas, masilla para encuentros perimetrales, fijaciones, junta estanca, etc. Montaje según norma de instalación UNE 102043 y exigencias del CTE. | M17: Techo continuo formado por dos placas HIDROPLUS de 13 mm de espesor compuestas por yeso natural, fibra de vidrio y aditivos inorgánicos que le aportan alta dureza y resistencia mecánica. Incorpora tratamiento hidrófugo y un aumento en su densidad, características claves para una elevada resistencia a la humedad (absorción de agua menor al 3%) y una gran resistencia mecánica. Idónea para zonas de intemperie. Reacción al fuego: EUROCLASE A1. Sistema de galces desiguales: las placas encajan entre ellas dejando una entrecalle de 3 mm por donde se inserte la pasta de juntas. Este sistema no utiliza cinta de papel. La pasta de juntas se aplica en las cavidades de las placas y una masilla elástica en los encuentros. Suspendido mediante una estructura simple de perfiles TC47 en acero galvanizado de 0,6 mm de espesor con modulación de 400 mm entre ejes y unidos al forjado mediante varilla roscada galvanizada y horquilla TC47. Incluida la parte proporcional del resto de materiales: tornillería, pasta de juntas, masilla para encuentros perimetrales, fijaciones, junta estanca, etc. Montaje según norma de instalación UNE 102043 y exigencias del CTE. | N17: Techo continuo formado por dos placas SUPREM de 13 mm de espesor compuestas por yeso natural, fibra de vidrio y aditivos inorgánicos que le aportan alta dureza y resistencia mecánica. Incorpora tratamiento hidrófugo, perlita y un aumento en la densidad para conseguir soluciones constructivas que cumplan, altos requisitos frente al fuego y una capacidad reducida de absorción de agua. Reacción al fuego: EUROCLASE A1. Sistema de galces desiguales: las placas encajan entre ellas dejando una entrecalle de 3 mm por donde se inserte la pasta de juntas. Este sistema no utiliza cinta de papel. La pasta de juntas se aplica en las cavidades de las placas y una masilla elástica en los encuentros. Suspendido mediante una estructura simple de perfiles TC47 en acero galvanizado de 0,6 mm de espesor con modulación de 400 mm entre ejes y unidos al forjado mediante varilla roscada galvanizada y horquilla TC47. Incluida la parte proporcional del resto de materiales: tornillería, pasta de juntas, masilla para encuentros perimetrales, fijaciones, junta estanca, etc. Montaje según norma de instalación UNE 102043 y exigencias del CTE.
C18: 44730 | D18: 1.2.2 | E18: TECHO DOBLE / ESTRUCTURA SIMPLE ATT® 47 / 400 2x15 | F18: 400 | G18: 47 | H18: 30 | I18: Techo continuo formado por dos placas BASIC de 15 mm de espesor compuestas por yeso natural, fibra de vidrio y aditivos inorgánicos que le aportan alta dureza y resistencia mecánica. Reacción al fuego: EUROCLASE A1. Sistema de galces desiguales: las placas encajan entre ellas dejando una entrecalle de 3 mm por donde se inserte la pasta de juntas. Este sistema no utiliza cinta de papel. La pasta de juntas se aplica en las cavidades de las placas y una masilla elástica en los encuentros. Suspendido mediante una estructura simple de perfiles TC47 en acero galvanizado de 0,6 mm de espesor con modulación de 400 mm entre ejes y unidos al forjado mediante varilla roscada galvanizada y horquilla TC47. Incluida la parte proporcional del resto de materiales: tornillería, pasta de juntas, masilla para encuentros perimetrales, fijaciones, junta estanca, etc. Montaje según norma de instalación UNE 102043 y exigencias del CTE. | J18: Techo continuo formado por dos placas HIDRO de 15 mm de espesor compuestas por yeso natural, fibra de vidrio y aditivos inorgánicos que le aportan alta dureza y resistencia mecánica. Incorpora tratamiento hidrófugo, disminuyendo así, su capacidad de absorción de agua (menor al 5%). Idónea para proteger las estancias de los efectos adversos de la humedad. Reacción al fuego: EUROCLASE A1. Sistema de galces desiguales: las placas encajan entre ellas dejando una entrecalle de 3 mm por donde se inserte la pasta de juntas. Este sistema no utiliza cinta de papel. La pasta de juntas se aplica en las cavidades de las placas y una masilla elástica en los encuentros. Suspendido mediante una estructura simple de perfiles TC47 en acero galvanizado de 0,6 mm de espesor con modulación de 400 mm entre ejes y unidos al forjado mediante varilla roscada galvanizada y horquilla TC47. Incluida la parte proporcional del resto de materiales: tornillería, pasta de juntas, masilla para encuentros perimetrales, fijaciones, junta estanca, etc. Montaje según norma de instalación UNE 102043 y exigencias del CTE. | K18: Techo continuo formado por dos placas FUEGO de 15 mm de espesor compuestas por yeso natural, fibra de vidrio y aditivos inorgánicos que le aportan alta dureza y resistencia mecánica. Incorpora perlita y un aumento en la densidad que la hace idónea para un excelente comportamiento y resistencia frente al fuego. Reacción al fuego: EUROCLASE A1. Sistema de galces desiguales: las placas encajan entre ellas dejando una entrecalle de 3 mm por donde se inserte la pasta de juntas. Este sistema no utiliza cinta de papel. La pasta de juntas se aplica en las cavidades de las placas y una masilla elástica en los encuentros. Suspendido mediante una estructura simple de perfiles TC47 en acero galvanizado de 0,6 mm de espesor con modulación de 400 mm entre ejes y unidos al forjado mediante varilla roscada galvanizada y horquilla TC47. Incluida la parte proporcional del resto de materiales: tornillería, pasta de juntas, masilla para encuentros perimetrales, fijaciones, junta estanca, etc. Montaje según norma de instalación UNE 102043 y exigencias del CTE. | L18: Techo continuo formado por dos placas RESIST de 15 mm de espesor compuestas por yeso natural, fibra de vidrio y aditivos inorgánicos que le aportan alta dureza y resistencia mecánica. Con mayor cantidad de fibra de vidrio y dosificación modificada, aumenta su densidad, mejorando notablemente la resistencia mecánica. Idónea para lugares con altas exigencias en cuanto a deterioro y desgaste. Reacción al fuego: EUROCLASE A1. Sistema de galces desiguales: las placas encajan entre ellas dejando una entrecalle de 3 mm por donde se inserte la pasta de juntas. Este sistema no utiliza cinta de papel. La pasta de juntas se aplica en las cavidades de las placas y una masilla elástica en los encuentros. Suspendido mediante una estructura simple de perfiles TC47 en acero galvanizado de 0,6 mm de espesor con modulación de 400 mm entre ejes y unidos al forjado mediante varilla roscada galvanizada y horquilla TC47. Incluida la parte proporcional del resto de materiales: tornillería, pasta de juntas, masilla para encuentros perimetrales, fijaciones, junta estanca, etc. Montaje según norma de instalación UNE 102043 y exigencias del CTE. | M18: Techo continuo formado por dos placas HIDROPLUS de 15 mm de espesor compuestas por yeso natural, fibra de vidrio y aditivos inorgánicos que le aportan alta dureza y resistencia mecánica. Incorpora tratamiento hidrófugo y un aumento en su densidad, características claves para una elevada resistencia a la humedad (absorción de agua menor al 3%) y una gran resistencia mecánica. Idónea para zonas de intemperie. Reacción al fuego: EUROCLASE A1. Sistema de galces desiguales: las placas encajan entre ellas dejando una entrecalle de 3 mm por donde se inserte la pasta de juntas. Este sistema no utiliza cinta de papel. La pasta de juntas se aplica en las cavidades de las placas y una masilla elástica en los encuentros. Suspendido mediante una estructura simple de perfiles TC47 en acero galvanizado de 0,6 mm de espesor con modulación de 400 mm entre ejes y unidos al forjado mediante varilla roscada galvanizada y horquilla TC47. Incluida la parte proporcional del resto de materiales: tornillería, pasta de juntas, masilla para encuentros perimetrales, fijaciones, junta estanca, etc. Montaje según norma de instalación UNE 102043 y exigencias del CTE. | N18: Techo continuo formado por dos placas SUPREM de 15 mm de espesor compuestas por yeso natural, fibra de vidrio y aditivos inorgánicos que le aportan alta dureza y resistencia mecánica. Incorpora tratamiento hidrófugo, perlita y un aumento en la densidad para conseguir soluciones constructivas que cumplan, altos requisitos frente al fuego y una capacidad reducida de absorción de agua. Reacción al fuego: EUROCLASE A1. Sistema de galces desiguales: las placas encajan entre ellas dejando una entrecalle de 3 mm por donde se inserte la pasta de juntas. Este sistema no utiliza cinta de papel. La pasta de juntas se aplica en las cavidades de las placas y una masilla elástica en los encuentros. Suspendido mediante una estructura simple de perfiles TC47 en acero galvanizado de 0,6 mm de espesor con modulación de 400 mm entre ejes y unidos al forjado mediante varilla roscada galvanizada y horquilla TC47. Incluida la parte proporcional del resto de materiales: tornillería, pasta de juntas, masilla para encuentros perimetrales, fijaciones, junta estanca, etc. Montaje según norma de instalación UNE 102043 y exigencias del CTE.
C19: 44740 | D19: 1.2.3 | E19: TECHO DOBLE / ESTRUCTURA SIMPLE ATT® 47 / 400 2x20 | F19: 400 | G19: 47 | H19: 40 | I19: Techo continuo formado por dos placas BASIC de 20 mm de espesor compuestas por yeso natural, fibra de vidrio y aditivos inorgánicos que le aportan alta dureza y resistencia mecánica. Reacción al fuego: EUROCLASE A1. Sistema de galces desiguales: las placas encajan entre ellas dejando una entrecalle de 3 mm por donde se inserte la pasta de juntas. Este sistema no utiliza cinta de papel. La pasta de juntas se aplica en las cavidades de las placas y una masilla elástica en los encuentros. Suspendido mediante una estructura simple de perfiles TC47 en acero galvanizado de 0,6 mm de espesor con modulación de 400 mm entre ejes y unidos al forjado mediante varilla roscada galvanizada y horquilla TC47. Incluida la parte proporcional del resto de materiales: tornillería, pasta de juntas, masilla para encuentros perimetrales, fijaciones, junta estanca, etc. Montaje según norma de instalación UNE 102043 y exigencias del CTE. | J19: Techo continuo formado por dos placas HIDRO de 20 mm de espesor compuestas por yeso natural, fibra de vidrio y aditivos inorgánicos que le aportan alta dureza y resistencia mecánica. Incorpora tratamiento hidrófugo, disminuyendo así, su capacidad de absorción de agua (menor al 5%). Idónea para proteger las estancias de los efectos adversos de la humedad. Reacción al fuego: EUROCLASE A1. Sistema de galces desiguales: las placas encajan entre ellas dejando una entrecalle de 3 mm por donde se inserte la pasta de juntas. Este sistema no utiliza cinta de papel. La pasta de juntas se aplica en las cavidades de las placas y una masilla elástica en los encuentros. Suspendido mediante una estructura simple de perfiles TC47 en acero galvanizado de 0,6 mm de espesor con modulación de 400 mm entre ejes y unidos al forjado mediante varilla roscada galvanizada y horquilla TC47. Incluida la parte proporcional del resto de materiales: tornillería, pasta de juntas, masilla para encuentros perimetrales, fijaciones, junta estanca, etc. Montaje según norma de instalación UNE 102043 y exigencias del CTE. | K19: Techo continuo formado por dos placas FUEGO de 20 mm de espesor compuestas por yeso natural, fibra de vidrio y aditivos inorgánicos que le aportan alta dureza y resistencia mecánica. Incorpora perlita y un aumento en la densidad que la hace idónea para un excelente comportamiento y resistencia frente al fuego. Reacción al fuego: EUROCLASE A1. Sistema de galces desiguales: las placas encajan entre ellas dejando una entrecalle de 3 mm por donde se inserte la pasta de juntas. Este sistema no utiliza cinta de papel. La pasta de juntas se aplica en las cavidades de las placas y una masilla elástica en los encuentros. Suspendido mediante una estructura simple de perfiles TC47 en acero galvanizado de 0,6 mm de espesor con modulación de 400 mm entre ejes y unidos al forjado mediante varilla roscada galvanizada y horquilla TC47. Incluida la parte proporcional del resto de materiales: tornillería, pasta de juntas, masilla para encuentros perimetrales, fijaciones, junta estanca, etc. Montaje según norma de instalación UNE 102043 y exigencias del CTE. | L19: Techo continuo formado por dos placas RESIST de 20 mm de espesor compuestas por yeso natural, fibra de vidrio y aditivos inorgánicos que le aportan alta dureza y resistencia mecánica. Con mayor cantidad de fibra de vidrio y dosificación modificada, aumenta su densidad, mejorando notablemente la resistencia mecánica. Idónea para lugares con altas exigencias en cuanto a deterioro y desgaste. Reacción al fuego: EUROCLASE A1. Sistema de galces desiguales: las placas encajan entre ellas dejando una entrecalle de 3 mm por donde se inserte la pasta de juntas. Este sistema no utiliza cinta de papel. La pasta de juntas se aplica en las cavidades de las placas y una masilla elástica en los encuentros. Suspendido mediante una estructura simple de perfiles TC47 en acero galvanizado de 0,6 mm de espesor con modulación de 400 mm entre ejes y unidos al forjado mediante varilla roscada galvanizada y horquilla TC47. Incluida la parte proporcional del resto de materiales: tornillería, pasta de juntas, masilla para encuentros perimetrales, fijaciones, junta estanca, etc. Montaje según norma de instalación UNE 102043 y exigencias del CTE. | M19: Techo continuo formado por dos placas HIDROPLUS de 20 mm de espesor compuestas por yeso natural, fibra de vidrio y aditivos inorgánicos que le aportan alta dureza y resistencia mecánica. Incorpora tratamiento hidrófugo y un aumento en su densidad, características claves para una elevada resistencia a la humedad (absorción de agua menor al 3%) y una gran resistencia mecánica. Idónea para zonas de intemperie. Reacción al fuego: EUROCLASE A1. Sistema de galces desiguales: las placas encajan entre ellas dejando una entrecalle de 3 mm por donde se inserte la pasta de juntas. Este sistema no utiliza cinta de papel. La pasta de juntas se aplica en las cavidades de las placas y una masilla elástica en los encuentros. Suspendido mediante una estructura simple de perfiles TC47 en acero galvanizado de 0,6 mm de espesor con modulación de 400 mm entre ejes y unidos al forjado mediante varilla roscada galvanizada y horquilla TC47. Incluida la parte proporcional del resto de materiales: tornillería, pasta de juntas, masilla para encuentros perimetrales, fijaciones, junta estanca, etc. Montaje según norma de instalación UNE 102043 y exigencias del CTE. | N19: Techo continuo formado por dos placas SUPREM de 20 mm de espesor compuestas por yeso natural, fibra de vidrio y aditivos inorgánicos que le aportan alta dureza y resistencia mecánica. Incorpora tratamiento hidrófugo, perlita y un aumento en la densidad para conseguir soluciones constructivas que cumplan, altos requisitos frente al fuego y una capacidad reducida de absorción de agua. Reacción al fuego: EUROCLASE A1. Sistema de galces desiguales: las placas encajan entre ellas dejando una entrecalle de 3 mm por donde se inserte la pasta de juntas. Este sistema no utiliza cinta de papel. La pasta de juntas se aplica en las cavidades de las placas y una masilla elástica en los encuentros. Suspendido mediante una estructura simple de perfiles TC47 en acero galvanizado de 0,6 mm de espesor con modulación de 400 mm entre ejes y unidos al forjado mediante varilla roscada galvanizada y horquilla TC47. Incluida la parte proporcional del resto de materiales: tornillería, pasta de juntas, masilla para encuentros perimetrales, fijaciones, junta estanca, etc. Montaje según norma de instalación UNE 102043 y exigencias del CTE.
C20: 64726 | D20: 1.2.4 | E20: TECHO DOBLE / ESTRUCTURA SIMPLE ATT® 47 / 600 2x13 | F20: 600 | G20: 47 | H20: 26 | I20: Techo continuo formado por dos placas BASIC de 13 mm de espesor compuestas por yeso natural, fibra de vidrio y aditivos inorgánicos que le aportan alta dureza y resistencia mecánica. Reacción al fuego: EUROCLASE A1. Sistema de galces desiguales: las placas encajan entre ellas dejando una entrecalle de 3 mm por donde se inserte la pasta de juntas. Este sistema no utiliza cinta de papel. La pasta de juntas se aplica en las cavidades de las placas y una masilla elástica en los encuentros. Suspendido mediante una estructura simple de perfiles TC47 en acero galvanizado de 0,6 mm de espesor con modulación de 600 mm entre ejes y unidos al forjado mediante varilla roscada galvanizada y horquilla TC47. Incluida la parte proporcional del resto de materiales: tornillería, pasta de juntas, masilla para encuentros perimetrales, fijaciones, junta estanca, etc. Montaje según norma de instalación UNE 102043 y exigencias del CTE. | J20: Techo continuo formado por dos placas HIDRO de 13 mm de espesor compuestas por yeso natural, fibra de vidrio y aditivos inorgánicos que le aportan alta dureza y resistencia mecánica. Incorpora tratamiento hidrófugo, disminuyendo así, su capacidad de absorción de agua (menor al 5%). Idónea para proteger las estancias de los efectos adversos de la humedad. Reacción al fuego: EUROCLASE A1. Sistema de galces desiguales: las placas encajan entre ellas dejando una entrecalle de 3 mm por donde se inserte la pasta de juntas. Este sistema no utiliza cinta de papel. La pasta de juntas se aplica en las cavidades de las placas y una masilla elástica en los encuentros. Suspendido mediante una estructura simple de perfiles TC47 en acero galvanizado de 0,6 mm de espesor con modulación de 600 mm entre ejes y unidos al forjado mediante varilla roscada galvanizada y horquilla TC47. Incluida la parte proporcional del resto de materiales: tornillería, pasta de juntas, masilla para encuentros perimetrales, fijaciones, junta estanca, etc. Montaje según norma de instalación UNE 102043 y exigencias del CTE. | K20: Techo continuo formado por dos placas FUEGO de 13 mm de espesor compuestas por yeso natural, fibra de vidrio y aditivos inorgánicos que le aportan alta dureza y resistencia mecánica. Incorpora perlita y un aumento en la densidad que la hace idónea para un excelente comportamiento y resistencia frente al fuego. Reacción al fuego: EUROCLASE A1. Sistema de galces desiguales: las placas encajan entre ellas dejando una entrecalle de 3 mm por donde se inserte la pasta de juntas. Este sistema no utiliza cinta de papel. La pasta de juntas se aplica en las cavidades de las placas y una masilla elástica en los encuentros. Suspendido mediante una estructura simple de perfiles TC47 en acero galvanizado de 0,6 mm de espesor con modulación de 600 mm entre ejes y unidos al forjado mediante varilla roscada galvanizada y horquilla TC47. Incluida la parte proporcional del resto de materiales: tornillería, pasta de juntas, masilla para encuentros perimetrales, fijaciones, junta estanca, etc. Montaje según norma de instalación UNE 102043 y exigencias del CTE. | L20: Techo continuo formado por dos placas RESIST de 13 mm de espesor compuestas por yeso natural, fibra de vidrio y aditivos inorgánicos que le aportan alta dureza y resistencia mecánica. Con mayor cantidad de fibra de vidrio y dosificación modificada, aumenta su densidad, mejorando notablemente la resistencia mecánica. Idónea para lugares con altas exigencias en cuanto a deterioro y desgaste. Reacción al fuego: EUROCLASE A1. Sistema de galces desiguales: las placas encajan entre ellas dejando una entrecalle de 3 mm por donde se inserte la pasta de juntas. Este sistema no utiliza cinta de papel. La pasta de juntas se aplica en las cavidades de las placas y una masilla elástica en los encuentros. Suspendido mediante una estructura simple de perfiles TC47 en acero galvanizado de 0,6 mm de espesor con modulación de 600 mm entre ejes y unidos al forjado mediante varilla roscada galvanizada y horquilla TC47. Incluida la parte proporcional del resto de materiales: tornillería, pasta de juntas, masilla para encuentros perimetrales, fijaciones, junta estanca, etc. Montaje según norma de instalación UNE 102043 y exigencias del CTE. | M20: Techo continuo formado por dos placas HIDROPLUS de 13 mm de espesor compuestas por yeso natural, fibra de vidrio y aditivos inorgánicos que le aportan alta dureza y resistencia mecánica. Incorpora tratamiento hidrófugo y un aumento en su densidad, características claves para una elevada resistencia a la humedad (absorción de agua menor al 3%) y una gran resistencia mecánica. Idónea para zonas de intemperie. Reacción al fuego: EUROCLASE A1. Sistema de galces desiguales: las placas encajan entre ellas dejando una entrecalle de 3 mm por donde se inserte la pasta de juntas. Este sistema no utiliza cinta de papel. La pasta de juntas se aplica en las cavidades de las placas y una masilla elástica en los encuentros. Suspendido mediante una estructura simple de perfiles TC47 en acero galvanizado de 0,6 mm de espesor con modulación de 600 mm entre ejes y unidos al forjado mediante varilla roscada galvanizada y horquilla TC47. Incluida la parte proporcional del resto de materiales: tornillería, pasta de juntas, masilla para encuentros perimetrales, fijaciones, junta estanca, etc. Montaje según norma de instalación UNE 102043 y exigencias del CTE. | N20: Techo continuo formado por dos placas SUPREM de 13 mm de espesor compuestas por yeso natural, fibra de vidrio y aditivos inorgánicos que le aportan alta dureza y resistencia mecánica. Incorpora tratamiento hidrófugo, perlita y un aumento en la densidad para conseguir soluciones constructivas que cumplan, altos requisitos frente al fuego y una capacidad reducida de absorción de agua. Reacción al fuego: EUROCLASE A1. Sistema de galces desiguales: las placas encajan entre ellas dejando una entrecalle de 3 mm por donde se inserte la pasta de juntas. Este sistema no utiliza cinta de papel. La pasta de juntas se aplica en las cavidades de las placas y una masilla elástica en los encuentros. Suspendido mediante una estructura simple de perfiles TC47 en acero galvanizado de 0,6 mm de espesor con modulación de 600 mm entre ejes y unidos al forjado mediante varilla roscada galvanizada y horquilla TC47. Incluida la parte proporcional del resto de materiales: tornillería, pasta de juntas, masilla para encuentros perimetrales, fijaciones, junta estanca, etc. Montaje según norma de instalación UNE 102043 y exigencias del CTE.
C21: 64730 | D21: 1.2.5 | E21: TECHO DOBLE / ESTRUCTURA SIMPLE ATT® 47 / 600 2x15 | F21: 600 | G21: 47 | H21: 30 | I21: Techo continuo formado por dos placas BASIC de 15 mm de espesor compuestas por yeso natural, fibra de vidrio y aditivos inorgánicos que le aportan alta dureza y resistencia mecánica. Reacción al fuego: EUROCLASE A1. Sistema de galces desiguales: las placas encajan entre ellas dejando una entrecalle de 3 mm por donde se inserte la pasta de juntas. Este sistema no utiliza cinta de papel. La pasta de juntas se aplica en las cavidades de las placas y una masilla elástica en los encuentros. Suspendido mediante una estructura simple de perfiles TC47 en acero galvanizado de 0,6 mm de espesor con modulación de 600 mm entre ejes y unidos al forjado mediante varilla roscada galvanizada y horquilla TC47. Incluida la parte proporcional del resto de materiales: tornillería, pasta de juntas, masilla para encuentros perimetrales, fijaciones, junta estanca, etc. Montaje según norma de instalación UNE 102043 y exigencias del CTE. | J21: Techo continuo formado por dos placas HIDRO de 15 mm de espesor compuestas por yeso natural, fibra de vidrio y aditivos inorgánicos que le aportan alta dureza y resistencia mecánica. Incorpora tratamiento hidrófugo, disminuyendo así, su capacidad de absorción de agua (menor al 5%). Idónea para proteger las estancias de los efectos adversos de la humedad. Reacción al fuego: EUROCLASE A1. Sistema de galces desiguales: las placas encajan entre ellas dejando una entrecalle de 3 mm por donde se inserte la pasta de juntas. Este sistema no utiliza cinta de papel. La pasta de juntas se aplica en las cavidades de las placas y una masilla elástica en los encuentros. Suspendido mediante una estructura simple de perfiles TC47 en acero galvanizado de 0,6 mm de espesor con modulación de 600 mm entre ejes y unidos al forjado mediante varilla roscada galvanizada y horquilla TC47. Incluida la parte proporcional del resto de materiales: tornillería, pasta de juntas, masilla para encuentros perimetrales, fijaciones, junta estanca, etc. Montaje según norma de instalación UNE 102043 y exigencias del CTE. | K21: Techo continuo formado por dos placas FUEGO de 15 mm de espesor compuestas por yeso natural, fibra de vidrio y aditivos inorgánicos que le aportan alta dureza y resistencia mecánica. Incorpora perlita y un aumento en la densidad que la hace idónea para un excelente comportamiento y resistencia frente al fuego. Reacción al fuego: EUROCLASE A1. Sistema de galces desiguales: las placas encajan entre ellas dejando una entrecalle de 3 mm por donde se inserte la pasta de juntas. Este sistema no utiliza cinta de papel. La pasta de juntas se aplica en las cavidades de las placas y una masilla elástica en los encuentros. Suspendido mediante una estructura simple de perfiles TC47 en acero galvanizado de 0,6 mm de espesor con modulación de 600 mm entre ejes y unidos al forjado mediante varilla roscada galvanizada y horquilla TC47. Incluida la parte proporcional del resto de materiales: tornillería, pasta de juntas, masilla para encuentros perimetrales, fijaciones, junta estanca, etc. Montaje según norma de instalación UNE 102043 y exigencias del CTE. | L21: Techo continuo formado por dos placas RESIST de 15 mm de espesor compuestas por yeso natural, fibra de vidrio y aditivos inorgánicos que le aportan alta dureza y resistencia mecánica. Con mayor cantidad de fibra de vidrio y dosificación modificada, aumenta su densidad, mejorando notablemente la resistencia mecánica. Idónea para lugares con altas exigencias en cuanto a deterioro y desgaste. Reacción al fuego: EUROCLASE A1. Sistema de galces desiguales: las placas encajan entre ellas dejando una entrecalle de 3 mm por donde se inserte la pasta de juntas. Este sistema no utiliza cinta de papel. La pasta de juntas se aplica en las cavidades de las placas y una masilla elástica en los encuentros. Suspendido mediante una estructura simple de perfiles TC47 en acero galvanizado de 0,6 mm de espesor con modulación de 600 mm entre ejes y unidos al forjado mediante varilla roscada galvanizada y horquilla TC47. Incluida la parte proporcional del resto de materiales: tornillería, pasta de juntas, masilla para encuentros perimetrales, fijaciones, junta estanca, etc. Montaje según norma de instalación UNE 102043 y exigencias del CTE. | M21: Techo continuo formado por dos placas HIDROPLUS de 15 mm de espesor compuestas por yeso natural, fibra de vidrio y aditivos inorgánicos que le aportan alta dureza y resistencia mecánica. Incorpora tratamiento hidrófugo y un aumento en su densidad, características claves para una elevada resistencia a la humedad (absorción de agua menor al 3%) y una gran resistencia mecánica. Idónea para zonas de intemperie. Reacción al fuego: EUROCLASE A1. Sistema de galces desiguales: las placas encajan entre ellas dejando una entrecalle de 3 mm por donde se inserte la pasta de juntas. Este sistema no utiliza cinta de papel. La pasta de juntas se aplica en las cavidades de las placas y una masilla elástica en los encuentros. Suspendido mediante una estructura simple de perfiles TC47 en acero galvanizado de 0,6 mm de espesor con modulación de 600 mm entre ejes y unidos al forjado mediante varilla roscada galvanizada y horquilla TC47. Incluida la parte proporcional del resto de materiales: tornillería, pasta de juntas, masilla para encuentros perimetrales, fijaciones, junta estanca, etc. Montaje según norma de instalación UNE 102043 y exigencias del CTE. | N21: Techo continuo formado por dos placas SUPREM de 15 mm de espesor compuestas por yeso natural, fibra de vidrio y aditivos inorgánicos que le aportan alta dureza y resistencia mecánica. Incorpora tratamiento hidrófugo, perlita y un aumento en la densidad para conseguir soluciones constructivas que cumplan, altos requisitos frente al fuego y una capacidad reducida de absorción de agua. Reacción al fuego: EUROCLASE A1. Sistema de galces desiguales: las placas encajan entre ellas dejando una entrecalle de 3 mm por donde se inserte la pasta de juntas. Este sistema no utiliza cinta de papel. La pasta de juntas se aplica en las cavidades de las placas y una masilla elástica en los encuentros. Suspendido mediante una estructura simple de perfiles TC47 en acero galvanizado de 0,6 mm de espesor con modulación de 600 mm entre ejes y unidos al forjado mediante varilla roscada galvanizada y horquilla TC47. Incluida la parte proporcional del resto de materiales: tornillería, pasta de juntas, masilla para encuentros perimetrales, fijaciones, junta estanca, etc. Montaje según norma de instalación UNE 102043 y exigencias del CTE.
C22: 64740 | D22: 1.2.6 | E22: TECHO DOBLE / ESTRUCTURA SIMPLE ATT® 47 / 600 2x20 | F22: 600 | G22: 47 | H22: 40 | I22: Techo continuo formado por dos placas BASIC de 20 mm de espesor compuestas por yeso natural, fibra de vidrio y aditivos inorgánicos que le aportan alta dureza y resistencia mecánica. Reacción al fuego: EUROCLASE A1. Sistema de galces desiguales: las placas encajan entre ellas dejando una entrecalle de 3 mm por donde se inserte la pasta de juntas. Este sistema no utiliza cinta de papel. La pasta de juntas se aplica en las cavidades de las placas y una masilla elástica en los encuentros. Suspendido mediante una estructura simple de perfiles TC47 en acero galvanizado de 0,6 mm de espesor con modulación de 600 mm entre ejes y unidos al forjado mediante varilla roscada galvanizada y horquilla TC47. Incluida la parte proporcional del resto de materiales: tornillería, pasta de juntas, masilla para encuentros perimetrales, fijaciones, junta estanca, etc. Montaje según norma de instalación UNE 102043 y exigencias del CTE. | J22: Techo continuo formado por dos placas HIDRO de 20 mm de espesor compuestas por yeso natural, fibra de vidrio y aditivos inorgánicos que le aportan alta dureza y resistencia mecánica. Incorpora tratamiento hidrófugo, disminuyendo así, su capacidad de absorción de agua (menor al 5%). Idónea para proteger las estancias de los efectos adversos de la humedad. Reacción al fuego: EUROCLASE A1. Sistema de galces desiguales: las placas encajan entre ellas dejando una entrecalle de 3 mm por donde se inserte la pasta de juntas. Este sistema no utiliza cinta de papel. La pasta de juntas se aplica en las cavidades de las placas y una masilla elástica en los encuentros. Suspendido mediante una estructura simple de perfiles TC47 en acero galvanizado de 0,6 mm de espesor con modulación de 600 mm entre ejes y unidos al forjado mediante varilla roscada galvanizada y horquilla TC47. Incluida la parte proporcional del resto de materiales: tornillería, pasta de juntas, masilla para encuentros perimetrales, fijaciones, junta estanca, etc. Montaje según norma de instalación UNE 102043 y exigencias del CTE. | K22: Techo continuo formado por dos placas FUEGO de 20 mm de espesor compuestas por yeso natural, fibra de vidrio y aditivos inorgánicos que le aportan alta dureza y resistencia mecánica. Incorpora perlita y un aumento en la densidad que la hace idónea para un excelente comportamiento y resistencia frente al fuego. Reacción al fuego: EUROCLASE A1. Sistema de galces desiguales: las placas encajan entre ellas dejando una entrecalle de 3 mm por donde se inserte la pasta de juntas. Este sistema no utiliza cinta de papel. La pasta de juntas se aplica en las cavidades de las placas y una masilla elástica en los encuentros. Suspendido mediante una estructura simple de perfiles TC47 en acero galvanizado de 0,6 mm de espesor con modulación de 600 mm entre ejes y unidos al forjado mediante varilla roscada galvanizada y horquilla TC47. Incluida la parte proporcional del resto de materiales: tornillería, pasta de juntas, masilla para encuentros perimetrales, fijaciones, junta estanca, etc. Montaje según norma de instalación UNE 102043 y exigencias del CTE. | L22: Techo continuo formado por dos placas RESIST de 20 mm de espesor compuestas por yeso natural, fibra de vidrio y aditivos inorgánicos que le aportan alta dureza y resistencia mecánica. Con mayor cantidad de fibra de vidrio y dosificación modificada, aumenta su densidad, mejorando notablemente la resistencia mecánica. Idónea para lugares con altas exigencias en cuanto a deterioro y desgaste. Reacción al fuego: EUROCLASE A1. Sistema de galces desiguales: las placas encajan entre ellas dejando una entrecalle de 3 mm por donde se inserte la pasta de juntas. Este sistema no utiliza cinta de papel. La pasta de juntas se aplica en las cavidades de las placas y una masilla elástica en los encuentros. Suspendido mediante una estructura simple de perfiles TC47 en acero galvanizado de 0,6 mm de espesor con modulación de 600 mm entre ejes y unidos al forjado mediante varilla roscada galvanizada y horquilla TC47. Incluida la parte proporcional del resto de materiales: tornillería, pasta de juntas, masilla para encuentros perimetrales, fijaciones, junta estanca, etc. Montaje según norma de instalación UNE 102043 y exigencias del CTE. | M22: Techo continuo formado por dos placas HIDROPLUS de 20 mm de espesor compuestas por yeso natural, fibra de vidrio y aditivos inorgánicos que le aportan alta dureza y resistencia mecánica. Incorpora tratamiento hidrófugo y un aumento en su densidad, características claves para una elevada resistencia a la humedad (absorción de agua menor al 3%) y una gran resistencia mecánica. Idónea para zonas de intemperie. Reacción al fuego: EUROCLASE A1. Sistema de galces desiguales: las placas encajan entre ellas dejando una entrecalle de 3 mm por donde se inserte la pasta de juntas. Este sistema no utiliza cinta de papel. La pasta de juntas se aplica en las cavidades de las placas y una masilla elástica en los encuentros. Suspendido mediante una estructura simple de perfiles TC47 en acero galvanizado de 0,6 mm de espesor con modulación de 600 mm entre ejes y unidos al forjado mediante varilla roscada galvanizada y horquilla TC47. Incluida la parte proporcional del resto de materiales: tornillería, pasta de juntas, masilla para encuentros perimetrales, fijaciones, junta estanca, etc. Montaje según norma de instalación UNE 102043 y exigencias del CTE. | N22: Techo continuo formado por dos placas SUPREM de 20 mm de espesor compuestas por yeso natural, fibra de vidrio y aditivos inorgánicos que le aportan alta dureza y resistencia mecánica. Incorpora tratamiento hidrófugo, perlita y un aumento en la densidad para conseguir soluciones constructivas que cumplan, altos requisitos frente al fuego y una capacidad reducida de absorción de agua. Reacción al fuego: EUROCLASE A1. Sistema de galces desiguales: las placas encajan entre ellas dejando una entrecalle de 3 mm por donde se inserte la pasta de juntas. Este sistema no utiliza cinta de papel. La pasta de juntas se aplica en las cavidades de las placas y una masilla elástica en los encuentros. Suspendido mediante una estructura simple de perfiles TC47 en acero galvanizado de 0,6 mm de espesor con modulación de 600 mm entre ejes y unidos al forjado mediante varilla roscada galvanizada y horquilla TC47. Incluida la parte proporcional del resto de materiales: tornillería, pasta de juntas, masilla para encuentros perimetrales, fijaciones, junta estanca, etc. Montaje según norma de instalación UNE 102043 y exigencias del CTE.
C23: 46026 | D23: 1.2.7 | E23: TECHO DOBLE / ESTRUCTURA SIMPLE ATT® 60 / 400 2x13 | F23: 400 | G23: 60 | H23: 26 | I23: Techo continuo formado por dos placas BASIC de 13 mm de espesor compuestas por yeso natural, fibra de vidrio y aditivos inorgánicos que le aportan alta dureza y resistencia mecánica. Reacción al fuego: EUROCLASE A1. Sistema de galces desiguales: las placas encajan entre ellas dejando una entrecalle de 3 mm por donde se inserte la pasta de juntas. Este sistema no utiliza cinta de papel. La pasta de juntas se aplica en las cavidades de las placas y una masilla elástica en los encuentros. Suspendido mediante una estructura simple de perfiles TC60 en acero galvanizado de 0,6 mm de espesor con modulación de 400 mm entre ejes y unidos al forjado mediante varilla roscada galvanizada y horquilla TC60. Incluida la parte proporcional del resto de materiales: tornillería, pasta de juntas, masilla para encuentros perimetrales, fijaciones, junta estanca, etc. Montaje según norma de instalación UNE 102043 y exigencias del CTE. | J23: Techo continuo formado por dos placas HIDRO de 13 mm de espesor compuestas por yeso natural, fibra de vidrio y aditivos inorgánicos que le aportan alta dureza y resistencia mecánica. Incorpora tratamiento hidrófugo, disminuyendo así, su capacidad de absorción de agua (menor al 5%). Idónea para proteger las estancias de los efectos adversos de la humedad. Reacción al fuego: EUROCLASE A1. Sistema de galces desiguales: las placas encajan entre ellas dejando una entrecalle de 3 mm por donde se inserte la pasta de juntas. Este sistema no utiliza cinta de papel. La pasta de juntas se aplica en las cavidades de las placas y una masilla elástica en los encuentros. Suspendido mediante una estructura simple de perfiles TC60 en acero galvanizado de 0,6 mm de espesor con modulación de 400 mm entre ejes y unidos al forjado mediante varilla roscada galvanizada y horquilla TC60. Incluida la parte proporcional del resto de materiales: tornillería, pasta de juntas, masilla para encuentros perimetrales, fijaciones, junta estanca, etc. Montaje según norma de instalación UNE 102043 y exigencias del CTE. | K23: Techo continuo formado por dos placas FUEGO de 13 mm de espesor compuestas por yeso natural, fibra de vidrio y aditivos inorgánicos que le aportan alta dureza y resistencia mecánica. Incorpora perlita y un aumento en la densidad que la hace idónea para un excelente comportamiento y resistencia frente al fuego. Reacción al fuego: EUROCLASE A1. Sistema de galces desiguales: las placas encajan entre ellas dejando una entrecalle de 3 mm por donde se inserte la pasta de juntas. Este sistema no utiliza cinta de papel. La pasta de juntas se aplica en las cavidades de las placas y una masilla elástica en los encuentros. Suspendido mediante una estructura simple de perfiles TC60 en acero galvanizado de 0,6 mm de espesor con modulación de 400 mm entre ejes y unidos al forjado mediante varilla roscada galvanizada y horquilla TC60. Incluida la parte proporcional del resto de materiales: tornillería, pasta de juntas, masilla para encuentros perimetrales, fijaciones, junta estanca, etc. Montaje según norma de instalación UNE 102043 y exigencias del CTE. | L23: Techo continuo formado por dos placas RESIST de 13 mm de espesor compuestas por yeso natural, fibra de vidrio y aditivos inorgánicos que le aportan alta dureza y resistencia mecánica. Con mayor cantidad de fibra de vidrio y dosificación modificada, aumenta su densidad, mejorando notablemente la resistencia mecánica. Idónea para lugares con altas exigencias en cuanto a deterioro y desgaste. Reacción al fuego: EUROCLASE A1. Sistema de galces desiguales: las placas encajan entre ellas dejando una entrecalle de 3 mm por donde se inserte la pasta de juntas. Este sistema no utiliza cinta de papel. La pasta de juntas se aplica en las cavidades de las placas y una masilla elástica en los encuentros. Suspendido mediante una estructura simple de perfiles TC60 en acero galvanizado de 0,6 mm de espesor con modulación de 400 mm entre ejes y unidos al forjado mediante varilla roscada galvanizada y horquilla TC60. Incluida la parte proporcional del resto de materiales: tornillería, pasta de juntas, masilla para encuentros perimetrales, fijaciones, junta estanca, etc. Montaje según norma de instalación UNE 102043 y exigencias del CTE. | M23: Techo continuo formado por dos placas HIDROPLUS de 13 mm de espesor compuestas por yeso natural, fibra de vidrio y aditivos inorgánicos que le aportan alta dureza y resistencia mecánica. Incorpora tratamiento hidrófugo y un aumento en su densidad, características claves para una elevada resistencia a la humedad (absorción de agua menor al 3%) y una gran resistencia mecánica. Idónea para zonas de intemperie. Reacción al fuego: EUROCLASE A1. Sistema de galces desiguales: las placas encajan entre ellas dejando una entrecalle de 3 mm por donde se inserte la pasta de juntas. Este sistema no utiliza cinta de papel. La pasta de juntas se aplica en las cavidades de las placas y una masilla elástica en los encuentros. Suspendido mediante una estructura simple de perfiles TC60 en acero galvanizado de 0,6 mm de espesor con modulación de 400 mm entre ejes y unidos al forjado mediante varilla roscada galvanizada y horquilla TC60. Incluida la parte proporcional del resto de materiales: tornillería, pasta de juntas, masilla para encuentros perimetrales, fijaciones, junta estanca, etc. Montaje según norma de instalación UNE 102043 y exigencias del CTE. | N23: Techo continuo formado por dos placas SUPREM de 13 mm de espesor compuestas por yeso natural, fibra de vidrio y aditivos inorgánicos que le aportan alta dureza y resistencia mecánica. Incorpora tratamiento hidrófugo, perlita y un aumento en la densidad para conseguir soluciones constructivas que cumplan, altos requisitos frente al fuego y una capacidad reducida de absorción de agua. Reacción al fuego: EUROCLASE A1. Sistema de galces desiguales: las placas encajan entre ellas dejando una entrecalle de 3 mm por donde se inserte la pasta de juntas. Este sistema no utiliza cinta de papel. La pasta de juntas se aplica en las cavidades de las placas y una masilla elástica en los encuentros. Suspendido mediante una estructura simple de perfiles TC60 en acero galvanizado de 0,6 mm de espesor con modulación de 400 mm entre ejes y unidos al forjado mediante varilla roscada galvanizada y horquilla TC60. Incluida la parte proporcional del resto de materiales: tornillería, pasta de juntas, masilla para encuentros perimetrales, fijaciones, junta estanca, etc. Montaje según norma de instalación UNE 102043 y exigencias del CTE.
C24: 46030 | D24: 1.2.8 | E24: TECHO DOBLE / ESTRUCTURA SIMPLE ATT® 60 / 400 2x15 | F24: 400 | G24: 60 | H24: 30 | I24: Techo continuo formado por dos placas BASIC de 15 mm de espesor compuestas por yeso natural, fibra de vidrio y aditivos inorgánicos que le aportan alta dureza y resistencia mecánica. Reacción al fuego: EUROCLASE A1. Sistema de galces desiguales: las placas encajan entre ellas dejando una entrecalle de 3 mm por donde se inserte la pasta de juntas. Este sistema no utiliza cinta de papel. La pasta de juntas se aplica en las cavidades de las placas y una masilla elástica en los encuentros. Suspendido mediante una estructura simple de perfiles TC60 en acero galvanizado de 0,6 mm de espesor con modulación de 400 mm entre ejes y unidos al forjado mediante varilla roscada galvanizada y horquilla TC60. Incluida la parte proporcional del resto de materiales: tornillería, pasta de juntas, masilla para encuentros perimetrales, fijaciones, junta estanca, etc. Montaje según norma de instalación UNE 102043 y exigencias del CTE. | J24: Techo continuo formado por dos placas HIDRO de 15 mm de espesor compuestas por yeso natural, fibra de vidrio y aditivos inorgánicos que le aportan alta dureza y resistencia mecánica. Incorpora tratamiento hidrófugo, disminuyendo así, su capacidad de absorción de agua (menor al 5%). Idónea para proteger las estancias de los efectos adversos de la humedad. Reacción al fuego: EUROCLASE A1. Sistema de galces desiguales: las placas encajan entre ellas dejando una entrecalle de 3 mm por donde se inserte la pasta de juntas. Este sistema no utiliza cinta de papel. La pasta de juntas se aplica en las cavidades de las placas y una masilla elástica en los encuentros. Suspendido mediante una estructura simple de perfiles TC60 en acero galvanizado de 0,6 mm de espesor con modulación de 400 mm entre ejes y unidos al forjado mediante varilla roscada galvanizada y horquilla TC60. Incluida la parte proporcional del resto de materiales: tornillería, pasta de juntas, masilla para encuentros perimetrales, fijaciones, junta estanca, etc. Montaje según norma de instalación UNE 102043 y exigencias del CTE. | K24: Techo continuo formado por dos placas FUEGO de 15 mm de espesor compuestas por yeso natural, fibra de vidrio y aditivos inorgánicos que le aportan alta dureza y resistencia mecánica. Incorpora perlita y un aumento en la densidad que la hace idónea para un excelente comportamiento y resistencia frente al fuego. Reacción al fuego: EUROCLASE A1. Sistema de galces desiguales: las placas encajan entre ellas dejando una entrecalle de 3 mm por donde se inserte la pasta de juntas. Este sistema no utiliza cinta de papel. La pasta de juntas se aplica en las cavidades de las placas y una masilla elástica en los encuentros. Suspendido mediante una estructura simple de perfiles TC60 en acero galvanizado de 0,6 mm de espesor con modulación de 400 mm entre ejes y unidos al forjado mediante varilla roscada galvanizada y horquilla TC60. Incluida la parte proporcional del resto de materiales: tornillería, pasta de juntas, masilla para encuentros perimetrales, fijaciones, junta estanca, etc. Montaje según norma de instalación UNE 102043 y exigencias del CTE. | L24: Techo continuo formado por dos placas RESIST de 15 mm de espesor compuestas por yeso natural, fibra de vidrio y aditivos inorgánicos que le aportan alta dureza y resistencia mecánica. Con mayor cantidad de fibra de vidrio y dosificación modificada, aumenta su densidad, mejorando notablemente la resistencia mecánica. Idónea para lugares con altas exigencias en cuanto a deterioro y desgaste. Reacción al fuego: EUROCLASE A1. Sistema de galces desiguales: las placas encajan entre ellas dejando una entrecalle de 3 mm por donde se inserte la pasta de juntas. Este sistema no utiliza cinta de papel. La pasta de juntas se aplica en las cavidades de las placas y una masilla elástica en los encuentros. Suspendido mediante una estructura simple de perfiles TC60 en acero galvanizado de 0,6 mm de espesor con modulación de 400 mm entre ejes y unidos al forjado mediante varilla roscada galvanizada y horquilla TC60. Incluida la parte proporcional del resto de materiales: tornillería, pasta de juntas, masilla para encuentros perimetrales, fijaciones, junta estanca, etc. Montaje según norma de instalación UNE 102043 y exigencias del CTE. | M24: Techo continuo formado por dos placas HIDROPLUS de 15 mm de espesor compuestas por yeso natural, fibra de vidrio y aditivos inorgánicos que le aportan alta dureza y resistencia mecánica. Incorpora tratamiento hidrófugo y un aumento en su densidad, características claves para una elevada resistencia a la humedad (absorción de agua menor al 3%) y una gran resistencia mecánica. Idónea para zonas de intemperie. Reacción al fuego: EUROCLASE A1. Sistema de galces desiguales: las placas encajan entre ellas dejando una entrecalle de 3 mm por donde se inserte la pasta de juntas. Este sistema no utiliza cinta de papel. La pasta de juntas se aplica en las cavidades de las placas y una masilla elástica en los encuentros. Suspendido mediante una estructura simple de perfiles TC60 en acero galvanizado de 0,6 mm de espesor con modulación de 400 mm entre ejes y unidos al forjado mediante varilla roscada galvanizada y horquilla TC60. Incluida la parte proporcional del resto de materiales: tornillería, pasta de juntas, masilla para encuentros perimetrales, fijaciones, junta estanca, etc. Montaje según norma de instalación UNE 102043 y exigencias del CTE. | N24: Techo continuo formado por dos placas SUPREM de 15 mm de espesor compuestas por yeso natural, fibra de vidrio y aditivos inorgánicos que le aportan alta dureza y resistencia mecánica. Incorpora tratamiento hidrófugo, perlita y un aumento en la densidad para conseguir soluciones constructivas que cumplan, altos requisitos frente al fuego y una capacidad reducida de absorción de agua. Reacción al fuego: EUROCLASE A1. Sistema de galces desiguales: las placas encajan entre ellas dejando una entrecalle de 3 mm por donde se inserte la pasta de juntas. Este sistema no utiliza cinta de papel. La pasta de juntas se aplica en las cavidades de las placas y una masilla elástica en los encuentros. Suspendido mediante una estructura simple de perfiles TC60 en acero galvanizado de 0,6 mm de espesor con modulación de 400 mm entre ejes y unidos al forjado mediante varilla roscada galvanizada y horquilla TC60. Incluida la parte proporcional del resto de materiales: tornillería, pasta de juntas, masilla para encuentros perimetrales, fijaciones, junta estanca, etc. Montaje según norma de instalación UNE 102043 y exigencias del CTE.
C25: 46040 | D25: 1.2.9 | E25: TECHO DOBLE / ESTRUCTURA SIMPLE ATT® 60 / 400 2x20 | F25: 400 | G25: 60 | H25: 40 | I25: Techo continuo formado por dos placas BASIC de 20 mm de espesor compuestas por yeso natural, fibra de vidrio y aditivos inorgánicos que le aportan alta dureza y resistencia mecánica. Reacción al fuego: EUROCLASE A1. Sistema de galces desiguales: las placas encajan entre ellas dejando una entrecalle de 3 mm por donde se inserte la pasta de juntas. Este sistema no utiliza cinta de papel. La pasta de juntas se aplica en las cavidades de las placas y una masilla elástica en los encuentros. Suspendido mediante una estructura simple de perfiles TC60 en acero galvanizado de 0,6 mm de espesor con modulación de 400 mm entre ejes y unidos al forjado mediante varilla roscada galvanizada y horquilla TC60. Incluida la parte proporcional del resto de materiales: tornillería, pasta de juntas, masilla para encuentros perimetrales, fijaciones, junta estanca, etc. Montaje según norma de instalación UNE 102043 y exigencias del CTE. | J25: Techo continuo formado por dos placas HIDRO de 20 mm de espesor compuestas por yeso natural, fibra de vidrio y aditivos inorgánicos que le aportan alta dureza y resistencia mecánica. Incorpora tratamiento hidrófugo, disminuyendo así, su capacidad de absorción de agua (menor al 5%). Idónea para proteger las estancias de los efectos adversos de la humedad. Reacción al fuego: EUROCLASE A1. Sistema de galces desiguales: las placas encajan entre ellas dejando una entrecalle de 3 mm por donde se inserte la pasta de juntas. Este sistema no utiliza cinta de papel. La pasta de juntas se aplica en las cavidades de las placas y una masilla elástica en los encuentros. Suspendido mediante una estructura simple de perfiles TC60 en acero galvanizado de 0,6 mm de espesor con modulación de 400 mm entre ejes y unidos al forjado mediante varilla roscada galvanizada y horquilla TC60. Incluida la parte proporcional del resto de materiales: tornillería, pasta de juntas, masilla para encuentros perimetrales, fijaciones, junta estanca, etc. Montaje según norma de instalación UNE 102043 y exigencias del CTE. | K25: Techo continuo formado por dos placas FUEGO de 20 mm de espesor compuestas por yeso natural, fibra de vidrio y aditivos inorgánicos que le aportan alta dureza y resistencia mecánica. Incorpora perlita y un aumento en la densidad que la hace idónea para un excelente comportamiento y resistencia frente al fuego. Reacción al fuego: EUROCLASE A1. Sistema de galces desiguales: las placas encajan entre ellas dejando una entrecalle de 3 mm por donde se inserte la pasta de juntas. Este sistema no utiliza cinta de papel. La pasta de juntas se aplica en las cavidades de las placas y una masilla elástica en los encuentros. Suspendido mediante una estructura simple de perfiles TC60 en acero galvanizado de 0,6 mm de espesor con modulación de 400 mm entre ejes y unidos al forjado mediante varilla roscada galvanizada y horquilla TC60. Incluida la parte proporcional del resto de materiales: tornillería, pasta de juntas, masilla para encuentros perimetrales, fijaciones, junta estanca, etc. Montaje según norma de instalación UNE 102043 y exigencias del CTE. | L25: Techo continuo formado por dos placas RESIST de 20 mm de espesor compuestas por yeso natural, fibra de vidrio y aditivos inorgánicos que le aportan alta dureza y resistencia mecánica. Con mayor cantidad de fibra de vidrio y dosificación modificada, aumenta su densidad, mejorando notablemente la resistencia mecánica. Idónea para lugares con altas exigencias en cuanto a deterioro y desgaste. Reacción al fuego: EUROCLASE A1. Sistema de galces desiguales: las placas encajan entre ellas dejando una entrecalle de 3 mm por donde se inserte la pasta de juntas. Este sistema no utiliza cinta de papel. La pasta de juntas se aplica en las cavidades de las placas y una masilla elástica en los encuentros. Suspendido mediante una estructura simple de perfiles TC60 en acero galvanizado de 0,6 mm de espesor con modulación de 400 mm entre ejes y unidos al forjado mediante varilla roscada galvanizada y horquilla TC60. Incluida la parte proporcional del resto de materiales: tornillería, pasta de juntas, masilla para encuentros perimetrales, fijaciones, junta estanca, etc. Montaje según norma de instalación UNE 102043 y exigencias del CTE. | M25: Techo continuo formado por dos placas HIDROPLUS de 20 mm de espesor compuestas por yeso natural, fibra de vidrio y aditivos inorgánicos que le aportan alta dureza y resistencia mecánica. Incorpora tratamiento hidrófugo y un aumento en su densidad, características claves para una elevada resistencia a la humedad (absorción de agua menor al 3%) y una gran resistencia mecánica. Idónea para zonas de intemperie. Reacción al fuego: EUROCLASE A1. Sistema de galces desiguales: las placas encajan entre ellas dejando una entrecalle de 3 mm por donde se inserte la pasta de juntas. Este sistema no utiliza cinta de papel. La pasta de juntas se aplica en las cavidades de las placas y una masilla elástica en los encuentros. Suspendido mediante una estructura simple de perfiles TC60 en acero galvanizado de 0,6 mm de espesor con modulación de 400 mm entre ejes y unidos al forjado mediante varilla roscada galvanizada y horquilla TC60. Incluida la parte proporcional del resto de materiales: tornillería, pasta de juntas, masilla para encuentros perimetrales, fijaciones, junta estanca, etc. Montaje según norma de instalación UNE 102043 y exigencias del CTE. | N25: Techo continuo formado por dos placas SUPREM de 20 mm de espesor compuestas por yeso natural, fibra de vidrio y aditivos inorgánicos que le aportan alta dureza y resistencia mecánica. Incorpora tratamiento hidrófugo, perlita y un aumento en la densidad para conseguir soluciones constructivas que cumplan, altos requisitos frente al fuego y una capacidad reducida de absorción de agua. Reacción al fuego: EUROCLASE A1. Sistema de galces desiguales: las placas encajan entre ellas dejando una entrecalle de 3 mm por donde se inserte la pasta de juntas. Este sistema no utiliza cinta de papel. La pasta de juntas se aplica en las cavidades de las placas y una masilla elástica en los encuentros. Suspendido mediante una estructura simple de perfiles TC60 en acero galvanizado de 0,6 mm de espesor con modulación de 400 mm entre ejes y unidos al forjado mediante varilla roscada galvanizada y horquilla TC60. Incluida la parte proporcional del resto de materiales: tornillería, pasta de juntas, masilla para encuentros perimetrales, fijaciones, junta estanca, etc. Montaje según norma de instalación UNE 102043 y exigencias del CTE.
C26: 66026 | D26: 1.2.10 | E26: TECHO DOBLE / ESTRUCTURA SIMPLE ATT® 60 / 600 2x13 | F26: 600 | G26: 60 | H26: 26 | I26: Techo continuo formado por dos placas BASIC de 13 mm de espesor compuestas por yeso natural, fibra de vidrio y aditivos inorgánicos que le aportan alta dureza y resistencia mecánica. Reacción al fuego: EUROCLASE A1. Sistema de galces desiguales: las placas encajan entre ellas dejando una entrecalle de 3 mm por donde se inserte la pasta de juntas. Este sistema no utiliza cinta de papel. La pasta de juntas se aplica en las cavidades de las placas y una masilla elástica en los encuentros. Suspendido mediante una estructura simple de perfiles TC60 en acero galvanizado de 0,6 mm de espesor con modulación de 600 mm entre ejes y unidos al forjado mediante varilla roscada galvanizada y horquilla TC60. Incluida la parte proporcional del resto de materiales: tornillería, pasta de juntas, masilla para encuentros perimetrales, fijaciones, junta estanca, etc. Montaje según norma de instalación UNE 102043 y exigencias del CTE. | J26: Techo continuo formado por dos placas HIDRO de 13 mm de espesor compuestas por yeso natural, fibra de vidrio y aditivos inorgánicos que le aportan alta dureza y resistencia mecánica. Incorpora tratamiento hidrófugo, disminuyendo así, su capacidad de absorción de agua (menor al 5%). Idónea para proteger las estancias de los efectos adversos de la humedad. Reacción al fuego: EUROCLASE A1. Sistema de galces desiguales: las placas encajan entre ellas dejando una entrecalle de 3 mm por donde se inserte la pasta de juntas. Este sistema no utiliza cinta de papel. La pasta de juntas se aplica en las cavidades de las placas y una masilla elástica en los encuentros. Suspendido mediante una estructura simple de perfiles TC60 en acero galvanizado de 0,6 mm de espesor con modulación de 600 mm entre ejes y unidos al forjado mediante varilla roscada galvanizada y horquilla TC60. Incluida la parte proporcional del resto de materiales: tornillería, pasta de juntas, masilla para encuentros perimetrales, fijaciones, junta estanca, etc. Montaje según norma de instalación UNE 102043 y exigencias del CTE. | K26: Techo continuo formado por dos placas FUEGO de 13 mm de espesor compuestas por yeso natural, fibra de vidrio y aditivos inorgánicos que le aportan alta dureza y resistencia mecánica. Incorpora perlita y un aumento en la densidad que la hace idónea para un excelente comportamiento y resistencia frente al fuego. Reacción al fuego: EUROCLASE A1. Sistema de galces desiguales: las placas encajan entre ellas dejando una entrecalle de 3 mm por donde se inserte la pasta de juntas. Este sistema no utiliza cinta de papel. La pasta de juntas se aplica en las cavidades de las placas y una masilla elástica en los encuentros. Suspendido mediante una estructura simple de perfiles TC60 en acero galvanizado de 0,6 mm de espesor con modulación de 600 mm entre ejes y unidos al forjado mediante varilla roscada galvanizada y horquilla TC60. Incluida la parte proporcional del resto de materiales: tornillería, pasta de juntas, masilla para encuentros perimetrales, fijaciones, junta estanca, etc. Montaje según norma de instalación UNE 102043 y exigencias del CTE. | L26: Techo continuo formado por dos placas RESIST de 13 mm de espesor compuestas por yeso natural, fibra de vidrio y aditivos inorgánicos que le aportan alta dureza y resistencia mecánica. Con mayor cantidad de fibra de vidrio y dosificación modificada, aumenta su densidad, mejorando notablemente la resistencia mecánica. Idónea para lugares con altas exigencias en cuanto a deterioro y desgaste. Reacción al fuego: EUROCLASE A1. Sistema de galces desiguales: las placas encajan entre ellas dejando una entrecalle de 3 mm por donde se inserte la pasta de juntas. Este sistema no utiliza cinta de papel. La pasta de juntas se aplica en las cavidades de las placas y una masilla elástica en los encuentros. Suspendido mediante una estructura simple de perfiles TC60 en acero galvanizado de 0,6 mm de espesor con modulación de 600 mm entre ejes y unidos al forjado mediante varilla roscada galvanizada y horquilla TC60. Incluida la parte proporcional del resto de materiales: tornillería, pasta de juntas, masilla para encuentros perimetrales, fijaciones, junta estanca, etc. Montaje según norma de instalación UNE 102043 y exigencias del CTE. | M26: Techo continuo formado por dos placas HIDROPLUS de 13 mm de espesor compuestas por yeso natural, fibra de vidrio y aditivos inorgánicos que le aportan alta dureza y resistencia mecánica. Incorpora tratamiento hidrófugo y un aumento en su densidad, características claves para una elevada resistencia a la humedad (absorción de agua menor al 3%) y una gran resistencia mecánica. Idónea para zonas de intemperie. Reacción al fuego: EUROCLASE A1. Sistema de galces desiguales: las placas encajan entre ellas dejando una entrecalle de 3 mm por donde se inserte la pasta de juntas. Este sistema no utiliza cinta de papel. La pasta de juntas se aplica en las cavidades de las placas y una masilla elástica en los encuentros. Suspendido mediante una estructura simple de perfiles TC60 en acero galvanizado de 0,6 mm de espesor con modulación de 600 mm entre ejes y unidos al forjado mediante varilla roscada galvanizada y horquilla TC60. Incluida la parte proporcional del resto de materiales: tornillería, pasta de juntas, masilla para encuentros perimetrales, fijaciones, junta estanca, etc. Montaje según norma de instalación UNE 102043 y exigencias del CTE. | N26: Techo continuo formado por dos placas SUPREM de 13 mm de espesor compuestas por yeso natural, fibra de vidrio y aditivos inorgánicos que le aportan alta dureza y resistencia mecánica. Incorpora tratamiento hidrófugo, perlita y un aumento en la densidad para conseguir soluciones constructivas que cumplan, altos requisitos frente al fuego y una capacidad reducida de absorción de agua. Reacción al fuego: EUROCLASE A1. Sistema de galces desiguales: las placas encajan entre ellas dejando una entrecalle de 3 mm por donde se inserte la pasta de juntas. Este sistema no utiliza cinta de papel. La pasta de juntas se aplica en las cavidades de las placas y una masilla elástica en los encuentros. Suspendido mediante una estructura simple de perfiles TC60 en acero galvanizado de 0,6 mm de espesor con modulación de 600 mm entre ejes y unidos al forjado mediante varilla roscada galvanizada y horquilla TC60. Incluida la parte proporcional del resto de materiales: tornillería, pasta de juntas, masilla para encuentros perimetrales, fijaciones, junta estanca, etc. Montaje según norma de instalación UNE 102043 y exigencias del CTE.
C27: 66030 | D27: 1.2.11 | E27: TECHO DOBLE / ESTRUCTURA SIMPLE ATT® 60 / 600 2x15 | F27: 600 | G27: 60 | H27: 30 | I27: Techo continuo formado por dos placas BASIC de 15 mm de espesor compuestas por yeso natural, fibra de vidrio y aditivos inorgánicos que le aportan alta dureza y resistencia mecánica. Reacción al fuego: EUROCLASE A1. Sistema de galces desiguales: las placas encajan entre ellas dejando una entrecalle de 3 mm por donde se inserte la pasta de juntas. Este sistema no utiliza cinta de papel. La pasta de juntas se aplica en las cavidades de las placas y una masilla elástica en los encuentros. Suspendido mediante una estructura simple de perfiles TC60 en acero galvanizado de 0,6 mm de espesor con modulación de 600 mm entre ejes y unidos al forjado mediante varilla roscada galvanizada y horquilla TC60. Incluida la parte proporcional del resto de materiales: tornillería, pasta de juntas, masilla para encuentros perimetrales, fijaciones, junta estanca, etc. Montaje según norma de instalación UNE 102043 y exigencias del CTE. | J27: Techo continuo formado por dos placas HIDRO de 15 mm de espesor compuestas por yeso natural, fibra de vidrio y aditivos inorgánicos que le aportan alta dureza y resistencia mecánica. Incorpora tratamiento hidrófugo, disminuyendo así, su capacidad de absorción de agua (menor al 5%). Idónea para proteger las estancias de los efectos adversos de la humedad. Reacción al fuego: EUROCLASE A1. Sistema de galces desiguales: las placas encajan entre ellas dejando una entrecalle de 3 mm por donde se inserte la pasta de juntas. Este sistema no utiliza cinta de papel. La pasta de juntas se aplica en las cavidades de las placas y una masilla elástica en los encuentros. Suspendido mediante una estructura simple de perfiles TC60 en acero galvanizado de 0,6 mm de espesor con modulación de 600 mm entre ejes y unidos al forjado mediante varilla roscada galvanizada y horquilla TC60. Incluida la parte proporcional del resto de materiales: tornillería, pasta de juntas, masilla para encuentros perimetrales, fijaciones, junta estanca, etc. Montaje según norma de instalación UNE 102043 y exigencias del CTE. | K27: Techo continuo formado por dos placas FUEGO de 15 mm de espesor compuestas por yeso natural, fibra de vidrio y aditivos inorgánicos que le aportan alta dureza y resistencia mecánica. Incorpora perlita y un aumento en la densidad que la hace idónea para un excelente comportamiento y resistencia frente al fuego. Reacción al fuego: EUROCLASE A1. Sistema de galces desiguales: las placas encajan entre ellas dejando una entrecalle de 3 mm por donde se inserte la pasta de juntas. Este sistema no utiliza cinta de papel. La pasta de juntas se aplica en las cavidades de las placas y una masilla elástica en los encuentros. Suspendido mediante una estructura simple de perfiles TC60 en acero galvanizado de 0,6 mm de espesor con modulación de 600 mm entre ejes y unidos al forjado mediante varilla roscada galvanizada y horquilla TC60. Incluida la parte proporcional del resto de materiales: tornillería, pasta de juntas, masilla para encuentros perimetrales, fijaciones, junta estanca, etc. Montaje según norma de instalación UNE 102043 y exigencias del CTE. | L27: Techo continuo formado por dos placas RESIST de 15 mm de espesor compuestas por yeso natural, fibra de vidrio y aditivos inorgánicos que le aportan alta dureza y resistencia mecánica. Con mayor cantidad de fibra de vidrio y dosificación modificada, aumenta su densidad, mejorando notablemente la resistencia mecánica. Idónea para lugares con altas exigencias en cuanto a deterioro y desgaste. Reacción al fuego: EUROCLASE A1. Sistema de galces desiguales: las placas encajan entre ellas dejando una entrecalle de 3 mm por donde se inserte la pasta de juntas. Este sistema no utiliza cinta de papel. La pasta de juntas se aplica en las cavidades de las placas y una masilla elástica en los encuentros. Suspendido mediante una estructura simple de perfiles TC60 en acero galvanizado de 0,6 mm de espesor con modulación de 600 mm entre ejes y unidos al forjado mediante varilla roscada galvanizada y horquilla TC60. Incluida la parte proporcional del resto de materiales: tornillería, pasta de juntas, masilla para encuentros perimetrales, fijaciones, junta estanca, etc. Montaje según norma de instalación UNE 102043 y exigencias del CTE. | M27: Techo continuo formado por dos placas HIDROPLUS de 15 mm de espesor compuestas por yeso natural, fibra de vidrio y aditivos inorgánicos que le aportan alta dureza y resistencia mecánica. Incorpora tratamiento hidrófugo y un aumento en su densidad, características claves para una elevada resistencia a la humedad (absorción de agua menor al 3%) y una gran resistencia mecánica. Idónea para zonas de intemperie. Reacción al fuego: EUROCLASE A1. Sistema de galces desiguales: las placas encajan entre ellas dejando una entrecalle de 3 mm por donde se inserte la pasta de juntas. Este sistema no utiliza cinta de papel. La pasta de juntas se aplica en las cavidades de las placas y una masilla elástica en los encuentros. Suspendido mediante una estructura simple de perfiles TC60 en acero galvanizado de 0,6 mm de espesor con modulación de 600 mm entre ejes y unidos al forjado mediante varilla roscada galvanizada y horquilla TC60. Incluida la parte proporcional del resto de materiales: tornillería, pasta de juntas, masilla para encuentros perimetrales, fijaciones, junta estanca, etc. Montaje según norma de instalación UNE 102043 y exigencias del CTE. | N27: Techo continuo formado por dos placas SUPREM de 15 mm de espesor compuestas por yeso natural, fibra de vidrio y aditivos inorgánicos que le aportan alta dureza y resistencia mecánica. Incorpora tratamiento hidrófugo, perlita y un aumento en la densidad para conseguir soluciones constructivas que cumplan, altos requisitos frente al fuego y una capacidad reducida de absorción de agua. Reacción al fuego: EUROCLASE A1. Sistema de galces desiguales: las placas encajan entre ellas dejando una entrecalle de 3 mm por donde se inserte la pasta de juntas. Este sistema no utiliza cinta de papel. La pasta de juntas se aplica en las cavidades de las placas y una masilla elástica en los encuentros. Suspendido mediante una estructura simple de perfiles TC60 en acero galvanizado de 0,6 mm de espesor con modulación de 600 mm entre ejes y unidos al forjado mediante varilla roscada galvanizada y horquilla TC60. Incluida la parte proporcional del resto de materiales: tornillería, pasta de juntas, masilla para encuentros perimetrales, fijaciones, junta estanca, etc. Montaje según norma de instalación UNE 102043 y exigencias del CTE.
C28: 66040 | D28: 1.2.12 | E28: TECHO DOBLE / ESTRUCTURA SIMPLE ATT® 60 / 600 2x20 | F28: 600 | G28: 60 | H28: 40 | I28: Techo continuo formado por dos placas BASIC de 20 mm de espesor compuestas por yeso natural, fibra de vidrio y aditivos inorgánicos que le aportan alta dureza y resistencia mecánica. Reacción al fuego: EUROCLASE A1. Sistema de galces desiguales: las placas encajan entre ellas dejando una entrecalle de 3 mm por donde se inserte la pasta de juntas. Este sistema no utiliza cinta de papel. La pasta de juntas se aplica en las cavidades de las placas y una masilla elástica en los encuentros. Suspendido mediante una estructura simple de perfiles TC60 en acero galvanizado de 0,6 mm de espesor con modulación de 600 mm entre ejes y unidos al forjado mediante varilla roscada galvanizada y horquilla TC60. Incluida la parte proporcional del resto de materiales: tornillería, pasta de juntas, masilla para encuentros perimetrales, fijaciones, junta estanca, etc. Montaje según norma de instalación UNE 102043 y exigencias del CTE. | J28: Techo continuo formado por dos placas HIDRO de 20 mm de espesor compuestas por yeso natural, fibra de vidrio y aditivos inorgánicos que le aportan alta dureza y resistencia mecánica. Incorpora tratamiento hidrófugo, disminuyendo así, su capacidad de absorción de agua (menor al 5%). Idónea para proteger las estancias de los efectos adversos de la humedad. Reacción al fuego: EUROCLASE A1. Sistema de galces desiguales: las placas encajan entre ellas dejando una entrecalle de 3 mm por donde se inserte la pasta de juntas. Este sistema no utiliza cinta de papel. La pasta de juntas se aplica en las cavidades de las placas y una masilla elástica en los encuentros. Suspendido mediante una estructura simple de perfiles TC60 en acero galvanizado de 0,6 mm de espesor con modulación de 600 mm entre ejes y unidos al forjado mediante varilla roscada galvanizada y horquilla TC60. Incluida la parte proporcional del resto de materiales: tornillería, pasta de juntas, masilla para encuentros perimetrales, fijaciones, junta estanca, etc. Montaje según norma de instalación UNE 102043 y exigencias del CTE. | K28: Techo continuo formado por dos placas FUEGO de 20 mm de espesor compuestas por yeso natural, fibra de vidrio y aditivos inorgánicos que le aportan alta dureza y resistencia mecánica. Incorpora perlita y un aumento en la densidad que la hace idónea para un excelente comportamiento y resistencia frente al fuego. Reacción al fuego: EUROCLASE A1. Sistema de galces desiguales: las placas encajan entre ellas dejando una entrecalle de 3 mm por donde se inserte la pasta de juntas. Este sistema no utiliza cinta de papel. La pasta de juntas se aplica en las cavidades de las placas y una masilla elástica en los encuentros. Suspendido mediante una estructura simple de perfiles TC60 en acero galvanizado de 0,6 mm de espesor con modulación de 600 mm entre ejes y unidos al forjado mediante varilla roscada galvanizada y horquilla TC60. Incluida la parte proporcional del resto de materiales: tornillería, pasta de juntas, masilla para encuentros perimetrales, fijaciones, junta estanca, etc. Montaje según norma de instalación UNE 102043 y exigencias del CTE. | L28: Techo continuo formado por dos placas RESIST de 20 mm de espesor compuestas por yeso natural, fibra de vidrio y aditivos inorgánicos que le aportan alta dureza y resistencia mecánica. Con mayor cantidad de fibra de vidrio y dosificación modificada, aumenta su densidad, mejorando notablemente la resistencia mecánica. Idónea para lugares con altas exigencias en cuanto a deterioro y desgaste. Reacción al fuego: EUROCLASE A1. Sistema de galces desiguales: las placas encajan entre ellas dejando una entrecalle de 3 mm por donde se inserte la pasta de juntas. Este sistema no utiliza cinta de papel. La pasta de juntas se aplica en las cavidades de las placas y una masilla elástica en los encuentros. Suspendido mediante una estructura simple de perfiles TC60 en acero galvanizado de 0,6 mm de espesor con modulación de 600 mm entre ejes y unidos al forjado mediante varilla roscada galvanizada y horquilla TC60. Incluida la parte proporcional del resto de materiales: tornillería, pasta de juntas, masilla para encuentros perimetrales, fijaciones, junta estanca, etc. Montaje según norma de instalación UNE 102043 y exigencias del CTE. | M28: Techo continuo formado por dos placas HIDROPLUS de 20 mm de espesor compuestas por yeso natural, fibra de vidrio y aditivos inorgánicos que le aportan alta dureza y resistencia mecánica. Incorpora tratamiento hidrófugo y un aumento en su densidad, características claves para una elevada resistencia a la humedad (absorción de agua menor al 3%) y una gran resistencia mecánica. Idónea para zonas de intemperie. Reacción al fuego: EUROCLASE A1. Sistema de galces desiguales: las placas encajan entre ellas dejando una entrecalle de 3 mm por donde se inserte la pasta de juntas. Este sistema no utiliza cinta de papel. La pasta de juntas se aplica en las cavidades de las placas y una masilla elástica en los encuentros. Suspendido mediante una estructura simple de perfiles TC60 en acero galvanizado de 0,6 mm de espesor con modulación de 600 mm entre ejes y unidos al forjado mediante varilla roscada galvanizada y horquilla TC60. Incluida la parte proporcional del resto de materiales: tornillería, pasta de juntas, masilla para encuentros perimetrales, fijaciones, junta estanca, etc. Montaje según norma de instalación UNE 102043 y exigencias del CTE. | N28: Techo continuo formado por dos placas SUPREM de 20 mm de espesor compuestas por yeso natural, fibra de vidrio y aditivos inorgánicos que le aportan alta dureza y resistencia mecánica. Incorpora tratamiento hidrófugo, perlita y un aumento en la densidad para conseguir soluciones constructivas que cumplan, altos requisitos frente al fuego y una capacidad reducida de absorción de agua. Reacción al fuego: EUROCLASE A1. Sistema de galces desiguales: las placas encajan entre ellas dejando una entrecalle de 3 mm por donde se inserte la pasta de juntas. Este sistema no utiliza cinta de papel. La pasta de juntas se aplica en las cavidades de las placas y una masilla elástica en los encuentros. Suspendido mediante una estructura simple de perfiles TC60 en acero galvanizado de 0,6 mm de espesor con modulación de 600 mm entre ejes y unidos al forjado mediante varilla roscada galvanizada y horquilla TC60. Incluida la parte proporcional del resto de materiales: tornillería, pasta de juntas, masilla para encuentros perimetrales, fijaciones, junta estanca, etc. Montaje según norma de instalación UNE 102043 y exigencias del CTE.

Sheet Estructura simple una placa
C1: RENDIMIENTOS
C2: PEDIDO MATERIALES
C3: PRESUPUESTO
C4: LISTA DE MATERIALES
D5: =VLOOKUP(BE36,'Índice sistemas'!C5:E18,3,FALSE) -> TECHO SIMPLE / ESTRUCTURA SIMPLE ATT® 47 / 600 1x13 | M5: =$D$5 -> TECHO SIMPLE / ESTRUCTURA SIMPLE ATT® 47 / 600 1x13 | U5: =$D$5 -> TECHO SIMPLE / ESTRUCTURA SIMPLE ATT® 47 / 600 1x13 | AC5: =$D$5 -> TECHO SIMPLE / ESTRUCTURA SIMPLE ATT® 47 / 600 1x13 | AK5: =AC5 -> TECHO SIMPLE / ESTRUCTURA SIMPLE ATT® 47 / 600 1x13 | AS5: =AK5 -> TECHO SIMPLE / ESTRUCTURA SIMPLE ATT® 47 / 600 1x13
C7: =VLOOKUP(BE36,'Índice sistemas'!C:N,(BE29+6),FALSE) -> Techo continuo formado por una placa BASIC de 13 mm de espesor compuesta por yeso natural, fibra de vidrio y aditivos inorgánicos que le aportan alta dureza y resistencia mecánica. Reacción al fuego: EUROCLASE A1. Sistema de galces desiguales: las placas encajan entre ellas dejando una entrecalle de 3 mm por donde se inserte la pasta de juntas. Este sistema no utiliza cinta de papel. La pasta de juntas se aplica en las cavidades de las placas y una masilla elástica en los encuentros. Suspendido mediante una estructura simple de perfiles TC47 en acero galvanizado de 0,6 mm de espesor con modulación de 600 mm entre ejes y unidos al forjado mediante varilla roscada galvanizada y horquilla TC47. Incluida la parte proporcional del resto de materiales: tornillería, pasta de juntas, masilla para encuentros perimetrales, fijaciones, junta estanca, etc. Montaje según norma de instalación UNE 102043 y exigencias del CTE.
A8: =Datos!A15 -> clientes@elalteron.com | C8: =IF(B10=B106,C106,IF(B10=B107,C107,C108)) -> Totalmente finalizado con nivel de acabado Q3
A9: CODIFICACIÓN MANO OBRA
A10: =IF(B10="Q2",2,IF(B10="Q3",3,4)) -> 3 | B10: Q3 | C10: INTRODUCIR ACABADO DESEADO
A12: =B12/10 -> 60 | B12: 600 | C12: INTRODUCIR MODULACIÓN
A14: =SUM(A10:A13) -> 63 | B14: 1 | C14: INTRODUCIR CANTIDAD m2
A15: PESTAÑA DATOS
A16: =Datos!A6 -> 30
A17: =Datos!A7 -> 30
A18: =Datos!A8 -> 30
A19: =Datos!A9 -> 30 | C19: Material calculado para | U19: =B14 -> 1 | V19: m2 | AC19: =B14 -> 1 | AD19: m2
A20: =Datos!A10 -> 30
A21: =Datos!A11 -> 20
A22: =Datos!A12 -> pedidos@elalteron.com
A23: =Datos!A13 -> repuesto@elalteron.com | AS23: Precio | AT23: =AS5 -> TECHO SIMPLE / ESTRUCTURA SIMPLE ATT® 47 / 600 1x13 | AY23: =J48 -> 20.6244 | AZ23: €/m2
A24: =Datos!A14 -> compras@elalteron.com | AS24: Cantidad de sistema | AY24: =B14 -> 1 | AZ24: m2
A25: =IF(B10="Q2",0,'Estructura simple una placa'!A18) -> 30 | AS25: TOTAL | AY25: =AY23*AY24 -> 20.6244 | AZ25: €
A26: MULTIPLICADOR | D26: UD de MEDIDA | E26: RENDIMIENTO | F26: CANTIDAD | G26: CANTIDAD | I26: DESCUENTO | J26: REPERCUSIÓN | K26: TOTAL | M26: TOTAL PIEZAS | P26: DESGLOSE | R26: REDONDEADO | U26: TOTAL PIEZAS | W26: PRECIO | X26: DESCUENTO | Y26: DESGLOSE EN PIEZAS | AC26: REDONDEADO | AE26: PRECIO | AF26: DESCUENTO | AK26: TOTAL PIEZAS | AM26: DESGLOSE | BA26: DATOS DE LISTADO Y RENDIMIENTOS | BE26: SISTEMA
A27: TRASDOSADO | B27: CÓDIGO | C27: MATERIALES | D27: UD | E27: UD/m2 | F27: UD | G27: € / UD | I27: % | J27: €/m2 | K27: € | M27: CANTIDAD | N27: €/UD | O27: UD | P27: PAQ/PAL | Q27: PIEZAS | R27: CANTIDAD | S27: € | T27: UD | U27: CANTIDAD | V27: UD | W27: €/UD | X27: % | AC27: CANTIDAD | AD27: UD | AE27: €/UD | AF27: % | AK27: CANTIDAD | AL27: UD | AM27: PAQ/PAL | AN27: PIEZAS | BA27: ALTO | BB27: LARGO | BC27: UNI.CAJA | BD27: CAJAS/PALE | BF27: Id tipo placa | BG27: Id columnas
A28: 1 | B28: =VLOOKUP(C28,Listado!$B$4:$D$31,2,FALSE) -> 040113 | C28: PLACA ATT BASIC 13X600X1200 (78) | D28: m2 | E28: =A28*Rendimientos!E5 -> 1.02 | F28: =$B$14*E28 -> 1.02 | G28: =VLOOKUP(B28,Listado!A:I,9,FALSE) -> 6.36 | H28: 1 | I28: =H28*A16 -> 30 | J28: =ROUND(E28*G28*(1-I28/100),2) -> 4.54 | K28: =J28*$B$14 -> 4.54 | M28: =ROUNDUP(($B$14*E28)/(BA28*BB28),0) -> 2 | N28: =ROUND(VLOOKUP(B28,Listado!A:I,9,FALSE)*(BA28*BB28),2) -> 4.58 | O28: PLACAS | P28: =INT(M28/($BC$28*$BD$28)) -> 0 | Q28: =M28-P28*$BC$28*$BD$28 -> 2 | R28: =ROUNDUP(($B$14*E28)/(BA28*BB28*BC28*BD28),0) -> 1 | S28: =$N$28*R28*$BD$28 -> 357.24 | T28: PALETS | U28: =M28 -> 2 | V28: PLACAS | W28: =N28 -> 4.58 | X28: =I28 -> 30 | Y28: =INT(U28/($BC$28*$BD$28)) -> 0 | Z28: PALETS | AA28: =U28-Y28*$BC$28*$BD$28 -> 2 | AB28: PLACAS | AC28: =R28 -> 1 | AD28: =T28 -> PALETS | AE28: =$N$28*$BD$28 -> 357.24 | AF28: =X28 -> 30 | AK28: =U28 -> 2 | AL28: PLACAS | AM28: =INT(AK28/($BC$28*$BD$28)) -> 0 | AN28: =AK28-AM28*$BC$28*$BD$28 -> 2 | BA28: =VLOOKUP($B28,Listado!A:I,5,FALSE) -> 0.6 | BB28: =VLOOKUP($B28,Listado!A:I,6,FALSE) -> 1.2 | BC28: =VLOOKUP($B28,Listado!A:I,7,FALSE) -> 1 | BD28: =VLOOKUP($B28,Listado!A:I,8,FALSE) -> 78 | BE28: =RIGHT(B28,2) -> 13 | BF28: en código alt | BG28: hoja "Sistema" | BH28: Tipo
A29: 1 | B29: =IF(BE30="47","480922001","480922004") -> 480922001 | C29: =VLOOKUP(B29,Listado!$A$5:$B$49,2,FALSE) -> HORQUILLA TC47 (100) | D29: ud | E29: =IF(B12=600,Rendimientos!E51,Rendimientos!E50) -> 2.1 | F29: =$B$14*E29 -> 2.1 | G29: =ROUND(VLOOKUP(B29,Listado!A:I,9,FALSE)/Rendimientos!F68,2) -> 0.35 | H29: 1 | I29: =H29* A19 -> 30 | J29: =ROUND(E29*G29*(1-I29/100),2) -> 0.51 | K29: 0.51 | M29: =ROUNDUP(($B$14*E29),0) -> 3 | N29: =G29 -> 0.35 | O29: PIEZAS | P29: =INT(M29/(BC29)) -> 0 | Q29: =M29-P29*BC29 -> 3 | R29: =ROUNDUP(($B$14*E29)/BC29,0) -> 1 | S29: =N29*R29 -> 0.35 | T29: CAJAS | U29: =M29 -> 3 | V29: PIEZAS | W29: 0.35 | X29: =I29 -> 30 | Y29: =P29 -> 0 | Z29: CAJAS | AA29: =Q29 -> 3 | AB29: PIEZAS | AC29: =R29 -> 1 | AD29: CAJAS | AE29: =$BC$29*$N$29 -> 35 | AF29: =X29 -> 30 | AK29: =U29 -> 3 | AL29: PIEZAS | AM29: =INT(AK29/(BC29)) -> 0 | AN29: =AK29-AM29*BC29 -> 3 | BA29: 0 | BB29: 0 | BC29: =IF($B$29="480922001",Listado!H32,Listado!H33) -> 100 | BE29: =LEFT(RIGHT(B28,3),1) -> 1 | BF29: 1 | BG29: 7 | BH29: Basic
A30: 1 | B30: =VLOOKUP(C30,Listado!$B$5:$C$49,2,FALSE) -> 48134730 | C30: PERFIL TC 47X3000 (12UDS) | D30: ml | E30: =IF(B12=600,Rendimientos!E48,Rendimientos!E47) -> 1.96 | F30: =$B$14*E30 -> 1.96 | G30: =VLOOKUP(B30,Listado!A:I,9,FALSE) -> 2.39 | H30: 1 | I30: =H30* A17 -> 30 | J30: =ROUND(E30*G30*(1-I30/100),2) -> 3.28 | K30: 3.28 | M30: =ROUNDUP(($B$14*E30)/(BB30),0) -> 1 | N30: =ROUND(VLOOKUP(B30,Listado!A:J,9,FALSE)*BB30,2) -> 7.17 | O30: PERFILES | P30: =INT(M30/$BC$30) -> 0 | Q30: =M30-P30*$BC$30 -> 1 | R30: =ROUNDUP(($B$14*E30)/(BB30*BC30),0) -> 1 | S30: =R30*$BC$30*$N$30 -> 86.04 | T30: PAQUETES | U30: =M30 -> 1 | V30: PERFILES | W30: 7.17 | X30: =I30 -> 30 | Y30: =INT(U30/$BC$30) -> 0 | Z30: PAQUETES | AA30: =U30-Y30*$BC$30 -> 1 | AB30: PERFILES | AC30: 1 | AD30: PAQUETES | AE30: =$BC$30*$N$30 -> 86.04 | AF30: 30 | AK30: 1 | AL30: PERFILES | AM30: =INT(AK30/$BC$30) -> 0 | AN30: =AK30-AM30*$BC$30 -> 1 | BA30: =VLOOKUP($B30,Listado!$A$5:$I$49,7,FALSE) -> 12 | BB30: =VLOOKUP($B30,Listado!$A$5:$I$49,6,FALSE) -> 3 | BC30: =VLOOKUP($B30,Listado!$A$5:$I$49,7,FALSE) -> 12 | BD30: =VLOOKUP($B30,Listado!A:I,8,FALSE) -> 63 | BE30: =LEFT(RIGHT(B30,4),2) -> 47 | BF30: 2 | BG30: 8 | BH30: Hidro
A31: 1 | B31: =IF(BE28="20","4802010135","4802010125") -> 4802010125 | C31: =VLOOKUP(B31,Listado!$A$5:$B$49,2,FALSE) -> TORNILLOS ATT PP 3,5X25 (1000) | D31: ud | E31: =IF(B12=600,A31*Rendimientos!E16,A31*Rendimientos!E10) -> 14 | F31: 14 | G31: =ROUND(VLOOKUP(B31,Listado!A:I,9,FALSE)/BA31,2) -> 0.03 | H31: 1 | I31: =H31* A19 -> 30 | J31: 0.29 | K31: 0.29 | M31: =ROUNDUP(($B$14*E31)/(BC31),0) -> 1 | N31: =VLOOKUP(B31,Listado!A:I,9,FALSE) -> 29.06 | O31: CAJAS | P31: =($B$14*E31)/(BC31) -> 0.014 | Q31: CAJAS | R31: =M31 -> 1 | S31: =R31*$N$31 -> 29.06 | T31: =O31 -> CAJAS | U31: =M31 -> 1 | V31: CAJAS | W31: 29.06 | X31: 30 | AA31: =U31 -> 1 | AB31: CAJAS | AC31: 1 | AD31: CAJAS | AE31: =$N$31 -> 29.06 | AF31: 30 | AK31: 1 | AL31: CAJAS | BA31: =VLOOKUP($B31,Listado!$A$5:$I$49,5,FALSE) -> 1000 | BB31: =VLOOKUP($B31,Listado!$A$5:$I$49,6,FALSE) -> 0 | BC31: =Rendimientos!F9 -> 1000 | BE31: =IF(BE29="1",1,IF(BE29="2",2,IF(BE29="3",3,IF(BE29="4",4,IF(BE29="5",5,6))))) -> 1 | BF31: 3 | BG31: 9 | BH31: Fuego
A32: 1 | B32: =Rendimientos!A21 -> 4800308 | C32: =VLOOKUP(B32,Listado!$A$5:$B$49,2,FALSE) -> TACO HEMBRA ALTERON M6 (100) | D32: ud | E32: =IF(B12=600,Rendimientos!E51,Rendimientos!E50) -> 2.1 | F32: 2.1 | G32: =ROUND(VLOOKUP(B32,Listado!A:I,9,FALSE)/Rendimientos!F21,2) -> 0.2 | H32: 1 | I32: =H32* A19 -> 30 | J32: 0.29 | K32: 0.29 | M32: =ROUNDUP(($B$14*E32)/(BC32),0) -> 1 | N32: =VLOOKUP(B32,Listado!A:I,9,FALSE) -> 19.5 | O32: CAJAS | P32: =($B$14*E32)/(BC32) -> 0.021 | Q32: CAJAS | R32: 1 | S32: =R32*$N$32 -> 19.5 | T32: =O32 -> CAJAS | U32: 1 | V32: CAJAS | W32: 19.5 | X32: 30 | AA32: =U32 -> 1 | AB32: CAJAS | AC32: 1 | AD32: CAJAS | AE32: =$N$32 -> 19.5 | AF32: 30 | AK32: 1 | AL32: CAJAS | BA32: =VLOOKUP($B32,Listado!$A$5:$I$49,5,FALSE) -> 0 | BB32: =VLOOKUP($B32,Listado!$A$5:$I$49,6,FALSE) -> 0 | BC32: =Rendimientos!F21 -> 100 | BE32: =B12 -> 600 | BF32: 4 | BG32: 10 | BH32: Resist
A33: 1 | B33: =VLOOKUP(C33,Listado!$B$5:$C$50,2,FALSE) -> 0470010110 | C33: PASTA ATT JUNTAS 10KG 60 MIN (56) | D33: kg | E33: =A33*Rendimientos!E24 -> 0.11 | F33: 0.11 | G33: =ROUND(VLOOKUP(B33,Listado!A:I,9,FALSE)/Rendimientos!F24,2) -> 1.99 | H33: 1 | I33: =H33* A18 -> 30 | J33: 0.15 | K33: 0.15 | M33: =ROUNDUP(($B$14*E33)/(BC33),0) -> 1 | N33: =VLOOKUP(B33,Listado!A:I,9,FALSE) -> 19.85 | O33: SACOS | P33: =($B$14*E33)/(BC33) -> 0.011 | Q33: SACOS | R33: 1 | S33: =R33*$N$33 -> 19.85 | T33: SACOS | U33: 1 | V33: SACOS | W33: 19.85 | X33: 30 | AA33: =U33 -> 1 | AB33: SACOS | AC33: 1 | AD33: SACOS | AE33: =$N$33 -> 19.85 | AF33: 30 | AK33: 1 | AL33: SACOS | BA33: =VLOOKUP($B33,Listado!$A$5:$I$49,5,FALSE) -> 0 | BB33: =VLOOKUP($B33,Listado!$A$5:$I$49,6,FALSE) -> 0 | BC33: =Rendimientos!F24 -> 10
A34: 1 | B34: =Listado!A50 -> 48040101 | C34: =VLOOKUP(B34,Listado!$A$5:$B$57,2,FALSE) -> MASILLA PARA ENCUENTROS ATT | D34: mil | E34: =A34*Rendimientos!E22 -> 10 | F34: =$B$14*E34 -> 10 | G34: =VLOOKUP(B34,Listado!A:I,9,FALSE) -> 0.0242 | H34: 1 | I34: =H34* A19 -> 30 | J34: 0.17 | K34: 0.17 | M34: =ROUNDUP(($B$14*E34)/(BC34),0) -> 1 | N34: =VLOOKUP(B34,Listado!A:J,10,FALSE) -> 7.26 | O34: BOTES | P34: =($B$14*E34)/(BC34) -> 0.03333333333 | Q34: =O34 -> BOTES | R34: 1 | S34: =R34*$N$34 -> 7.26 | T34: =O34 -> BOTES | U34: 1 | V34: =T34 -> BOTES | W34: 7.26 | X34: 30 | AA34: =U34 -> 1 | AB34: =V34 -> BOTES | AC34: 1 | AD34: BOTES | AE34: =$N$34 -> 7.26 | AF34: 30 | AK34: 1 | AL34: =AD34 -> BOTES | BA34: =VLOOKUP($B34,Listado!$A$5:$I$49,5,FALSE) ->  | BB34: =VLOOKUP($B34,Listado!$A$5:$I$49,6,FALSE) ->  | BC34: =Rendimientos!F22 -> 300
A35: 1 | B35: =Rendimientos!A23 -> 4800205 | C35: =VLOOKUP(B35,Listado!$A$5:$B$49,2,FALSE) -> VARILLA ROSCADA M6 1M (100) | D35: ud | E35: =IF(B12=600,Rendimientos!E51,Rendimientos!E50) -> 2.1 | F35: 2.1 | G35: =ROUND(VLOOKUP(B35,Listado!A:I,9,FALSE)/Rendimientos!F23,2) -> 0.98 | H35: 1 | I35: =H35* A19 -> 30 | J35: 1.44 | K35: 1.44 | M35: =ROUNDUP(($B$14*E35),0) -> 3 | N35: =ROUND(VLOOKUP(B35,Listado!A:J,9,FALSE)/BC35,2) -> 0.98 | O35: PIEZAS | P35: =INT(M35/(BC35)) -> 0 | Q35: =M35-P35*BC35 -> 3 | R35: =ROUNDUP(($B$14*E35)/BC35,0) -> 1 | S35: =R35*$N$35 -> 0.98 | T35: CAJAS | U35: 3 | V35: =T35 -> CAJAS | W35: 0.98 | X35: 30 | Y35: =P35 -> 0 | Z35: CAJAS | AA35: =Q35 -> 3 | AB35: PIEZAS | AC35: 1 | AD35: CAJAS | AE35: =$BC$35*$N$35 -> 98 | AF35: 30 | AK35: 3 | AL35: PIEZAS | AM35: =INT(AK35/(BC35)) -> 0 | AN35: =AK35-AM35*BC35 -> 3 | BA35: =VLOOKUP($B35,Listado!$A$5:$I$49,5,FALSE) -> 0 | BB35: =VLOOKUP($B35,Listado!$A$5:$I$49,6,FALSE) -> 0 | BC35: =Rendimientos!F23 -> 100
A36: 1 | B36: =IF(B10="Q3","",Rendimientos!A26) ->  | C36: =IFERROR(VLOOKUP(B36,Listado!A5:B49,2,FALSE),"") ->  | D36: =IF(B10="Q3","","kg") ->  | E36: =IF(B10="Q3","",A36*Rendimientos!E26) ->  | F36: =IF(B10="Q3","",$B$14*E36) ->  | G36: =IFERROR(ROUND(VLOOKUP(B36,Listado!A:I,9,FALSE)/Rendimientos!F25,2),"") ->  | H36: 1 | I36: =H36* A18 -> 30 | J36: =IFERROR(ROUND(E36*G36*(1-I36/100),2),0) -> 0 | K36: =IFERROR(J36*$B$14,0) -> 0 | M36: =IFERROR(ROUNDUP(($B$14*E36)/(BC36),0),"") ->  | N36: =IFERROR(VLOOKUP(B36,Listado!A:I,9,FALSE),"0") -> 0 | O36: =IF(B10="Q2","","SACOS") -> SACOS | P36: =IFERROR(($B$14*E36)/(BC36),"") ->  | Q36: =IF(B10="Q2","","SACOS") -> SACOS | S36: =IFERROR(R36*$N$36,"") ->  | T36: =IF(B10="Q2","","SACOS") -> SACOS | V36: =IF(B10="Q2"," ","SACOS") -> SACOS | W36: 0 | X36: =I36 -> 30 | AA36: =IF(U36="","",U36) ->  | AB36: =IF(B10="Q2"," ","SACOS") -> SACOS | AD36: SACOS | AE36: =IFERROR($N$36,"") -> 0 | AF36: 30 | AL36: =IF(B10="Q2"," ","SACOS") -> SACOS | BA36: =VLOOKUP($B36,Listado!$A$5:$I$49,5,FALSE) ->  | BB36: =VLOOKUP($B36,Listado!$A$5:$I$49,6,FALSE) ->  | BC36: =Rendimientos!F24 -> 10 | BE36: =BE32*100+BE30*100+BE28 -> 64713
I38: Total material | J38: =SUM(J28:J36) -> 10.67 | K38: =SUM(K28:K36) -> 10.67 | M38: Total (€) | N38: =SUMPRODUCT(M28:M36,N28:N36) -> 95.99 | R38: Total (€) | S38: =SUM(S28:S36) -> 520.28 | U38: Total (€) | V38: =SUMPRODUCT(U28:U36,W28:W36) -> 95.99 | AC38: Total (€) | AD38: =SUMPRODUCT(AC28:AC36,AE28:AE36) -> 651.95 | AK38: Total (€)
A39: €/m2 MO
A40: =((IF(B12=600,Rendimientos!E37,Rendimientos!E38))+(IF(C36="",Rendimientos!E63,Rendimientos!E64))) -> 6.517 | B40: OTROS CONCEPTOS (mano de obra, aislante, etc.) | D40: UD | E40: UD/m2 | F40: UD | G40: € / UD | I40: % | J40: €/m2 | K40: €
C41: Mano de obra: Oficial 1ª | D41: - | E41: - | F41: - | G41: - | H41: 1 | I41: - | J41: =H41*A40 -> 6.517 | K41: =IFERROR(J41*$B$14,"") -> 6.517
F42: =E42*B11 ->  | H42: 1 | I42: 0 | K42: =IFERROR(J42*$B$14,"") -> 0
F43: =E43*B11 ->  | H43: 1 | I43: 0 | K43: 0
I45: Total otros conceptos | J45: =SUM(IFERROR(J39:J43," ")) -> 6.517 | K45: =K39+SUM(K41:K43) -> 6.517
I47: TOTAL | J47: =J38+J45 -> 17.187 | K47: =K38+K45 -> 17.187
G48: Beneficio (%) | H48: 1 | I48: TOTAL inc. Beneficio | J48: =J47*(1+G49/100) -> 20.6244 | K48: =K47*(1+G49/100) -> 20.6244
G49: =H49* A21 -> 20 | H49: 1
G50: =H50* A21 -> 0
B51: =Rendimientos!C141 -> NOTA: Rendimientos calculados teniendo en cuenta un despedicio del 2% en las placas y del 5% en el resto del sistema.
B103: LINKS A DESPLEGABLES
B105: Acabado
B106: =Rendimientos!B24 -> Q2 | C106: =Rendimientos!C24 -> Totalmente finalizado con nivel de acabado Q2
B107: =Rendimientos!B25 -> Q3 | C107: =Rendimientos!C25 -> Totalmente finalizado con nivel de acabado Q3
B108: =Rendimientos!B26 -> Q4 | C108: =Rendimientos!C26 -> Totalmente finalizado con nivel de acabado Q4
B110: Modulación
C111: =Rendimientos!C27 -> 600
C112: =Rendimientos!C28 -> 400
B114: Placas
B115: 040113 | C115: =VLOOKUP(B115,Listado!$A$5:$B$50,2,FALSE) -> PLACA ATT BASIC 13X600X1200 (78)
B116: 040115 | C116: =VLOOKUP(B116,Listado!$A$5:$B$50,2,FALSE) -> PLACA ATT BASIC 15X600X1200 (66)
B117: 040120 | C117: =VLOOKUP(B117,Listado!$A$5:$B$50,2,FALSE) -> PLACA ATT BASIC 20X600X1200 (48)
B118: 040213 | C118: =VLOOKUP(B118,Listado!$A$5:$B$50,2,FALSE) -> PLACA ATT HIDRO 13X600X1200 (78)
B119: 040215 | C119: =VLOOKUP(B119,Listado!$A$5:$B$50,2,FALSE) -> PLACA ATT HIDRO 15X600X1200 (66)
B120: 040220 | C120: =VLOOKUP(B120,Listado!$A$5:$B$50,2,FALSE) -> PLACA ATT HIDRO 20X600X1200 (48)
B121: 040313 | C121: =VLOOKUP(B121,Listado!$A$5:$B$50,2,FALSE) -> PLACA ATT FUEGO 13X600X1200 (78)
B122: 040315 | C122: =VLOOKUP(B122,Listado!$A$5:$B$50,2,FALSE) -> PLACA ATT FUEGO 15X600X1200 (66)
B123: 040320 | C123: =VLOOKUP(B123,Listado!$A$5:$B$50,2,FALSE) -> PLACA ATT FUEGO 20X600X1200 (48)
B124: 040413 | C124: =VLOOKUP(B124,Listado!$A$5:$B$50,2,FALSE) -> PLACA ATT RESIST 13X600X1200 (78)
B125: 040415 | C125: =VLOOKUP(B125,Listado!$A$5:$B$50,2,FALSE) -> PLACA ATT RESIST 15X600X1200 (66)
B126: 040420 | C126: =VLOOKUP(B126,Listado!$A$5:$B$50,2,FALSE) -> PLACA ATT RESIST 20X600X1200 (48)
B127: 040513 | C127: =VLOOKUP(B127,Listado!$A$5:$B$50,2,FALSE) -> PLACA ATT HIDROPLUS 13X600X1200 (78)
B128: 040515 | C128: =VLOOKUP(B128,Listado!$A$5:$B$50,2,FALSE) -> PLACA ATT HIDROPLUS 15X600X1200 (66)
B129: 040520 | C129: =VLOOKUP(B129,Listado!$A$5:$B$50,2,FALSE) -> PLACA ATT HIDROPLUS 20X600X1200 (48)
B130: 040613 | C130: =VLOOKUP(B130,Listado!$A$5:$B$50,2,FALSE) -> PLACA ATT SUPREM 13X600X1200 (78)
B131: 040615 | C131: =VLOOKUP(B131,Listado!$A$5:$B$50,2,FALSE) -> PLACA ATT SUPREM 15X600X1200 (66)
B132: 040620 | C132: =VLOOKUP(B132,Listado!$A$5:$B$50,2,FALSE) -> PLACA ATT SUPREM 20X600X1200 (48)
B134: tcs
B135: 48134730 | C135: PERFIL TC 47X3000 (12UDS)
B136: 48136030 | C136: PERFIL TC 60X3000 (8UDS)
B146: Pasta de juntas
B147: 0470010110 | C147: =VLOOKUP(B147,Listado!$A$5:$B$49,2,FALSE) -> PASTA ATT JUNTAS 10KG 60 MIN (56)
B148: 0470010210 | C148: =VLOOKUP(B148,Listado!$A$5:$B$49,2,FALSE) -> PASTA ATT JUNTAS 10KG 30 MIN (56)
B149: 0470010111 | C149: =VLOOKUP(B149,Listado!$A$5:$B$49,2,FALSE) -> PASTA ATT JUNTAS H 10 KG 60 MIN (56)

Sheet Estructura simple dos placas
C1: RENDIMIENTOS
C2: PEDIDO MATERIALES
C3: PRESUPUESTO
C4: LISTA DE MATERIALES
D5: =VLOOKUP(BE37,'Índice sistemas'!C5:E28,3,FALSE) -> TECHO DOBLE / ESTRUCTURA SIMPLE ATT® 47 / 600 2x13 | M5: =$D$5 -> TECHO DOBLE / ESTRUCTURA SIMPLE ATT® 47 / 600 2x13 | U5: =$D$5 -> TECHO DOBLE / ESTRUCTURA SIMPLE ATT® 47 / 600 2x13 | AC5: =$D$5 -> TECHO DOBLE / ESTRUCTURA SIMPLE ATT® 47 / 600 2x13 | AK5: =AC5 -> TECHO DOBLE / ESTRUCTURA SIMPLE ATT® 47 / 600 2x13 | AS5: =AK5 -> TECHO DOBLE / ESTRUCTURA SIMPLE ATT® 47 / 600 2x13
C7: =VLOOKUP(BE37,'Índice sistemas'!C:N,(BE29+6),FALSE) -> Techo continuo formado por dos placas BASIC de 13 mm de espesor compuestas por yeso natural, fibra de vidrio y aditivos inorgánicos que le aportan alta dureza y resistencia mecánica. Reacción al fuego: EUROCLASE A1. Sistema de galces desiguales: las placas encajan entre ellas dejando una entrecalle de 3 mm por donde se inserte la pasta de juntas. Este sistema no utiliza cinta de papel. La pasta de juntas se aplica en las cavidades de las placas y una masilla elástica en los encuentros. Suspendido mediante una estructura simple de perfiles TC47 en acero galvanizado de 0,6 mm de espesor con modulación de 600 mm entre ejes y unidos al forjado mediante varilla roscada galvanizada y horquilla TC47. Incluida la parte proporcional del resto de materiales: tornillería, pasta de juntas, masilla para encuentros perimetrales, fijaciones, junta estanca, etc. Montaje según norma de instalación UNE 102043 y exigencias del CTE.
A8: =Datos!A15 -> clientes@elalteron.com | C8: =IF(B10=B107,C107,IF(B10=B108,C108,C109)) -> Totalmente finalizado con nivel de acabado Q3
A9: CODIFICACIÓN MANO OBRA
A10: =IF(B10="Q2",2,IF(B10="Q3",3,4)) -> 3 | B10: Q3 | C10: INTRODUCIR ACABADO DESEADO
A12: =B12/10 -> 60 | B12: 600 | C12: INTRODUCIR MODULACIÓN
A14: =SUM(A10:A13) -> 63 | B14: 1 | C14: INTRODUCIR CANTIDAD m2
A15: PESTAÑA DATOS
A16: =Datos!A6 -> 30
A17: =Datos!A7 -> 30
A18: =Datos!A8 -> 30
A19: =Datos!A9 -> 30 | C19: Material calculado para | U19: =B14 -> 1 | V19: m2 | AC19: =B14 -> 1 | AD19: m2
A20: =Datos!A10 -> 30
A21: =Datos!A11 -> 20
A22: =Datos!A12 -> pedidos@elalteron.com
A23: =Datos!A13 -> repuesto@elalteron.com | AS23: Precio | AT23: =AS5 -> TECHO DOBLE / ESTRUCTURA SIMPLE ATT® 47 / 600 2x13 | AY23: =J49 -> 30.8988 | AZ23: €/m2
A24: =Datos!A14 -> compras@elalteron.com | AS24: Cantidad de sistema | AY24: =B14 -> 1 | AZ24: m2
A25: =IF(B10="Q2",0,'Estructura simple dos placas'!A18) -> 30 | AS25: TOTAL | AY25: =AY23*AY24 -> 30.8988 | AZ25: €
A26: MULTIPLICADOR | D26: UD de MEDIDA | E26: RENDIMIENTO | F26: CANTIDAD | G26: CANTIDAD | I26: DESCUENTO | J26: REPERCUSIÓN | K26: TOTAL | M26: TOTAL PIEZAS | P26: DESGLOSE | R26: REDONDEADO | U26: TOTAL PIEZAS | W26: PRECIO | X26: DESCUENTO | Y26: DESGLOSE EN PIEZAS | AC26: REDONDEADO | AE26: PRECIO | AF26: DESCUENTO | AK26: TOTAL PIEZAS | AM26: DESGLOSE | BA26: DATOS DE LISTADO Y RENDIMIENTOS | BE26: SISTEMA
A27: TRASDOSADO | B27: CÓDIGO | C27: MATERIALES | D27: UD | E27: UD/m2 | F27: UD | G27: € / UD | I27: % | J27: €/m2 | K27: € | M27: CANTIDAD | N27: €/UD | O27: UD | P27: PAQ/PAL | Q27: PIEZAS | R27: CANTIDAD | S27: € | T27: UD | U27: CANTIDAD | V27: UD | W27: €/UD | X27: % | AC27: CANTIDAD | AD27: UD | AE27: €/UD | AF27: % | AK27: CANTIDAD | AL27: UD | AM27: PAQ/PAL | AN27: PIEZAS | BA27: ALTO | BB27: LARGO | BC27: UNI.CAJA | BD27: CAJAS/PALE | BF27: Id tipo placa | BG27: Id columnas
A28: 2 | B28: =VLOOKUP(C28,Listado!$B$4:$D$31,2,FALSE) -> 040113 | C28: PLACA ATT BASIC 13X600X1200 (78) | D28: m2 | E28: =A28*Rendimientos!E5 -> 2.04 | F28: =$B$14*E28 -> 2.04 | G28: =VLOOKUP(B28,Listado!A:I,9,FALSE) -> 6.36 | H28: 1 | I28: =H28*A16 -> 30 | J28: =ROUND(E28*G28*(1-I28/100),2) -> 9.08 | K28: =J28*$B$14 -> 9.08 | M28: =ROUNDUP(($B$14*E28)/(BA28*BB28),0) -> 3 | N28: =ROUND(VLOOKUP(B28,Listado!A:I,9,FALSE)*(BA28*BB28),2) -> 4.58 | O28: PLACAS | P28: =INT(M28/($BC$28*$BD$28)) -> 0 | Q28: =M28-P28*$BC$28*$BD$28 -> 3 | R28: =ROUNDUP(($B$14*E28)/(BA28*BB28*BC28*BD28),0) -> 1 | S28: =$N$28*R28*$BD$28 -> 357.24 | T28: PALETS | U28: =M28 -> 3 | V28: PLACAS | W28: =N28 -> 4.58 | X28: =I28 -> 30 | Y28: =INT(U28/($BC$28*$BD$28)) -> 0 | Z28: PALETS | AA28: =U28-Y28*$BC$28*$BD$28 -> 3 | AB28: PLACAS | AC28: =R28 -> 1 | AD28: =T28 -> PALETS | AE28: =$N$28*$BD$28 -> 357.24 | AF28: =X28 -> 30 | AK28: =U28 -> 3 | AL28: PLACAS | AM28: =INT(AK28/($BC$28*$BD$28)) -> 0 | AN28: =AK28-AM28*$BC$28*$BD$28 -> 3 | BA28: =VLOOKUP($B28,Listado!A:I,5,FALSE) -> 0.6 | BB28: =VLOOKUP($B28,Listado!A:I,6,FALSE) -> 1.2 | BC28: =VLOOKUP($B28,Listado!A:I,7,FALSE) -> 1 | BD28: =VLOOKUP($B28,Listado!A:I,8,FALSE) -> 78 | BE28: =RIGHT(B28,2) -> 13 | BF28: en código alt | BG28: hoja "Sistema" | BH28: Tipo
A29: 1 | B29: =IF(BE30="47","480922001","480922004") -> 480922001 | C29: =VLOOKUP(B29,Listado!$A$5:$B$49,2,FALSE) -> HORQUILLA TC47 (100) | D29: ud | E29: =IF(B12=600,Rendimientos!E51,Rendimientos!E50) -> 2.1 | F29: =$B$14*E29 -> 2.1 | G29: =ROUND(VLOOKUP(B29,Listado!A:I,9,FALSE)/Rendimientos!F68,2) -> 0.35 | H29: 1 | I29: =H29* A19 -> 30 | J29: =ROUND(E29*G29*(1-I29/100),2) -> 0.51 | K29: 0.51 | M29: =ROUNDUP(($B$14*E29),0) -> 3 | N29: =G29 -> 0.35 | O29: PIEZAS | P29: =INT(M29/(BC29)) -> 0 | Q29: =M29-P29*BC29 -> 3 | R29: =ROUNDUP(($B$14*E29)/BC29,0) -> 1 | S29: =N29*R29 -> 0.35 | T29: CAJAS | U29: =M29 -> 3 | V29: PIEZAS | W29: 0.35 | X29: =I29 -> 30 | Y29: =P29 -> 0 | Z29: CAJAS | AA29: =Q29 -> 3 | AB29: PIEZAS | AC29: =R29 -> 1 | AD29: CAJAS | AE29: =$BC$29*$N$29 -> 35 | AF29: =X29 -> 30 | AK29: =U29 -> 3 | AL29: PIEZAS | AM29: =INT(AK29/(BC29)) -> 0 | AN29: =AK29-AM29*BC29 -> 3 | BA29: 0 | BB29: 0 | BC29: =IF($B$29="480922001",Listado!H32,Listado!H33) -> 100 | BE29: =LEFT(RIGHT(B28,3),1) -> 1 | BF29: 1 | BG29: 7 | BH29: Basic
A30: 1 | B30: =VLOOKUP(C30,Listado!$B$5:$C$49,2,FALSE) -> 48134730 | C30: PERFIL TC 47X3000 (12UDS) | D30: ml | E30: =IF(B12=600,Rendimientos!E48,Rendimientos!E47) -> 1.96 | F30: =$B$14*E30 -> 1.96 | G30: =VLOOKUP(B30,Listado!A:I,9,FALSE) -> 2.39 | H30: 1 | I30: =H30* A17 -> 30 | J30: =ROUND(E30*G30*(1-I30/100),2) -> 3.28 | K30: 3.28 | M30: =ROUNDUP(($B$14*E30)/(BB30),0) -> 1 | N30: =ROUND(VLOOKUP(B30,Listado!A:J,9,FALSE)*BB30,2) -> 7.17 | O30: PERFILES | P30: =INT(M30/$BC$30) -> 0 | Q30: =M30-P30*$BC$30 -> 1 | R30: =ROUNDUP(($B$14*E30)/(BB30*BC30),0) -> 1 | S30: =R30*$BC$30*$N$30 -> 86.04 | T30: PAQUETES | U30: 1 | V30: PERFILES | W30: 7.17 | X30: =I30 -> 30 | Y30: =INT(U30/$BC$30) -> 0 | Z30: PAQUETES | AA30: =U30-Y30*$BC$30 -> 1 | AB30: PERFILES | AC30: 1 | AD30: PAQUETES | AE30: =$BC$30*$N$30 -> 86.04 | AF30: 30 | AK30: 1 | AL30: PERFILES | AM30: =INT(AK30/$BC$30) -> 0 | AN30: =AK30-AM30*$BC$30 -> 1 | BA30: =VLOOKUP($B30,Listado!$A$5:$I$49,7,FALSE) -> 12 | BB30: =VLOOKUP($B30,Listado!$A$5:$I$49,6,FALSE) -> 3 | BC30: =VLOOKUP($B30,Listado!$A$5:$I$49,7,FALSE) -> 12 | BD30: =VLOOKUP($B30,Listado!A:I,8,FALSE) -> 63 | BE30: =LEFT(RIGHT(B30,4),2) -> 47 | BF30: 2 | BG30: 8 | BH30: Hidro
A31: 1 | B31: =IF(BE28="20","4802010135","4802010125") -> 4802010125 | C31: =VLOOKUP(B31,Listado!$A$5:$B$49,2,FALSE) -> TORNILLOS ATT PP 3,5X25 (1000) | D31: ud | E31: =IF(B12=600,A31*Rendimientos!E16,A31*Rendimientos!E10) -> 14 | F31: 14 | G31: =ROUND(VLOOKUP(B31,Listado!A:I,9,FALSE)/BA31,2) -> 0.03 | H31: 1 | I31: =H31* A19 -> 30 | J31: 0.29 | K31: 0.29 | M31: =ROUNDUP(($B$14*E31)/(BC31),0) -> 1 | N31: =VLOOKUP(B31,Listado!A:I,9,FALSE) -> 29.06 | O31: CAJAS | P31: =($B$14*E31)/(BC31) -> 0.014 | Q31: CAJAS | R31: =M31 -> 1 | S31: =R31*$N$31 -> 29.06 | T31: =O31 -> CAJAS | U31: 1 | V31: CAJAS | W31: 29.06 | X31: 30 | AA31: =U31 -> 1 | AB31: CAJAS | AC31: 1 | AD31: CAJAS | AE31: =$N$31 -> 29.06 | AF31: 30 | AK31: 1 | AL31: CAJAS | BA31: =VLOOKUP($B31,Listado!$A$5:$I$49,5,FALSE) -> 1000 | BB31: =VLOOKUP($B31,Listado!$A$5:$I$49,6,FALSE) -> 0 | BC31: =Rendimientos!F9 -> 1000 | BE31: =IF(BE29="1",1,IF(BE29="2",2,IF(BE29="3",3,IF(BE29="4",4,IF(BE29="5",5,6))))) -> 1 | BF31: 3 | BG31: 9 | BH31: Fuego
A32: 1 | B32: =IF(BE28="20","4802010155",IF(BE28="15","4802010145","4802010135")) -> 4802010135 | C32: =VLOOKUP(B32,Listado!$A$5:$B$49,2,FALSE) -> TORNILLOS ATT PP 3,5X35 (1000) | D32: ud | E32: =IF(B12=600,A32*Rendimientos!E17,A32*Rendimientos!E11) -> 14 | F32: 14 | G32: =ROUND(VLOOKUP(B32,Listado!A:I,9,FALSE)/BA32,2) -> 0.03 | H32: 1 | I32: =H32* A19 -> 30 | J32: 0.29 | K32: 0.29 | M32: =ROUNDUP(($B$14*E32)/(BC32),0) -> 1 | N32: =VLOOKUP(B32,Listado!A:I,9,FALSE) -> 33.28 | O32: CAJAS | P32: =($B$14*E32)/(BC32) -> 0.014 | Q32: CAJAS | R32: 1 | S32: =R32*$N$32 -> 33.28 | T32: =O32 -> CAJAS | U32: 1 | V32: CAJAS | W32: 33.28 | X32: 30 | AA32: =U32 -> 1 | AB32: CAJAS | AC32: 1 | AD32: CAJAS | AE32: =$N$32 -> 33.28 | AF32: 30 | AK32: 1 | AL32: CAJAS | BA32: 1000 | BB32: 0 | BC32: =Rendimientos!F10 -> 1000 | BF32: 4 | BG32: 10 | BH32: Resist
A33: 1 | B33: =Rendimientos!A21 -> 4800308 | C33: =VLOOKUP(B33,Listado!$A$5:$B$49,2,FALSE) -> TACO HEMBRA ALTERON M6 (100) | D33: ud | E33: =IF(B12=600,Rendimientos!E51,Rendimientos!E50) -> 2.1 | F33: 2.1 | G33: =ROUND(VLOOKUP(B33,Listado!A:I,9,FALSE)/Rendimientos!F21,2) -> 0.2 | H33: 1 | I33: =H33* A19 -> 30 | J33: 0.29 | K33: 0.29 | M33: =ROUNDUP(($B$14*E33)/(BC33),0) -> 1 | N33: =VLOOKUP(B33,Listado!A:I,9,FALSE) -> 19.5 | O33: CAJAS | P33: =($B$14*E33)/(BC33) -> 0.021 | Q33: CAJAS | R33: 1 | S33: =R33*$N$33 -> 19.5 | T33: =O33 -> CAJAS | U33: 1 | V33: CAJAS | W33: 19.5 | X33: 30 | AA33: =U33 -> 1 | AB33: CAJAS | AC33: 1 | AD33: CAJAS | AE33: =$N$33 -> 19.5 | AF33: 30 | AK33: 1 | AL33: CAJAS | BA33: =VLOOKUP($B33,Listado!$A$5:$I$49,5,FALSE) -> 0 | BB33: =VLOOKUP($B33,Listado!$A$5:$I$49,6,FALSE) -> 0 | BC33: =Rendimientos!F21 -> 100 | BE33: =B12 -> 600 | BF33: 5 | BG33: 11 | BH33: Hidroplus
A34: 2 | B34: =VLOOKUP(C34,Listado!$B$5:$C$49,2,FALSE) -> 0470010110 | C34: PASTA ATT JUNTAS 10KG 60 MIN (56) | D34: kg | E34: =A34*Rendimientos!E24 -> 0.22 | F34: 0.22 | G34: =ROUND(VLOOKUP(B34,Listado!A:I,9,FALSE)/Rendimientos!F24,2) -> 1.99 | H34: 1 | I34: =H34* A18 -> 30 | J34: 0.31 | K34: 0.31 | M34: =ROUNDUP(($B$14*E34)/(BC34),0) -> 1 | N34: =VLOOKUP(B34,Listado!A:I,9,FALSE) -> 19.85 | O34: SACOS | P34: =($B$14*E34)/(BC34) -> 0.022 | Q34: SACOS | R34: 1 | S34: =R34*$N$34 -> 19.85 | T34: SACOS | U34: 1 | V34: SACOS | W34: 19.85 | X34: 30 | AA34: =U34 -> 1 | AB34: SACOS | AC34: 1 | AD34: SACOS | AE34: =$N$34 -> 19.85 | AF34: 30 | AK34: 1 | AL34: SACOS | BA34: =VLOOKUP($B34,Listado!$A$5:$I$49,5,FALSE) -> 0 | BB34: =VLOOKUP($B34,Listado!$A$5:$I$49,6,FALSE) -> 0 | BC34: =Rendimientos!F24 -> 10 | BF34: 6 | BG34: 12 | BH34: Suprem
A35: 1 | B35: =Listado!A50 -> 48040101 | C35: =VLOOKUP(B35,Listado!$A$5:$B$57,2,FALSE) -> MASILLA PARA ENCUENTROS ATT | D35: mil | E35: =A35*Rendimientos!E22 -> 10 | F35: =$B$14*E35 -> 10 | G35: =VLOOKUP(B35,Listado!A:I,9,FALSE) -> 0.0242 | H35: 1 | I35: =H35* A19 -> 30 | J35: 0.17 | K35: 0.17 | M35: =ROUNDUP(($B$14*E35)/(BC35),0) -> 1 | N35: =VLOOKUP(B35,Listado!A:J,10,FALSE) -> 7.26 | O35: BOTES | P35: =($B$14*E35)/(BC35) -> 0.03333333333 | Q35: =O35 -> BOTES | R35: 1 | S35: =R35*$N$35 -> 7.26 | T35: =O35 -> BOTES | U35: 1 | V35: =T35 -> BOTES | W35: 7.26 | X35: 30 | AA35: =U35 -> 1 | AB35: =V35 -> BOTES | AC35: 1 | AD35: BOTES | AE35: =$N$35 -> 7.26 | AF35: 30 | AK35: 1 | AL35: =AD35 -> BOTES | BA35: =VLOOKUP($B35,Listado!$A$5:$I$49,5,FALSE) ->  | BB35: =VLOOKUP($B35,Listado!$A$5:$I$49,6,FALSE) ->  | BC35: =Rendimientos!F22 -> 300
A36: 1 | B36: =Rendimientos!A23 -> 4800205 | C36: =VLOOKUP(B36,Listado!$A$5:$B$49,2,FALSE) -> VARILLA ROSCADA M6 1M (100) | D36: ud | E36: =IF(B12=600,Rendimientos!E51,Rendimientos!E50) -> 2.1 | F36: 2.1 | G36: =ROUND(VLOOKUP(B36,Listado!A:I,9,FALSE)/Rendimientos!F23,2) -> 0.98 | H36: 1 | I36: =H36* A19 -> 30 | J36: 1.44 | K36: 1.44 | M36: =ROUNDUP(($B$14*E36),0) -> 3 | N36: =ROUND(VLOOKUP(B36,Listado!A:J,9,FALSE)/BC36,2) -> 0.98 | O36: PIEZAS | P36: =INT(M36/(BC36)) -> 0 | Q36: =M36-P36*BC36 -> 3 | R36: =ROUNDUP(($B$14*E36)/BC36,0) -> 1 | S36: =R36*$N$36 -> 0.98 | T36: CAJAS | U36: 3 | V36: =T36 -> CAJAS | W36: 0.98 | X36: 30 | Y36: =P36 -> 0 | Z36: CAJAS | AA36: =Q36 -> 3 | AB36: PIEZAS | AC36: 1 | AD36: CAJAS | AE36: =$BC$36*$N$36 -> 98 | AF36: 30 | AK36: 3 | AL36: PIEZAS | AM36: =INT(AK36/(BC36)) -> 0 | AN36: =AK36-AM36*BC36 -> 3 | BA36: =VLOOKUP($B36,Listado!$A$5:$I$49,5,FALSE) -> 0 | BB36: =VLOOKUP($B36,Listado!$A$5:$I$49,6,FALSE) -> 0 | BC36: =Rendimientos!F23 -> 100
A37: 1 | B37: =IF(B10="Q3","",Rendimientos!A26) ->  | C37: =IFERROR(VLOOKUP(B37,Listado!A5:B49,2,FALSE),"") ->  | D37: =IF(B10="Q3","","kg") ->  | E37: =IF(B10="Q3","",A37*Rendimientos!E26) ->  | F37: =IF(B10="Q3","",$B$14*E37) ->  | G37: =IFERROR(ROUND(VLOOKUP(B37,Listado!$A$5:$J$49,9,FALSE)/Rendimientos!F25,2),"") ->  | H37: 1 | I37: =H37* A18 -> 30 | J37: =IFERROR(ROUND(E37*G37*(1-I37/100),2),0) -> 0 | K37: =IFERROR(J37*$B$14,0) -> 0 | M37: =IFERROR(ROUNDUP(($B$14*E37)/(BC37),0),"") ->  | N37: =IFERROR(VLOOKUP(B37,Listado!A:I,9,FALSE),"0") -> 0 | O37: =IF(B10="Q2","","SACOS") -> SACOS | P37: =IFERROR(($B$14*E37)/(BC37),"") ->  | Q37: =IF(B10="Q2","","SACOS") -> SACOS | S37: =IFERROR(R37*$N$37,"") ->  | T37: =IF(B10="Q2","","SACOS") -> SACOS | V37: =IF(B10="Q2"," ","SACOS") -> SACOS | W37: 0 | X37: =I37 -> 30 | AA37: =IF(U37="","",U37) ->  | AB37: =IF(B10="Q2"," ","SACOS") -> SACOS | AD37: SACOS | AE37: =IFERROR($N$37,"") -> 0 | AF37: 30 | AL37: =IF(B10="Q2"," ","SACOS") -> SACOS | BA37: =VLOOKUP($B37,Listado!$A$5:$I$49,5,FALSE) ->  | BB37: =VLOOKUP($B37,Listado!$A$5:$I$49,6,FALSE) ->  | BC37: =Rendimientos!F24 -> 10 | BE37: =BE33*100+BE30*100+BE28*2 -> 64726
I39: Total material | J39: =SUM(J28:J37) -> 15.66 | K39: =SUM(K28:K37) -> 15.66 | M39: Total (€) | N39: =SUMPRODUCT(M28:M37,N28:N37) -> 133.85 | R39: Total (€) | S39: =SUM(S28:S37) -> 553.56 | U39: Total (€) | V39: =SUMPRODUCT(U28:U37,W28:W37) -> 133.85 | AC39: Total (€) | AD39: =SUMPRODUCT(AC28:AC37,AE28:AE37) -> 685.23 | AK39: Total (€)
A40: €/m2 MO
A41: =((IF(B12=600,Rendimientos!E39,Rendimientos!E40))+(IF(C37="",Rendimientos!E65,Rendimientos!E66))) -> 10.089 | B41: OTROS CONCEPTOS (mano de obra, aislante, etc.) | D41: UD | E41: UD/m2 | F41: UD | G41: € / UD | I41: % | J41: €/m2 | K41: €
C42: Mano de obra: Oficial 1ª | D42: - | E42: - | F42: - | G42: - | H42: 1 | I42: - | J42: =H42*A41 -> 10.089 | K42: =IFERROR(J42*$B$14,"") -> 10.089
F43: =E43*B12 ->  | H43: 1 | I43: 0 | K43: =IFERROR(J43*$B$14,"") -> 0
F44: =E44*B12 ->  | H44: 1 | I44: 0 | K44: 0
I46: Total otros conceptos | J46: =SUM(IFERROR(J40:J44," ")) -> 10.089 | K46: =K40+SUM(K42:K44) -> 10.089
I48: TOTAL | J48: =J39+J46 -> 25.749 | K48: =K39+K46 -> 25.749
G49: Beneficio (%) | H49: 1 | I49: TOTAL inc. Beneficio | J49: =J48*(1+G50/100) -> 30.8988 | K49: =K48*(1+G50/100) -> 30.8988
G50: =H50* A21 -> 20 | H50: 1
B52: =Rendimientos!C141 -> NOTA: Rendimientos calculados teniendo en cuenta un despedicio del 2% en las placas y del 5% en el resto del sistema.
B104: LINKS A DESPLEGABLES
B106: Acabado
B107: =Rendimientos!B24 -> Q2 | C107: =Rendimientos!C24 -> Totalmente finalizado con nivel de acabado Q2
B108: =Rendimientos!B25 -> Q3 | C108: =Rendimientos!C25 -> Totalmente finalizado con nivel de acabado Q3
B109: =Rendimientos!B26 -> Q4 | C109: =Rendimientos!C26 -> Totalmente finalizado con nivel de acabado Q4
B111: Modulación
C112: =Rendimientos!C27 -> 600
C113: =Rendimientos!C28 -> 400
B115: Placas
B116: 040113 | C116: =VLOOKUP(B116,Listado!$A$5:$B$50,2,FALSE) -> PLACA ATT BASIC 13X600X1200 (78)
B117: 040115 | C117: =VLOOKUP(B117,Listado!$A$5:$B$50,2,FALSE) -> PLACA ATT BASIC 15X600X1200 (66)
B118: 040120 | C118: =VLOOKUP(B118,Listado!$A$5:$B$50,2,FALSE) -> PLACA ATT BASIC 20X600X1200 (48)
B119: 040213 | C119: =VLOOKUP(B119,Listado!$A$5:$B$50,2,FALSE) -> PLACA ATT HIDRO 13X600X1200 (78)
B120: 040215 | C120: =VLOOKUP(B120,Listado!$A$5:$B$50,2,FALSE) -> PLACA ATT HIDRO 15X600X1200 (66)
B121: 040220 | C121: =VLOOKUP(B121,Listado!$A$5:$B$50,2,FALSE) -> PLACA ATT HIDRO 20X600X1200 (48)
B122: 040313 | C122: =VLOOKUP(B122,Listado!$A$5:$B$50,2,FALSE) -> PLACA ATT FUEGO 13X600X1200 (78)
B123: 040315 | C123: =VLOOKUP(B123,Listado!$A$5:$B$50,2,FALSE) -> PLACA ATT FUEGO 15X600X1200 (66)
B124: 040320 | C124: =VLOOKUP(B124,Listado!$A$5:$B$50,2,FALSE) -> PLACA ATT FUEGO 20X600X1200 (48)
B125: 040413 | C125: =VLOOKUP(B125,Listado!$A$5:$B$50,2,FALSE) -> PLACA ATT RESIST 13X600X1200 (78)
B126: 040415 | C126: =VLOOKUP(B126,Listado!$A$5:$B$50,2,FALSE) -> PLACA ATT RESIST 15X600X1200 (66)
B127: 040420 | C127: =VLOOKUP(B127,Listado!$A$5:$B$50,2,FALSE) -> PLACA ATT RESIST 20X600X1200 (48)
B128: 040513 | C128: =VLOOKUP(B128,Listado!$A$5:$B$50,2,FALSE) -> PLACA ATT HIDROPLUS 13X600X1200 (78)
B129: 040515 | C129: =VLOOKUP(B129,Listado!$A$5:$B$50,2,FALSE) -> PLACA ATT HIDROPLUS 15X600X1200 (66)
B130: 040520 | C130: =VLOOKUP(B130,Listado!$A$5:$B$50,2,FALSE) -> PLACA ATT HIDROPLUS 20X600X1200 (48)
B131: 040613 | C131: =VLOOKUP(B131,Listado!$A$5:$B$50,2,FALSE) -> PLACA ATT SUPREM 13X600X1200 (78)
B132: 040615 | C132: =VLOOKUP(B132,Listado!$A$5:$B$50,2,FALSE) -> PLACA ATT SUPREM 15X600X1200 (66)
B133: 040620 | C133: =VLOOKUP(B133,Listado!$A$5:$B$50,2,FALSE) -> PLACA ATT SUPREM 20X600X1200 (48)
B135: tcs
B136: 48134730 | C136: PERFIL TC 47X3000 (12UDS)
B137: 48136030 | C137: PERFIL TC 60X3000 (8UDS)
B147: Pasta de juntas
B148: 0470010110 | C148: =VLOOKUP(B148,Listado!$A$5:$B$49,2,FALSE) -> PASTA ATT JUNTAS 10KG 60 MIN (56)
B149: 0470010210 | C149: =VLOOKUP(B149,Listado!$A$5:$B$49,2,FALSE) -> PASTA ATT JUNTAS 10KG 30 MIN (56)
B150: 0470010111 | C150: =VLOOKUP(B150,Listado!$A$5:$B$49,2,FALSE) -> PASTA ATT JUNTAS H 10 KG 60 MIN (56)
